Organisation Code,Organisation Label,Effective Date,Organisational Unit,Service Division Label,Category Internal Name,Purpose,Detailed Expenditure Code,Payment Date,Transaction Number,Irrecoverable VAT Amount,Amount,Capital Or Revenue,Beneficiary Name,Procurement Card
Http://opendatacommunities.org/id/metropolitan-district-council/leeds,Leeds City Council,31/03/2021,Resources and Housing,HRA Housing Leeds,Capital,OTHER COSTS,7,25/03/2021,2103-00001,0.00,80.00,C,REDACTED PERSONAL DATA,No
Http://opendatacommunities.org/id/metropolitan-district-council/leeds,Leeds City Council,31/03/2021,Resources and Housing,Leeds Building Services,Supplies and Services,Operational Materials,205,19/03/2021,2103-00002,0.00,102.00,R,A & A ELECTRICAL DISTRIBUTORS LTD,No
Http://opendatacommunities.org/id/metropolitan-district-council/leeds,Leeds City Council,31/03/2021,City Development,Economic Development,Supplies and Services,Grant Related Expenditure,290,19/03/2021,2103-00003,0.00,1800.00,R,A & S Cars Limited,No
Http://opendatacommunities.org/id/metropolitan-district-council/leeds,Leeds City Council,31/03/2021,Adults and Health,Services For Older People Under 65 P/Dis,Third Party Payments,Sheltered Accommodation,569,03/03/2021,2103-00004,0.00,5400.00,R,A & V TRANSITIONAL HOMES,No
Http://opendatacommunities.org/id/metropolitan-district-council/leeds,Leeds City Council,31/03/2021,Adults and Health,Services For Older People Under 65 P/Dis,Third Party Payments,Sheltered Accommodation,569,31/03/2021,2103-00005,0.00,5400.00,R,A & V TRANSITIONAL HOMES,No
Http://opendatacommunities.org/id/metropolitan-district-council/leeds,Leeds City Council,31/03/2021,Resources and Housing,Leeds Building Services,Supplies and Services,Operational Materials,205,04/03/2021,2103-00006,0.00,38.85,R,A ANDREWS & SONS (MARBLES & TILES),No
Http://opendatacommunities.org/id/metropolitan-district-council/leeds,Leeds City Council,31/03/2021,Resources and Housing,Leeds Building Services,Supplies and Services,Operational Materials,205,18/03/2021,2103-00007,0.00,96.07,R,A ANDREWS & SONS (MARBLES & TILES),No
Http://opendatacommunities.org/id/metropolitan-district-council/leeds,Leeds City Council,31/03/2021,Children and Families,Social Care,Third Party Payments,Services Rendered By Other Organisations,511,05/03/2021,2103-00008,0.00,262.80,R,REDACTED PERSONAL DATA,No
Http://opendatacommunities.org/id/metropolitan-district-council/leeds,Leeds City Council,31/03/2021,City Development,Economic Development,Supplies and Services,Grant Related Expenditure,298,05/03/2021,2103-00009,0.00,500.00,R,A Beautiful Secret,No
Http://opendatacommunities.org/id/metropolitan-district-council/leeds,Leeds City Council,31/03/2021,Resources and Housing,HRA Housing Leeds,Capital,OTHER COSTS,7,23/03/2021,2103-00010,0.00,60.00,C,REDACTED PERSONAL DATA,No
Http://opendatacommunities.org/id/metropolitan-district-council/leeds,Leeds City Council,31/03/2021,City Development,Economic Development,Supplies and Services,Grant Related Expenditure,290,26/03/2021,2103-00011,0.00,1875.00,R,REDACTED PERSONAL DATA,No
Http://opendatacommunities.org/id/metropolitan-district-council/leeds,Leeds City Council,31/03/2021,Children and Families,Social Care,Third Party Payments,Services Rendered By Other Organisations,511,05/03/2021,2103-00012,0.00,572.32,R,REDACTED PERSONAL DATA,No
Http://opendatacommunities.org/id/metropolitan-district-council/leeds,Leeds City Council,31/03/2021,Resources and Housing,Leeds Building Services,Supplies and Services,Other Hired And Contracted Services,265,01/03/2021,2103-00013,0.00,85.00,R,A Coole Electrical Ltd,No
Http://opendatacommunities.org/id/metropolitan-district-council/leeds,Leeds City Council,31/03/2021,Resources and Housing,Leeds Building Services,Supplies and Services,Other Hired And Contracted Services,265,04/03/2021,2103-00014,0.00,1725.00,R,A Coole Electrical Ltd,No
Http://opendatacommunities.org/id/metropolitan-district-council/leeds,Leeds City Council,31/03/2021,Resources and Housing,Leeds Building Services,Supplies and Services,Other Hired And Contracted Services,265,04/03/2021,2103-00015,0.00,2263.00,R,A Coole Electrical Ltd,No
Http://opendatacommunities.org/id/metropolitan-district-council/leeds,Leeds City Council,31/03/2021,Resources and Housing,Leeds Building Services,Supplies and Services,Other Hired And Contracted Services,265,05/03/2021,2103-00016,0.00,120.00,R,A Coole Electrical Ltd,No
Http://opendatacommunities.org/id/metropolitan-district-council/leeds,Leeds City Council,31/03/2021,Resources and Housing,Leeds Building Services,Supplies and Services,Other Hired And Contracted Services,265,05/03/2021,2103-00017,0.00,2263.00,R,A Coole Electrical Ltd,No
Http://opendatacommunities.org/id/metropolitan-district-council/leeds,Leeds City Council,31/03/2021,Resources and Housing,Leeds Building Services,Supplies and Services,Other Hired And Contracted Services,265,11/03/2021,2103-00018,0.00,85.00,R,A Coole Electrical Ltd,No
Http://opendatacommunities.org/id/metropolitan-district-council/leeds,Leeds City Council,31/03/2021,Resources and Housing,Leeds Building Services,Supplies and Services,Other Hired And Contracted Services,265,18/03/2021,2103-00019,0.00,85.00,R,A Coole Electrical Ltd,No
Http://opendatacommunities.org/id/metropolitan-district-council/leeds,Leeds City Council,31/03/2021,Resources and Housing,Leeds Building Services,Supplies and Services,Other Hired And Contracted Services,265,18/03/2021,2103-00020,0.00,160.00,R,A Coole Electrical Ltd,No
Http://opendatacommunities.org/id/metropolitan-district-council/leeds,Leeds City Council,31/03/2021,Resources and Housing,Leeds Building Services,Supplies and Services,Other Hired And Contracted Services,265,18/03/2021,2103-00021,0.00,160.00,R,A Coole Electrical Ltd,No
Http://opendatacommunities.org/id/metropolitan-district-council/leeds,Leeds City Council,31/03/2021,Resources and Housing,Leeds Building Services,Supplies and Services,Other Hired And Contracted Services,265,18/03/2021,2103-00022,0.00,85.00,R,A Coole Electrical Ltd,No
Http://opendatacommunities.org/id/metropolitan-district-council/leeds,Leeds City Council,31/03/2021,Resources and Housing,Leeds Building Services,Supplies and Services,Other Hired And Contracted Services,265,18/03/2021,2103-00023,0.00,85.00,R,A Coole Electrical Ltd,No
Http://opendatacommunities.org/id/metropolitan-district-council/leeds,Leeds City Council,31/03/2021,Resources and Housing,Leeds Building Services,Supplies and Services,Other Hired And Contracted Services,265,18/03/2021,2103-00024,0.00,85.00,R,A Coole Electrical Ltd,No
Http://opendatacommunities.org/id/metropolitan-district-council/leeds,Leeds City Council,31/03/2021,Resources and Housing,Leeds Building Services,Supplies and Services,Other Hired And Contracted Services,265,18/03/2021,2103-00025,0.00,85.00,R,A Coole Electrical Ltd,No
Http://opendatacommunities.org/id/metropolitan-district-council/leeds,Leeds City Council,31/03/2021,Resources and Housing,Leeds Building Services,Supplies and Services,Other Hired And Contracted Services,265,18/03/2021,2103-00026,0.00,85.00,R,A Coole Electrical Ltd,No
Http://opendatacommunities.org/id/metropolitan-district-council/leeds,Leeds City Council,31/03/2021,Resources and Housing,Leeds Building Services,Supplies and Services,Other Hired And Contracted Services,265,18/03/2021,2103-00027,0.00,85.00,R,A Coole Electrical Ltd,No
Http://opendatacommunities.org/id/metropolitan-district-council/leeds,Leeds City Council,31/03/2021,Resources and Housing,Leeds Building Services,Supplies and Services,Other Hired And Contracted Services,265,18/03/2021,2103-00028,0.00,85.00,R,A Coole Electrical Ltd,No
Http://opendatacommunities.org/id/metropolitan-district-council/leeds,Leeds City Council,31/03/2021,Resources and Housing,Leeds Building Services,Supplies and Services,Other Hired And Contracted Services,265,18/03/2021,2103-00029,0.00,85.00,R,A Coole Electrical Ltd,No
Http://opendatacommunities.org/id/metropolitan-district-council/leeds,Leeds City Council,31/03/2021,Resources and Housing,Leeds Building Services,Supplies and Services,Other Hired And Contracted Services,265,18/03/2021,2103-00030,0.00,85.00,R,A Coole Electrical Ltd,No
Http://opendatacommunities.org/id/metropolitan-district-council/leeds,Leeds City Council,31/03/2021,Resources and Housing,Leeds Building Services,Supplies and Services,Other Hired And Contracted Services,265,18/03/2021,2103-00031,0.00,85.00,R,A Coole Electrical Ltd,No
Http://opendatacommunities.org/id/metropolitan-district-council/leeds,Leeds City Council,31/03/2021,Resources and Housing,Leeds Building Services,Supplies and Services,Other Hired And Contracted Services,265,18/03/2021,2103-00032,0.00,85.00,R,A Coole Electrical Ltd,No
Http://opendatacommunities.org/id/metropolitan-district-council/leeds,Leeds City Council,31/03/2021,Resources and Housing,Leeds Building Services,Supplies and Services,Other Hired And Contracted Services,265,18/03/2021,2103-00033,0.00,85.00,R,A Coole Electrical Ltd,No
Http://opendatacommunities.org/id/metropolitan-district-council/leeds,Leeds City Council,31/03/2021,Resources and Housing,Leeds Building Services,Supplies and Services,Other Hired And Contracted Services,265,18/03/2021,2103-00034,0.00,85.00,R,A Coole Electrical Ltd,No
Http://opendatacommunities.org/id/metropolitan-district-council/leeds,Leeds City Council,31/03/2021,Resources and Housing,Leeds Building Services,Supplies and Services,Other Hired And Contracted Services,265,18/03/2021,2103-00035,0.00,85.00,R,A Coole Electrical Ltd,No
Http://opendatacommunities.org/id/metropolitan-district-council/leeds,Leeds City Council,31/03/2021,Resources and Housing,Leeds Building Services,Supplies and Services,Other Hired And Contracted Services,265,18/03/2021,2103-00036,0.00,85.00,R,A Coole Electrical Ltd,No
Http://opendatacommunities.org/id/metropolitan-district-council/leeds,Leeds City Council,31/03/2021,Resources and Housing,Leeds Building Services,Supplies and Services,Other Hired And Contracted Services,265,18/03/2021,2103-00037,0.00,990.00,R,A Coole Electrical Ltd,No
Http://opendatacommunities.org/id/metropolitan-district-council/leeds,Leeds City Council,31/03/2021,Resources and Housing,Leeds Building Services,Supplies and Services,Other Hired And Contracted Services,265,25/03/2021,2103-00038,0.00,2430.00,R,A Coole Electrical Ltd,No
Http://opendatacommunities.org/id/metropolitan-district-council/leeds,Leeds City Council,31/03/2021,Resources and Housing,Leeds Building Services,Supplies and Services,Other Hired And Contracted Services,265,25/03/2021,2103-00039,0.00,2655.00,R,A Coole Electrical Ltd,No
Http://opendatacommunities.org/id/metropolitan-district-council/leeds,Leeds City Council,31/03/2021,Resources and Housing,Leeds Building Services,Supplies and Services,Other Hired And Contracted Services,265,25/03/2021,2103-00040,0.00,2905.00,R,A Coole Electrical Ltd,No
Http://opendatacommunities.org/id/metropolitan-district-council/leeds,Leeds City Council,31/03/2021,Resources and Housing,Leeds Building Services,Supplies and Services,Other Hired And Contracted Services,265,25/03/2021,2103-00041,0.00,-60.00,R,A Coole Electrical Ltd,No
Http://opendatacommunities.org/id/metropolitan-district-council/leeds,Leeds City Council,31/03/2021,Resources and Housing,Leeds Building Services,Supplies and Services,Other Hired And Contracted Services,265,26/03/2021,2103-00042,0.00,160.00,R,A Coole Electrical Ltd,No
Http://opendatacommunities.org/id/metropolitan-district-council/leeds,Leeds City Council,31/03/2021,Resources and Housing,Leeds Building Services,Supplies and Services,Other Hired And Contracted Services,265,30/03/2021,2103-00043,0.00,-15.00,R,A Coole Electrical Ltd,No
Http://opendatacommunities.org/id/metropolitan-district-council/leeds,Leeds City Council,31/03/2021,Resources and Housing,Leeds Building Services,Supplies and Services,Other Hired And Contracted Services,265,30/03/2021,2103-00044,0.00,85.00,R,A Coole Electrical Ltd,No
Http://opendatacommunities.org/id/metropolitan-district-council/leeds,Leeds City Council,31/03/2021,Communities and Environment,Customer Access,Supplies and Services,Bought In Professional Services,277,03/03/2021,2103-00045,0.00,18.00,R,A D Dumitru,No
Http://opendatacommunities.org/id/metropolitan-district-council/leeds,Leeds City Council,31/03/2021,Communities and Environment,Customer Access,Supplies and Services,Bought In Professional Services,277,03/03/2021,2103-00046,0.00,18.00,R,A D Dumitru,No
Http://opendatacommunities.org/id/metropolitan-district-council/leeds,Leeds City Council,31/03/2021,Communities and Environment,Customer Access,Supplies and Services,Bought In Professional Services,277,03/03/2021,2103-00047,0.00,27.00,R,A D Dumitru,No
Http://opendatacommunities.org/id/metropolitan-district-council/leeds,Leeds City Council,31/03/2021,Communities and Environment,Customer Access,Supplies and Services,Bought In Professional Services,277,03/03/2021,2103-00048,0.00,18.00,R,A D Dumitru,No
Http://opendatacommunities.org/id/metropolitan-district-council/leeds,Leeds City Council,31/03/2021,Communities and Environment,Communities,Supplies and Services,Other Hired And Contracted Services,265,09/03/2021,2103-00049,0.00,75.00,R,REDACTED PERSONAL DATA,No
Http://opendatacommunities.org/id/metropolitan-district-council/leeds,Leeds City Council,31/03/2021,Communities and Environment,Customer Access,Supplies and Services,Bought In Professional Services,277,10/03/2021,2103-00050,0.00,9.00,R,A D Dumitru,No
Http://opendatacommunities.org/id/metropolitan-district-council/leeds,Leeds City Council,31/03/2021,Communities and Environment,Customer Access,Supplies and Services,Bought In Professional Services,277,10/03/2021,2103-00051,0.00,9.00,R,A D Dumitru,No
Http://opendatacommunities.org/id/metropolitan-district-council/leeds,Leeds City Council,31/03/2021,Communities and Environment,Customer Access,Supplies and Services,Bought In Professional Services,277,10/03/2021,2103-00052,0.00,18.00,R,A D Dumitru,No
Http://opendatacommunities.org/id/metropolitan-district-council/leeds,Leeds City Council,31/03/2021,Communities and Environment,Customer Access,Supplies and Services,Bought In Professional Services,277,10/03/2021,2103-00053,0.00,18.00,R,A D Dumitru,No
Http://opendatacommunities.org/id/metropolitan-district-council/leeds,Leeds City Council,31/03/2021,Communities and Environment,Customer Access,Supplies and Services,Bought In Professional Services,277,10/03/2021,2103-00054,0.00,18.00,R,A D Dumitru,No
Http://opendatacommunities.org/id/metropolitan-district-council/leeds,Leeds City Council,31/03/2021,Communities and Environment,Customer Access,Supplies and Services,Bought In Professional Services,277,10/03/2021,2103-00055,0.00,18.00,R,A D Dumitru,No
Http://opendatacommunities.org/id/metropolitan-district-council/leeds,Leeds City Council,31/03/2021,Communities and Environment,Communities,Supplies and Services,Other Hired And Contracted Services,265,18/03/2021,2103-00056,0.00,25.00,R,REDACTED PERSONAL DATA,No
Http://opendatacommunities.org/id/metropolitan-district-council/leeds,Leeds City Council,31/03/2021,Communities and Environment,Customer Access,Supplies and Services,Bought In Professional Services,277,22/03/2021,2103-00057,0.00,18.00,R,A D Dumitru,No
Http://opendatacommunities.org/id/metropolitan-district-council/leeds,Leeds City Council,31/03/2021,Communities and Environment,Customer Access,Supplies and Services,Bought In Professional Services,277,22/03/2021,2103-00058,0.00,18.00,R,A D Dumitru,No
Http://opendatacommunities.org/id/metropolitan-district-council/leeds,Leeds City Council,31/03/2021,Communities and Environment,Customer Access,Supplies and Services,Bought In Professional Services,277,22/03/2021,2103-00059,0.00,18.00,R,A D Dumitru,No
Http://opendatacommunities.org/id/metropolitan-district-council/leeds,Leeds City Council,31/03/2021,Communities and Environment,Customer Access,Supplies and Services,Bought In Professional Services,277,22/03/2021,2103-00060,0.00,22.50,R,A D Dumitru,No
Http://opendatacommunities.org/id/metropolitan-district-council/leeds,Leeds City Council,31/03/2021,Communities and Environment,Customer Access,Supplies and Services,Bought In Professional Services,277,24/03/2021,2103-00061,0.00,13.50,R,A D Dumitru,No
Http://opendatacommunities.org/id/metropolitan-district-council/leeds,Leeds City Council,31/03/2021,Communities and Environment,Customer Access,Supplies and Services,Bought In Professional Services,277,24/03/2021,2103-00062,0.00,27.00,R,A D Dumitru,No
Http://opendatacommunities.org/id/metropolitan-district-council/leeds,Leeds City Council,31/03/2021,Communities and Environment,Communities,Supplies and Services,Other Hired And Contracted Services,265,24/03/2021,2103-00063,0.00,120.00,R,REDACTED PERSONAL DATA,No
Http://opendatacommunities.org/id/metropolitan-district-council/leeds,Leeds City Council,31/03/2021,Communities and Environment,Customer Access,Supplies and Services,Bought In Professional Services,277,31/03/2021,2103-00064,0.00,27.00,R,A D Dumitru,No
Http://opendatacommunities.org/id/metropolitan-district-council/leeds,Leeds City Council,31/03/2021,Communities and Environment,Customer Access,Supplies and Services,Bought In Professional Services,277,31/03/2021,2103-00065,0.00,18.00,R,A D Dumitru,No
Http://opendatacommunities.org/id/metropolitan-district-council/leeds,Leeds City Council,31/03/2021,Communities and Environment,Customer Access,Supplies and Services,Bought In Professional Services,277,31/03/2021,2103-00066,0.00,18.00,R,A D Dumitru,No
Http://opendatacommunities.org/id/metropolitan-district-council/leeds,Leeds City Council,31/03/2021,Children and Families,Social Care,Third Party Payments,Services Rendered By Voluntary Sector,505,03/03/2021,2103-00067,0.00,1900.80,R,REDACTED PERSONAL DATA,No
Http://opendatacommunities.org/id/metropolitan-district-council/leeds,Leeds City Council,31/03/2021,Children and Families,Social Care,Third Party Payments,Services Rendered By Voluntary Sector,505,03/03/2021,2103-00068,0.00,568.44,R,REDACTED PERSONAL DATA,No
Http://opendatacommunities.org/id/metropolitan-district-council/leeds,Leeds City Council,31/03/2021,Children and Families,Social Care,Third Party Payments,Services Rendered By Voluntary Sector,505,05/03/2021,2103-00069,0.00,8724.96,R,REDACTED PERSONAL DATA,No
Http://opendatacommunities.org/id/metropolitan-district-council/leeds,Leeds City Council,31/03/2021,Children and Families,Social Care,Third Party Payments,Services Rendered By Voluntary Sector,505,05/03/2021,2103-00070,0.00,199.80,R,REDACTED PERSONAL DATA,No
Http://opendatacommunities.org/id/metropolitan-district-council/leeds,Leeds City Council,31/03/2021,Children and Families,Social Care,Third Party Payments,Services Rendered By Voluntary Sector,505,05/03/2021,2103-00071,0.00,95.40,R,REDACTED PERSONAL DATA,No
Http://opendatacommunities.org/id/metropolitan-district-council/leeds,Leeds City Council,31/03/2021,Children and Families,Social Care,Third Party Payments,Services Rendered By Other Organisations,511,03/03/2021,2103-00072,0.00,633.60,R,REDACTED PERSONAL DATA,No
Http://opendatacommunities.org/id/metropolitan-district-council/leeds,Leeds City Council,31/03/2021,Children and Families,Social Care,Third Party Payments,Services Rendered By Other Organisations,511,05/03/2021,2103-00073,0.00,367.92,R,REDACTED PERSONAL DATA,No
Http://opendatacommunities.org/id/metropolitan-district-council/leeds,Leeds City Council,31/03/2021,Children and Families,Social Care,Third Party Payments,Services Rendered By Other Organisations,511,05/03/2021,2103-00074,0.00,93.24,R,REDACTED PERSONAL DATA,No
Http://opendatacommunities.org/id/metropolitan-district-council/leeds,Leeds City Council,31/03/2021,Communities and Environment,Benefits Welfare and Poverty,Supplies and Services,Grant Related Expenditure,290,11/03/2021,2103-00075,0.00,500.00,R,REDACTED PERSONAL DATA,No
Http://opendatacommunities.org/id/metropolitan-district-council/leeds,Leeds City Council,31/03/2021,Resources and Housing,HRA Housing Leeds,Capital,OTHER COSTS,7,26/03/2021,2103-00076,0.00,170.09,C,REDACTED PERSONAL DATA,No
Http://opendatacommunities.org/id/metropolitan-district-council/leeds,Leeds City Council,31/03/2021,Children and Families,Social Care,Third Party Payments,Services Rendered By Other Organisations,511,05/03/2021,2103-00077,0.00,262.80,R,REDACTED PERSONAL DATA,No
Http://opendatacommunities.org/id/metropolitan-district-council/leeds,Leeds City Council,31/03/2021,Children and Families,Social Care,Third Party Payments,Services Rendered By Other Organisations,511,05/03/2021,2103-00078,0.00,525.60,R,REDACTED PERSONAL DATA,No
Http://opendatacommunities.org/id/metropolitan-district-council/leeds,Leeds City Council,31/03/2021,Children and Families,Social Care,Third Party Payments,Services Rendered By Other Organisations,511,03/03/2021,2103-00079,0.00,633.60,R,REDACTED PERSONAL DATA,No
Http://opendatacommunities.org/id/metropolitan-district-council/leeds,Leeds City Council,31/03/2021,Children and Families,Social Care,Third Party Payments,Services Rendered By Other Organisations,511,05/03/2021,2103-00080,0.00,578.16,R,REDACTED PERSONAL DATA,No
Http://opendatacommunities.org/id/metropolitan-district-council/leeds,Leeds City Council,31/03/2021,Adults and Health,Other Generic Services,Third Party Payments,Fees To Carers,563,05/03/2021,2103-00081,0.00,160.30,R,REDACTED PERSONAL DATA,No
Http://opendatacommunities.org/id/metropolitan-district-council/leeds,Leeds City Council,31/03/2021,Adults and Health,Other Generic Services,Third Party Payments,Fees To Carers,563,16/03/2021,2103-00082,0.00,440.64,R,REDACTED PERSONAL DATA,No
Http://opendatacommunities.org/id/metropolitan-district-council/leeds,Leeds City Council,31/03/2021,Adults and Health,Other Generic Services,Third Party Payments,Fees To Carers,563,16/03/2021,2103-00083,0.00,50.40,R,REDACTED PERSONAL DATA,No
Http://opendatacommunities.org/id/metropolitan-district-council/leeds,Leeds City Council,31/03/2021,Resources and Housing,Leeds Building Services,Supplies and Services,Operational Materials,205,02/03/2021,2103-00084,0.00,5999.00,R,A J H  Pump Supply & Repair Ltd,No
Http://opendatacommunities.org/id/metropolitan-district-council/leeds,Leeds City Council,31/03/2021,Resources and Housing,Leeds Building Services,Supplies and Services,Operational Materials,205,02/03/2021,2103-00085,0.00,417.00,R,A J H  Pump Supply & Repair Ltd,No
Http://opendatacommunities.org/id/metropolitan-district-council/leeds,Leeds City Council,31/03/2021,Resources and Housing,Leeds Building Services,Supplies and Services,Operational Materials,205,02/03/2021,2103-00086,0.00,420.00,R,A J H  Pump Supply & Repair Ltd,No
Http://opendatacommunities.org/id/metropolitan-district-council/leeds,Leeds City Council,31/03/2021,Resources and Housing,Leeds Building Services,Supplies and Services,Operational Materials,205,02/03/2021,2103-00087,0.00,79.00,R,A J H  Pump Supply & Repair Ltd,No
Http://opendatacommunities.org/id/metropolitan-district-council/leeds,Leeds City Council,31/03/2021,Resources and Housing,Leeds Building Services,Supplies and Services,Operational Materials,205,02/03/2021,2103-00088,0.00,46.54,R,A J H  Pump Supply & Repair Ltd,No
Http://opendatacommunities.org/id/metropolitan-district-council/leeds,Leeds City Council,31/03/2021,Resources and Housing,Leeds Building Services,Supplies and Services,Operational Materials,205,02/03/2021,2103-00089,0.00,62.05,R,A J H  Pump Supply & Repair Ltd,No
Http://opendatacommunities.org/id/metropolitan-district-council/leeds,Leeds City Council,31/03/2021,Resources and Housing,Leeds Building Services,Supplies and Services,Operational Materials,205,02/03/2021,2103-00090,0.00,182.95,R,A J H  Pump Supply & Repair Ltd,No
Http://opendatacommunities.org/id/metropolitan-district-council/leeds,Leeds City Council,31/03/2021,Resources and Housing,Leeds Building Services,Supplies and Services,Operational Materials,205,04/03/2021,2103-00091,0.00,306.58,R,A J H  Pump Supply & Repair Ltd,No
Http://opendatacommunities.org/id/metropolitan-district-council/leeds,Leeds City Council,31/03/2021,Resources and Housing,Leeds Building Services,Supplies and Services,Other Hired And Contracted Services,265,05/03/2021,2103-00092,0.00,150.00,R,A J H  Pump Supply & Repair Ltd,No
Http://opendatacommunities.org/id/metropolitan-district-council/leeds,Leeds City Council,31/03/2021,Resources and Housing,Leeds Building Services,Supplies and Services,Operational Materials,205,11/03/2021,2103-00093,0.00,29.70,R,A J H  Pump Supply & Repair Ltd,No
Http://opendatacommunities.org/id/metropolitan-district-council/leeds,Leeds City Council,31/03/2021,Resources and Housing,Leeds Building Services,Supplies and Services,Operational Materials,205,11/03/2021,2103-00094,0.00,55.50,R,A J H  Pump Supply & Repair Ltd,No
Http://opendatacommunities.org/id/metropolitan-district-council/leeds,Leeds City Council,31/03/2021,Resources and Housing,Leeds Building Services,Supplies and Services,Operational Materials,205,11/03/2021,2103-00095,0.00,19.50,R,A J H  Pump Supply & Repair Ltd,No
Http://opendatacommunities.org/id/metropolitan-district-council/leeds,Leeds City Council,31/03/2021,Resources and Housing,Leeds Building Services,Supplies and Services,Operational Materials,205,11/03/2021,2103-00096,0.00,64.00,R,A J H  Pump Supply & Repair Ltd,No
Http://opendatacommunities.org/id/metropolitan-district-council/leeds,Leeds City Council,31/03/2021,Resources and Housing,Leeds Building Services,Supplies and Services,Operational Materials,205,11/03/2021,2103-00097,0.00,75.70,R,A J H  Pump Supply & Repair Ltd,No
Http://opendatacommunities.org/id/metropolitan-district-council/leeds,Leeds City Council,31/03/2021,Resources and Housing,Leeds Building Services,Supplies and Services,Operational Materials,205,11/03/2021,2103-00098,0.00,75.00,R,A J H  Pump Supply & Repair Ltd,No
Http://opendatacommunities.org/id/metropolitan-district-council/leeds,Leeds City Council,31/03/2021,Resources and Housing,Leeds Building Services,Supplies and Services,Operational Materials,205,11/03/2021,2103-00099,0.00,125.00,R,A J H  Pump Supply & Repair Ltd,No
Http://opendatacommunities.org/id/metropolitan-district-council/leeds,Leeds City Council,31/03/2021,Resources and Housing,Leeds Building Services,Supplies and Services,Operational Materials,205,11/03/2021,2103-00100,0.00,258.94,R,A J H  Pump Supply & Repair Ltd,No
Http://opendatacommunities.org/id/metropolitan-district-council/leeds,Leeds City Council,31/03/2021,Resources and Housing,Leeds Building Services,Supplies and Services,Operational Materials,205,11/03/2021,2103-00101,0.00,112.80,R,A J H  Pump Supply & Repair Ltd,No
Http://opendatacommunities.org/id/metropolitan-district-council/leeds,Leeds City Council,31/03/2021,Resources and Housing,Leeds Building Services,Supplies and Services,Operational Materials,205,11/03/2021,2103-00102,0.00,58.32,R,A J H  Pump Supply & Repair Ltd,No
Http://opendatacommunities.org/id/metropolitan-district-council/leeds,Leeds City Council,31/03/2021,Resources and Housing,Leeds Building Services,Supplies and Services,Operational Materials,205,11/03/2021,2103-00103,0.00,146.90,R,A J H  Pump Supply & Repair Ltd,No
Http://opendatacommunities.org/id/metropolitan-district-council/leeds,Leeds City Council,31/03/2021,Resources and Housing,Leeds Building Services,Supplies and Services,Operational Materials,205,11/03/2021,2103-00104,0.00,72.70,R,A J H  Pump Supply & Repair Ltd,No
Http://opendatacommunities.org/id/metropolitan-district-council/leeds,Leeds City Council,31/03/2021,Resources and Housing,Leeds Building Services,Supplies and Services,Operational Materials,205,11/03/2021,2103-00105,0.00,52.50,R,A J H  Pump Supply & Repair Ltd,No
Http://opendatacommunities.org/id/metropolitan-district-council/leeds,Leeds City Council,31/03/2021,Resources and Housing,Leeds Building Services,Supplies and Services,Operational Materials,205,11/03/2021,2103-00106,0.00,111.90,R,A J H  Pump Supply & Repair Ltd,No
Http://opendatacommunities.org/id/metropolitan-district-council/leeds,Leeds City Council,31/03/2021,Resources and Housing,Leeds Building Services,Supplies and Services,Operational Materials,205,11/03/2021,2103-00107,0.00,48.74,R,A J H  Pump Supply & Repair Ltd,No
Http://opendatacommunities.org/id/metropolitan-district-council/leeds,Leeds City Council,31/03/2021,Resources and Housing,Leeds Building Services,Supplies and Services,Operational Materials,205,11/03/2021,2103-00108,0.00,638.70,R,A J H  Pump Supply & Repair Ltd,No
Http://opendatacommunities.org/id/metropolitan-district-council/leeds,Leeds City Council,31/03/2021,Resources and Housing,Leeds Building Services,Supplies and Services,Operational Materials,205,11/03/2021,2103-00109,0.00,58.00,R,A J H  Pump Supply & Repair Ltd,No
Http://opendatacommunities.org/id/metropolitan-district-council/leeds,Leeds City Council,31/03/2021,Resources and Housing,Leeds Building Services,Supplies and Services,Operational Materials,205,11/03/2021,2103-00110,0.00,97.00,R,A J H  Pump Supply & Repair Ltd,No
Http://opendatacommunities.org/id/metropolitan-district-council/leeds,Leeds City Council,31/03/2021,Resources and Housing,Leeds Building Services,Supplies and Services,Operational Materials,205,11/03/2021,2103-00111,0.00,81.45,R,A J H  Pump Supply & Repair Ltd,No
Http://opendatacommunities.org/id/metropolitan-district-council/leeds,Leeds City Council,31/03/2021,Resources and Housing,Leeds Building Services,Supplies and Services,Operational Materials,205,11/03/2021,2103-00112,0.00,464.00,R,A J H  Pump Supply & Repair Ltd,No
Http://opendatacommunities.org/id/metropolitan-district-council/leeds,Leeds City Council,31/03/2021,Resources and Housing,Leeds Building Services,Supplies and Services,Operational Materials,205,11/03/2021,2103-00113,0.00,998.00,R,A J H  Pump Supply & Repair Ltd,No
Http://opendatacommunities.org/id/metropolitan-district-council/leeds,Leeds City Council,31/03/2021,Resources and Housing,Leeds Building Services,Supplies and Services,Operational Materials,205,11/03/2021,2103-00114,0.00,395.00,R,A J H  Pump Supply & Repair Ltd,No
Http://opendatacommunities.org/id/metropolitan-district-council/leeds,Leeds City Council,31/03/2021,Resources and Housing,Leeds Building Services,Supplies and Services,Operational Materials,205,16/03/2021,2103-00115,0.00,280.00,R,A J H  Pump Supply & Repair Ltd,No
Http://opendatacommunities.org/id/metropolitan-district-council/leeds,Leeds City Council,31/03/2021,Resources and Housing,Leeds Building Services,Supplies and Services,Operational Materials,205,16/03/2021,2103-00116,0.00,12.95,R,A J H  Pump Supply & Repair Ltd,No
Http://opendatacommunities.org/id/metropolitan-district-council/leeds,Leeds City Council,31/03/2021,Resources and Housing,Leeds Building Services,Supplies and Services,Operational Materials,205,16/03/2021,2103-00117,0.00,225.08,R,A J H  Pump Supply & Repair Ltd,No
Http://opendatacommunities.org/id/metropolitan-district-council/leeds,Leeds City Council,31/03/2021,Resources and Housing,Leeds Building Services,Supplies and Services,Operational Materials,205,16/03/2021,2103-00118,0.00,341.00,R,A J H  Pump Supply & Repair Ltd,No
Http://opendatacommunities.org/id/metropolitan-district-council/leeds,Leeds City Council,31/03/2021,Resources and Housing,Leeds Building Services,Supplies and Services,Operational Materials,205,16/03/2021,2103-00119,0.00,15.00,R,A J H  Pump Supply & Repair Ltd,No
Http://opendatacommunities.org/id/metropolitan-district-council/leeds,Leeds City Council,31/03/2021,Resources and Housing,Leeds Building Services,Supplies and Services,Operational Materials,205,16/03/2021,2103-00120,0.00,185.00,R,A J H  Pump Supply & Repair Ltd,No
Http://opendatacommunities.org/id/metropolitan-district-council/leeds,Leeds City Council,31/03/2021,Resources and Housing,Leeds Building Services,Supplies and Services,Operational Materials,205,16/03/2021,2103-00121,0.00,33.94,R,A J H  Pump Supply & Repair Ltd,No
Http://opendatacommunities.org/id/metropolitan-district-council/leeds,Leeds City Council,31/03/2021,Resources and Housing,Leeds Building Services,Supplies and Services,Operational Materials,205,17/03/2021,2103-00122,0.00,261.29,R,A J H  Pump Supply & Repair Ltd,No
Http://opendatacommunities.org/id/metropolitan-district-council/leeds,Leeds City Council,31/03/2021,Resources and Housing,Leeds Building Services,Supplies and Services,Operational Materials,205,17/03/2021,2103-00123,0.00,95.00,R,A J H  Pump Supply & Repair Ltd,No
Http://opendatacommunities.org/id/metropolitan-district-council/leeds,Leeds City Council,31/03/2021,Resources and Housing,Leeds Building Services,Supplies and Services,Operational Materials,205,17/03/2021,2103-00124,0.00,141.40,R,A J H  Pump Supply & Repair Ltd,No
Http://opendatacommunities.org/id/metropolitan-district-council/leeds,Leeds City Council,31/03/2021,Resources and Housing,Leeds Building Services,Supplies and Services,Operational Materials,205,17/03/2021,2103-00125,0.00,92.70,R,A J H  Pump Supply & Repair Ltd,No
Http://opendatacommunities.org/id/metropolitan-district-council/leeds,Leeds City Council,31/03/2021,Resources and Housing,Leeds Building Services,Supplies and Services,Operational Materials,205,17/03/2021,2103-00126,0.00,313.26,R,A J H  Pump Supply & Repair Ltd,No
Http://opendatacommunities.org/id/metropolitan-district-council/leeds,Leeds City Council,31/03/2021,Resources and Housing,Leeds Building Services,Supplies and Services,Operational Materials,205,17/03/2021,2103-00127,0.00,36.79,R,A J H  Pump Supply & Repair Ltd,No
Http://opendatacommunities.org/id/metropolitan-district-council/leeds,Leeds City Council,31/03/2021,Resources and Housing,Leeds Building Services,Supplies and Services,Operational Materials,205,17/03/2021,2103-00128,0.00,361.71,R,A J H  Pump Supply & Repair Ltd,No
Http://opendatacommunities.org/id/metropolitan-district-council/leeds,Leeds City Council,31/03/2021,Resources and Housing,Leeds Building Services,Supplies and Services,Operational Materials,205,17/03/2021,2103-00129,0.00,61.32,R,A J H  Pump Supply & Repair Ltd,No
Http://opendatacommunities.org/id/metropolitan-district-council/leeds,Leeds City Council,31/03/2021,Resources and Housing,Leeds Building Services,Supplies and Services,Operational Materials,205,17/03/2021,2103-00130,0.00,1100.00,R,A J H  Pump Supply & Repair Ltd,No
Http://opendatacommunities.org/id/metropolitan-district-council/leeds,Leeds City Council,31/03/2021,Resources and Housing,Leeds Building Services,Supplies and Services,Operational Materials,205,18/03/2021,2103-00131,0.00,118.15,R,A J H  Pump Supply & Repair Ltd,No
Http://opendatacommunities.org/id/metropolitan-district-council/leeds,Leeds City Council,31/03/2021,Resources and Housing,Leeds Building Services,Supplies and Services,Operational Materials,205,18/03/2021,2103-00132,0.00,79.78,R,A J H  Pump Supply & Repair Ltd,No
Http://opendatacommunities.org/id/metropolitan-district-council/leeds,Leeds City Council,31/03/2021,Resources and Housing,Leeds Building Services,Supplies and Services,Operational Materials,205,18/03/2021,2103-00133,0.00,498.34,R,A J H  Pump Supply & Repair Ltd,No
Http://opendatacommunities.org/id/metropolitan-district-council/leeds,Leeds City Council,31/03/2021,Resources and Housing,Leeds Building Services,Supplies and Services,Operational Materials,205,18/03/2021,2103-00134,0.00,475.00,R,A J H  Pump Supply & Repair Ltd,No
Http://opendatacommunities.org/id/metropolitan-district-council/leeds,Leeds City Council,31/03/2021,Resources and Housing,Leeds Building Services,Supplies and Services,Operational Materials,205,18/03/2021,2103-00135,0.00,14.81,R,A J H  Pump Supply & Repair Ltd,No
Http://opendatacommunities.org/id/metropolitan-district-council/leeds,Leeds City Council,31/03/2021,Resources and Housing,Leeds Building Services,Supplies and Services,Operational Materials,205,18/03/2021,2103-00136,0.00,302.90,R,A J H  Pump Supply & Repair Ltd,No
Http://opendatacommunities.org/id/metropolitan-district-council/leeds,Leeds City Council,31/03/2021,Resources and Housing,Leeds Building Services,Supplies and Services,Operational Materials,205,18/03/2021,2103-00137,0.00,233.73,R,A J H  Pump Supply & Repair Ltd,No
Http://opendatacommunities.org/id/metropolitan-district-council/leeds,Leeds City Council,31/03/2021,Resources and Housing,Leeds Building Services,Supplies and Services,Operational Materials,205,18/03/2021,2103-00138,0.00,47.79,R,A J H  Pump Supply & Repair Ltd,No
Http://opendatacommunities.org/id/metropolitan-district-council/leeds,Leeds City Council,31/03/2021,Resources and Housing,Leeds Building Services,Supplies and Services,Operational Materials,205,18/03/2021,2103-00139,0.00,345.00,R,A J H  Pump Supply & Repair Ltd,No
Http://opendatacommunities.org/id/metropolitan-district-council/leeds,Leeds City Council,31/03/2021,Resources and Housing,Leeds Building Services,Supplies and Services,Operational Materials,205,18/03/2021,2103-00140,0.00,82.14,R,A J H  Pump Supply & Repair Ltd,No
Http://opendatacommunities.org/id/metropolitan-district-council/leeds,Leeds City Council,31/03/2021,Resources and Housing,Leeds Building Services,Supplies and Services,Operational Materials,205,18/03/2021,2103-00141,0.00,183.00,R,A J H  Pump Supply & Repair Ltd,No
Http://opendatacommunities.org/id/metropolitan-district-council/leeds,Leeds City Council,31/03/2021,Resources and Housing,Leeds Building Services,Supplies and Services,Operational Materials,205,18/03/2021,2103-00142,0.00,1188.00,R,A J H  Pump Supply & Repair Ltd,No
Http://opendatacommunities.org/id/metropolitan-district-council/leeds,Leeds City Council,31/03/2021,Resources and Housing,Leeds Building Services,Supplies and Services,Operational Materials,205,25/03/2021,2103-00143,0.00,134.02,R,A J H  Pump Supply & Repair Ltd,No
Http://opendatacommunities.org/id/metropolitan-district-council/leeds,Leeds City Council,31/03/2021,Resources and Housing,Leeds Building Services,Supplies and Services,Operational Materials,205,25/03/2021,2103-00144,0.00,475.00,R,A J H  Pump Supply & Repair Ltd,No
Http://opendatacommunities.org/id/metropolitan-district-council/leeds,Leeds City Council,31/03/2021,Resources and Housing,Leeds Building Services,Supplies and Services,Operational Materials,205,25/03/2021,2103-00145,0.00,25.36,R,A J H  Pump Supply & Repair Ltd,No
Http://opendatacommunities.org/id/metropolitan-district-council/leeds,Leeds City Council,31/03/2021,Resources and Housing,Leeds Building Services,Supplies and Services,Operational Materials,205,25/03/2021,2103-00146,0.00,71.85,R,A J H  Pump Supply & Repair Ltd,No
Http://opendatacommunities.org/id/metropolitan-district-council/leeds,Leeds City Council,31/03/2021,Resources and Housing,Leeds Building Services,Supplies and Services,Operational Materials,205,25/03/2021,2103-00147,0.00,17.06,R,A J H  Pump Supply & Repair Ltd,No
Http://opendatacommunities.org/id/metropolitan-district-council/leeds,Leeds City Council,31/03/2021,Resources and Housing,Leeds Building Services,Supplies and Services,Operational Materials,205,25/03/2021,2103-00148,0.00,118.44,R,A J H  Pump Supply & Repair Ltd,No
Http://opendatacommunities.org/id/metropolitan-district-council/leeds,Leeds City Council,31/03/2021,Resources and Housing,Leeds Building Services,Supplies and Services,Operational Materials,205,25/03/2021,2103-00149,0.00,975.00,R,A J H  Pump Supply & Repair Ltd,No
Http://opendatacommunities.org/id/metropolitan-district-council/leeds,Leeds City Council,31/03/2021,Resources and Housing,Leeds Building Services,Supplies and Services,Operational Materials,205,25/03/2021,2103-00150,0.00,195.32,R,A J H  Pump Supply & Repair Ltd,No
Http://opendatacommunities.org/id/metropolitan-district-council/leeds,Leeds City Council,31/03/2021,Resources and Housing,Leeds Building Services,Supplies and Services,Operational Materials,205,25/03/2021,2103-00151,0.00,39.71,R,A J H  Pump Supply & Repair Ltd,No
Http://opendatacommunities.org/id/metropolitan-district-council/leeds,Leeds City Council,31/03/2021,Resources and Housing,Leeds Building Services,Supplies and Services,Operational Materials,205,25/03/2021,2103-00152,0.00,9.95,R,A J H  Pump Supply & Repair Ltd,No
Http://opendatacommunities.org/id/metropolitan-district-council/leeds,Leeds City Council,31/03/2021,Resources and Housing,Leeds Building Services,Supplies and Services,Operational Materials,205,25/03/2021,2103-00153,0.00,118.44,R,A J H  Pump Supply & Repair Ltd,No
Http://opendatacommunities.org/id/metropolitan-district-council/leeds,Leeds City Council,31/03/2021,Resources and Housing,Leeds Building Services,Supplies and Services,Operational Materials,205,25/03/2021,2103-00154,0.00,233.64,R,A J H  Pump Supply & Repair Ltd,No
Http://opendatacommunities.org/id/metropolitan-district-council/leeds,Leeds City Council,31/03/2021,Resources and Housing,Leeds Building Services,Supplies and Services,Operational Materials,205,25/03/2021,2103-00155,0.00,220.00,R,A J H  Pump Supply & Repair Ltd,No
Http://opendatacommunities.org/id/metropolitan-district-council/leeds,Leeds City Council,31/03/2021,Resources and Housing,Leeds Building Services,Supplies and Services,Operational Materials,205,25/03/2021,2103-00156,0.00,886.00,R,A J H  Pump Supply & Repair Ltd,No
Http://opendatacommunities.org/id/metropolitan-district-council/leeds,Leeds City Council,31/03/2021,Resources and Housing,Leeds Building Services,Supplies and Services,Operational Materials,205,25/03/2021,2103-00157,0.00,225.00,R,A J H  Pump Supply & Repair Ltd,No
Http://opendatacommunities.org/id/metropolitan-district-council/leeds,Leeds City Council,31/03/2021,Resources and Housing,Leeds Building Services,Supplies and Services,Operational Materials,205,25/03/2021,2103-00158,0.00,225.00,R,A J H  Pump Supply & Repair Ltd,No
Http://opendatacommunities.org/id/metropolitan-district-council/leeds,Leeds City Council,31/03/2021,Resources and Housing,Leeds Building Services,Supplies and Services,Operational Materials,205,25/03/2021,2103-00159,0.00,126.00,R,A J H  Pump Supply & Repair Ltd,No
Http://opendatacommunities.org/id/metropolitan-district-council/leeds,Leeds City Council,31/03/2021,Resources and Housing,Leeds Building Services,Supplies and Services,Operational Materials,205,25/03/2021,2103-00160,0.00,11.90,R,A J H  Pump Supply & Repair Ltd,No
Http://opendatacommunities.org/id/metropolitan-district-council/leeds,Leeds City Council,31/03/2021,Resources and Housing,Leeds Building Services,Supplies and Services,Operational Materials,205,25/03/2021,2103-00161,0.00,30.45,R,A J H  Pump Supply & Repair Ltd,No
Http://opendatacommunities.org/id/metropolitan-district-council/leeds,Leeds City Council,31/03/2021,Resources and Housing,Leeds Building Services,Supplies and Services,Operational Materials,205,25/03/2021,2103-00162,0.00,26.34,R,A J H  Pump Supply & Repair Ltd,No
Http://opendatacommunities.org/id/metropolitan-district-council/leeds,Leeds City Council,31/03/2021,Resources and Housing,Leeds Building Services,Supplies and Services,Operational Materials,205,25/03/2021,2103-00163,0.00,26.35,R,A J H  Pump Supply & Repair Ltd,No
Http://opendatacommunities.org/id/metropolitan-district-council/leeds,Leeds City Council,31/03/2021,Resources and Housing,Leeds Building Services,Supplies and Services,Operational Materials,205,26/03/2021,2103-00164,0.00,56.00,R,A J H  Pump Supply & Repair Ltd,No
Http://opendatacommunities.org/id/metropolitan-district-council/leeds,Leeds City Council,31/03/2021,Resources and Housing,Leeds Building Services,Supplies and Services,Operational Materials,205,26/03/2021,2103-00165,0.00,43.50,R,A J H  Pump Supply & Repair Ltd,No
Http://opendatacommunities.org/id/metropolitan-district-council/leeds,Leeds City Council,31/03/2021,Resources and Housing,Leeds Building Services,Supplies and Services,Operational Materials,205,30/03/2021,2103-00166,0.00,576.68,R,A J H  Pump Supply & Repair Ltd,No
Http://opendatacommunities.org/id/metropolitan-district-council/leeds,Leeds City Council,31/03/2021,Resources and Housing,Leeds Building Services,Supplies and Services,Operational Materials,205,30/03/2021,2103-00167,0.00,397.00,R,A J H  Pump Supply & Repair Ltd,No
Http://opendatacommunities.org/id/metropolitan-district-council/leeds,Leeds City Council,31/03/2021,Resources and Housing,Leeds Building Services,Supplies and Services,Operational Materials,205,30/03/2021,2103-00168,0.00,241.98,R,A J H  Pump Supply & Repair Ltd,No
Http://opendatacommunities.org/id/metropolitan-district-council/leeds,Leeds City Council,31/03/2021,Resources and Housing,Leeds Building Services,Supplies and Services,Operational Materials,205,30/03/2021,2103-00169,0.00,28.30,R,A J H  Pump Supply & Repair Ltd,No
Http://opendatacommunities.org/id/metropolitan-district-council/leeds,Leeds City Council,31/03/2021,Resources and Housing,Leeds Building Services,Supplies and Services,Operational Materials,205,30/03/2021,2103-00170,0.00,118.44,R,A J H  Pump Supply & Repair Ltd,No
Http://opendatacommunities.org/id/metropolitan-district-council/leeds,Leeds City Council,31/03/2021,Resources and Housing,Leeds Building Services,Supplies and Services,Other Hired And Contracted Services,265,31/03/2021,2103-00171,0.00,195.00,R,A J H  Pump Supply & Repair Ltd,No
Http://opendatacommunities.org/id/metropolitan-district-council/leeds,Leeds City Council,31/03/2021,City Development,Economic Development,Supplies and Services,Grant Related Expenditure,290,22/03/2021,2103-00172,0.00,2760.00,R,A J Yeadon,No
Http://opendatacommunities.org/id/metropolitan-district-council/leeds,Leeds City Council,31/03/2021,Children and Families,Social Care,Third Party Payments,Services Rendered By Other Organisations,511,03/03/2021,2103-00173,0.00,316.80,R,REDACTED PERSONAL DATA,No
Http://opendatacommunities.org/id/metropolitan-district-council/leeds,Leeds City Council,31/03/2021,Children and Families,Social Care,Third Party Payments,Services Rendered By Other Organisations,511,05/03/2021,2103-00174,0.00,2102.40,R,REDACTED PERSONAL DATA,No
Http://opendatacommunities.org/id/metropolitan-district-council/leeds,Leeds City Council,31/03/2021,Children and Families,Social Care,Third Party Payments,General External Residential Placements,507,04/03/2021,2103-00175,0.00,7417.12,R,A Lowrie Care Service Limited,No
Http://opendatacommunities.org/id/metropolitan-district-council/leeds,Leeds City Council,31/03/2021,Children and Families,Social Care,Third Party Payments,General External Residential Placements,507,26/03/2021,2103-00176,0.00,16182.84,R,A Lowrie Care Service Limited,No
Http://opendatacommunities.org/id/metropolitan-district-council/leeds,Leeds City Council,31/03/2021,Resources and Housing,HRA Housing Leeds,Capital,OTHER COSTS,7,30/03/2021,2103-00177,0.00,170.09,C,REDACTED PERSONAL DATA,No
Http://opendatacommunities.org/id/metropolitan-district-council/leeds,Leeds City Council,31/03/2021,Communities and Environment,Customer Access,Supplies and Services,Bought In Professional Services,277,03/03/2021,2103-00178,0.00,22.50,R,A MOHAMMED,No
Http://opendatacommunities.org/id/metropolitan-district-council/leeds,Leeds City Council,31/03/2021,Communities and Environment,Customer Access,Supplies and Services,Bought In Professional Services,277,03/03/2021,2103-00179,0.00,27.00,R,A MOHAMMED,No
Http://opendatacommunities.org/id/metropolitan-district-council/leeds,Leeds City Council,31/03/2021,Communities and Environment,Customer Access,Supplies and Services,Bought In Professional Services,277,03/03/2021,2103-00180,0.00,27.00,R,A MOHAMMED,No
Http://opendatacommunities.org/id/metropolitan-district-council/leeds,Leeds City Council,31/03/2021,Communities and Environment,Customer Access,Supplies and Services,Bought In Professional Services,277,03/03/2021,2103-00181,0.00,18.00,R,A MOHAMMED,No
Http://opendatacommunities.org/id/metropolitan-district-council/leeds,Leeds City Council,31/03/2021,Communities and Environment,Customer Access,Supplies and Services,Bought In Professional Services,277,03/03/2021,2103-00182,0.00,9.00,R,A MOHAMMED,No
Http://opendatacommunities.org/id/metropolitan-district-council/leeds,Leeds City Council,31/03/2021,Communities and Environment,Customer Access,Supplies and Services,Bought In Professional Services,277,03/03/2021,2103-00183,0.00,18.00,R,A MOHAMMED,No
Http://opendatacommunities.org/id/metropolitan-district-council/leeds,Leeds City Council,31/03/2021,Communities and Environment,Customer Access,Supplies and Services,Bought In Professional Services,277,10/03/2021,2103-00184,0.00,22.50,R,A MOHAMMED,No
Http://opendatacommunities.org/id/metropolitan-district-council/leeds,Leeds City Council,31/03/2021,Communities and Environment,Customer Access,Supplies and Services,Bought In Professional Services,277,10/03/2021,2103-00185,0.00,18.00,R,A MOHAMMED,No
Http://opendatacommunities.org/id/metropolitan-district-council/leeds,Leeds City Council,31/03/2021,Communities and Environment,Customer Access,Supplies and Services,Bought In Professional Services,277,10/03/2021,2103-00186,0.00,9.00,R,A MOHAMMED,No
Http://opendatacommunities.org/id/metropolitan-district-council/leeds,Leeds City Council,31/03/2021,Communities and Environment,Customer Access,Supplies and Services,Bought In Professional Services,277,10/03/2021,2103-00187,0.00,36.00,R,A MOHAMMED,No
Http://opendatacommunities.org/id/metropolitan-district-council/leeds,Leeds City Council,31/03/2021,Communities and Environment,Customer Access,Supplies and Services,Bought In Professional Services,277,10/03/2021,2103-00188,0.00,27.00,R,A MOHAMMED,No
Http://opendatacommunities.org/id/metropolitan-district-council/leeds,Leeds City Council,31/03/2021,Communities and Environment,Customer Access,Supplies and Services,Bought In Professional Services,277,10/03/2021,2103-00189,0.00,18.00,R,A MOHAMMED,No
Http://opendatacommunities.org/id/metropolitan-district-council/leeds,Leeds City Council,31/03/2021,Communities and Environment,Customer Access,Supplies and Services,Bought In Professional Services,277,10/03/2021,2103-00190,0.00,18.00,R,A MOHAMMED,No
Http://opendatacommunities.org/id/metropolitan-district-council/leeds,Leeds City Council,31/03/2021,Communities and Environment,Customer Access,Supplies and Services,Bought In Professional Services,277,10/03/2021,2103-00191,0.00,22.50,R,A MOHAMMED,No
Http://opendatacommunities.org/id/metropolitan-district-council/leeds,Leeds City Council,31/03/2021,Communities and Environment,Customer Access,Supplies and Services,Bought In Professional Services,277,10/03/2021,2103-00192,0.00,9.00,R,A MOHAMMED,No
Http://opendatacommunities.org/id/metropolitan-district-council/leeds,Leeds City Council,31/03/2021,Communities and Environment,Customer Access,Supplies and Services,Bought In Professional Services,277,22/03/2021,2103-00193,0.00,18.00,R,A MOHAMMED,No
Http://opendatacommunities.org/id/metropolitan-district-council/leeds,Leeds City Council,31/03/2021,Communities and Environment,Customer Access,Supplies and Services,Bought In Professional Services,277,22/03/2021,2103-00194,0.00,34.50,R,A MOHAMMED,No
Http://opendatacommunities.org/id/metropolitan-district-council/leeds,Leeds City Council,31/03/2021,Communities and Environment,Customer Access,Supplies and Services,Bought In Professional Services,277,22/03/2021,2103-00195,0.00,13.50,R,A MOHAMMED,No
Http://opendatacommunities.org/id/metropolitan-district-council/leeds,Leeds City Council,31/03/2021,Communities and Environment,Customer Access,Supplies and Services,Bought In Professional Services,277,22/03/2021,2103-00196,0.00,27.00,R,A MOHAMMED,No
Http://opendatacommunities.org/id/metropolitan-district-council/leeds,Leeds City Council,31/03/2021,Communities and Environment,Customer Access,Supplies and Services,Bought In Professional Services,277,22/03/2021,2103-00197,0.00,27.00,R,A MOHAMMED,No
Http://opendatacommunities.org/id/metropolitan-district-council/leeds,Leeds City Council,31/03/2021,Communities and Environment,Customer Access,Supplies and Services,Bought In Professional Services,277,24/03/2021,2103-00198,0.00,27.00,R,A MOHAMMED,No
Http://opendatacommunities.org/id/metropolitan-district-council/leeds,Leeds City Council,31/03/2021,Communities and Environment,Customer Access,Supplies and Services,Bought In Professional Services,277,24/03/2021,2103-00199,0.00,27.00,R,A MOHAMMED,No
Http://opendatacommunities.org/id/metropolitan-district-council/leeds,Leeds City Council,31/03/2021,Communities and Environment,Customer Access,Supplies and Services,Bought In Professional Services,277,24/03/2021,2103-00200,0.00,18.00,R,A MOHAMMED,No
Http://opendatacommunities.org/id/metropolitan-district-council/leeds,Leeds City Council,31/03/2021,Communities and Environment,Customer Access,Supplies and Services,Bought In Professional Services,277,24/03/2021,2103-00201,0.00,18.00,R,A MOHAMMED,No
Http://opendatacommunities.org/id/metropolitan-district-council/leeds,Leeds City Council,31/03/2021,Communities and Environment,Customer Access,Supplies and Services,Bought In Professional Services,277,24/03/2021,2103-00202,0.00,18.00,R,A MOHAMMED,No
Http://opendatacommunities.org/id/metropolitan-district-council/leeds,Leeds City Council,31/03/2021,Communities and Environment,Customer Access,Supplies and Services,Bought In Professional Services,277,24/03/2021,2103-00203,0.00,18.00,R,A MOHAMMED,No
Http://opendatacommunities.org/id/metropolitan-district-council/leeds,Leeds City Council,31/03/2021,Communities and Environment,Customer Access,Supplies and Services,Bought In Professional Services,277,24/03/2021,2103-00204,0.00,45.00,R,A MOHAMMED,No
Http://opendatacommunities.org/id/metropolitan-district-council/leeds,Leeds City Council,31/03/2021,Communities and Environment,Customer Access,Supplies and Services,Bought In Professional Services,277,24/03/2021,2103-00205,0.00,13.50,R,A MOHAMMED,No
Http://opendatacommunities.org/id/metropolitan-district-council/leeds,Leeds City Council,31/03/2021,Communities and Environment,Customer Access,Supplies and Services,Bought In Professional Services,277,31/03/2021,2103-00206,0.00,18.00,R,A MOHAMMED,No
Http://opendatacommunities.org/id/metropolitan-district-council/leeds,Leeds City Council,31/03/2021,Communities and Environment,Customer Access,Supplies and Services,Bought In Professional Services,277,31/03/2021,2103-00207,0.00,18.00,R,A MOHAMMED,No
Http://opendatacommunities.org/id/metropolitan-district-council/leeds,Leeds City Council,31/03/2021,Communities and Environment,Customer Access,Supplies and Services,Bought In Professional Services,277,31/03/2021,2103-00208,0.00,18.00,R,A MOHAMMED,No
Http://opendatacommunities.org/id/metropolitan-district-council/leeds,Leeds City Council,31/03/2021,Communities and Environment,Customer Access,Supplies and Services,Bought In Professional Services,277,31/03/2021,2103-00209,0.00,36.00,R,A MOHAMMED,No
Http://opendatacommunities.org/id/metropolitan-district-council/leeds,Leeds City Council,31/03/2021,Communities and Environment,Customer Access,Supplies and Services,Bought In Professional Services,277,31/03/2021,2103-00210,0.00,18.00,R,A MOHAMMED,No
Http://opendatacommunities.org/id/metropolitan-district-council/leeds,Leeds City Council,31/03/2021,Communities and Environment,Customer Access,Supplies and Services,Bought In Professional Services,277,31/03/2021,2103-00211,0.00,18.00,R,A MOHAMMED,No
Http://opendatacommunities.org/id/metropolitan-district-council/leeds,Leeds City Council,31/03/2021,Communities and Environment,Customer Access,Supplies and Services,Bought In Professional Services,277,31/03/2021,2103-00212,0.00,9.00,R,A MOHAMMED,No
Http://opendatacommunities.org/id/metropolitan-district-council/leeds,Leeds City Council,31/03/2021,Communities and Environment,Customer Access,Supplies and Services,Bought In Professional Services,277,31/03/2021,2103-00213,0.00,18.00,R,A MOHAMMED,No
Http://opendatacommunities.org/id/metropolitan-district-council/leeds,Leeds City Council,31/03/2021,Children and Families,Social Care,Third Party Payments,Services Rendered By Other Organisations,511,03/03/2021,2103-00214,0.00,2217.60,R,REDACTED PERSONAL DATA,No
Http://opendatacommunities.org/id/metropolitan-district-council/leeds,Leeds City Council,31/03/2021,Children and Families,Social Care,Third Party Payments,Services Rendered By Other Organisations,511,05/03/2021,2103-00215,0.00,1314.00,R,REDACTED PERSONAL DATA,No
Http://opendatacommunities.org/id/metropolitan-district-council/leeds,Leeds City Council,31/03/2021,Children and Families,Social Care,Third Party Payments,Services Rendered By Other Organisations,511,05/03/2021,2103-00216,0.00,156.60,R,REDACTED PERSONAL DATA,No
Http://opendatacommunities.org/id/metropolitan-district-council/leeds,Leeds City Council,31/03/2021,Children and Families,Social Care,Third Party Payments,Services Rendered By Other Organisations,511,05/03/2021,2103-00217,0.00,190.80,R,REDACTED PERSONAL DATA,No
Http://opendatacommunities.org/id/metropolitan-district-council/leeds,Leeds City Council,31/03/2021,Communities and Environment,Customer Access,Supplies and Services,Bought In Professional Services,277,10/03/2021,2103-00218,0.00,18.00,R,A NAMAKI,No
Http://opendatacommunities.org/id/metropolitan-district-council/leeds,Leeds City Council,31/03/2021,Communities and Environment,Customer Access,Supplies and Services,Bought In Professional Services,277,22/03/2021,2103-00219,0.00,18.00,R,A NAMAKI,No
Http://opendatacommunities.org/id/metropolitan-district-council/leeds,Leeds City Council,31/03/2021,Communities and Environment,Customer Access,Supplies and Services,Bought In Professional Services,277,22/03/2021,2103-00220,0.00,22.50,R,A NAMAKI,No
Http://opendatacommunities.org/id/metropolitan-district-council/leeds,Leeds City Council,31/03/2021,Communities and Environment,Customer Access,Supplies and Services,Bought In Professional Services,277,24/03/2021,2103-00221,0.00,18.00,R,A NAMAKI,No
Http://opendatacommunities.org/id/metropolitan-district-council/leeds,Leeds City Council,31/03/2021,Communities and Environment,Customer Access,Supplies and Services,Bought In Professional Services,277,31/03/2021,2103-00222,0.00,22.50,R,A NAMAKI,No
Http://opendatacommunities.org/id/metropolitan-district-council/leeds,Leeds City Council,31/03/2021,Children and Families,Social Care,Third Party Payments,Services Rendered By Other Organisations,511,05/03/2021,2103-00223,0.00,262.80,R,REDACTED PERSONAL DATA,No
Http://opendatacommunities.org/id/metropolitan-district-council/leeds,Leeds City Council,31/03/2021,Communities and Environment,Parks and Countryside,Supplies and Services,Operational Materials,205,19/03/2021,2103-00224,0.00,978.00,R,A NEWTON,No
Http://opendatacommunities.org/id/metropolitan-district-council/leeds,Leeds City Council,31/03/2021,Children and Families,Social Care,Third Party Payments,Section 17,551,05/03/2021,2103-00225,0.00,75.90,R,REDACTED PERSONAL DATA,No
Http://opendatacommunities.org/id/metropolitan-district-council/leeds,Leeds City Council,31/03/2021,Communities and Environment,Parks and Countryside,Supplies and Services,Other Hired And Contracted Services,265,26/03/2021,2103-00226,0.00,163.50,R,A R Twigg & Son Limited,No
Http://opendatacommunities.org/id/metropolitan-district-council/leeds,Leeds City Council,31/03/2021,Children and Families,Social Care,Third Party Payments,Services Rendered By Other Organisations,511,05/03/2021,2103-00227,0.00,788.40,R,REDACTED PERSONAL DATA,No
Http://opendatacommunities.org/id/metropolitan-district-council/leeds,Leeds City Council,31/03/2021,Resources and Housing,Shared Services,Supplies and Services,Other Hired And Contracted Services,265,31/03/2021,2103-00228,0.00,40.00,R,A Star Couriers Ltd,No
Http://opendatacommunities.org/id/metropolitan-district-council/leeds,Leeds City Council,31/03/2021,City Development,Economic Development,Supplies and Services,Grant Related Expenditure,298,11/03/2021,2103-00229,0.00,500.00,R,A Star Driving School,No
Http://opendatacommunities.org/id/metropolitan-district-council/leeds,Leeds City Council,31/03/2021,Children and Families,Social Care,Third Party Payments,Independent Fostering Agencies,509,05/03/2021,2103-00230,0.00,1440.00,R,A Taxis,No
Http://opendatacommunities.org/id/metropolitan-district-council/leeds,Leeds City Council,31/03/2021,City Development,Economic Development,Supplies and Services,Grant Related Expenditure,298,15/03/2021,2103-00231,0.00,500.00,R,A Van About Town,No
Http://opendatacommunities.org/id/metropolitan-district-council/leeds,Leeds City Council,31/03/2021,Children and Families,Social Care,Third Party Payments,Services Rendered By Other Organisations,511,03/03/2021,2103-00232,0.00,316.80,R,REDACTED PERSONAL DATA,No
Http://opendatacommunities.org/id/metropolitan-district-council/leeds,Leeds City Council,31/03/2021,Children and Families,Social Care,Third Party Payments,Services Rendered By Other Organisations,511,05/03/2021,2103-00233,0.00,525.60,R,REDACTED PERSONAL DATA,No
Http://opendatacommunities.org/id/metropolitan-district-council/leeds,Leeds City Council,31/03/2021,Children and Families,Social Care,Third Party Payments,Services Rendered By Other Organisations,511,05/03/2021,2103-00234,0.00,122.40,R,REDACTED PERSONAL DATA,No
Http://opendatacommunities.org/id/metropolitan-district-council/leeds,Leeds City Council,31/03/2021,Children and Families,Social Care,Third Party Payments,General External Residential Placements,507,03/03/2021,2103-00235,0.00,417.70,R,A Wilderness Way Ltd,No
Http://opendatacommunities.org/id/metropolitan-district-council/leeds,Leeds City Council,31/03/2021,Children and Families,Social Care,Third Party Payments,General External Residential Placements,507,05/03/2021,2103-00236,0.00,30343.88,R,A Wilderness Way Ltd,No
Http://opendatacommunities.org/id/metropolitan-district-council/leeds,Leeds City Council,31/03/2021,Children and Families,Social Care,Third Party Payments,General External Residential Placements,507,05/03/2021,2103-00237,0.00,15171.94,R,A Wilderness Way Ltd,No
Http://opendatacommunities.org/id/metropolitan-district-council/leeds,Leeds City Council,31/03/2021,Children and Families,Social Care,Third Party Payments,General External Residential Placements,507,05/03/2021,2103-00238,0.00,2100.00,R,A Wilderness Way Ltd,No
Http://opendatacommunities.org/id/metropolitan-district-council/leeds,Leeds City Council,31/03/2021,Children and Families,Social Care,Third Party Payments,General External Residential Placements,507,19/03/2021,2103-00239,0.00,33595.01,R,A Wilderness Way Ltd,No
Http://opendatacommunities.org/id/metropolitan-district-council/leeds,Leeds City Council,31/03/2021,Communities and Environment,Waste Management,Capital,FURNITURE AND EQUIPMENT,5,19/03/2021,2103-00240,0.00,12450.00,C,A&C Weber Uk Ltd,No
Http://opendatacommunities.org/id/metropolitan-district-council/leeds,Leeds City Council,31/03/2021,Children and Families,Social Care  ,Transfer Payments,Leaving Care Grants,635,01/02/2021,2103-00241,0.00,409.20,R,A&h Bros Ltd,Yes
Http://opendatacommunities.org/id/metropolitan-district-council/leeds,Leeds City Council,31/03/2021,Children and Families,Social Care,Third Party Payments,Section 17,551,05/03/2021,2103-00242,0.00,50.00,R,REDACTED PERSONAL DATA,No
Http://opendatacommunities.org/id/metropolitan-district-council/leeds,Leeds City Council,31/03/2021,Communities and Environment,Benefits Welfare and Poverty,Supplies and Services,Grant Related Expenditure,298,19/03/2021,2103-00243,0.00,500.00,R,REDACTED PERSONAL DATA,No
Http://opendatacommunities.org/id/metropolitan-district-council/leeds,Leeds City Council,31/03/2021,Adults and Health,Services For Older People - 65 And Over,Third Party Payments,Residential Care Dementia,571,31/03/2021,2103-00244,0.00,11536.10,R,Aaron Court Care Home,No
Http://opendatacommunities.org/id/metropolitan-district-council/leeds,Leeds City Council,31/03/2021,Children and Families,Social Care,Third Party Payments,Section 17,551,08/03/2021,2103-00245,0.00,117.52,R,REDACTED PERSONAL DATA,No
Http://opendatacommunities.org/id/metropolitan-district-council/leeds,Leeds City Council,31/03/2021,Communities and Environment,Benefits Welfare and Poverty,Supplies and Services,Grant Related Expenditure,290,16/03/2021,2103-00246,0.00,500.00,R,REDACTED PERSONAL DATA,No
Http://opendatacommunities.org/id/metropolitan-district-council/leeds,Leeds City Council,31/03/2021,Communities and Environment,Benefits Welfare and Poverty,Supplies and Services,Grant Related Expenditure,298,31/03/2021,2103-00247,0.00,500.00,R,REDACTED PERSONAL DATA,No
Http://opendatacommunities.org/id/metropolitan-district-council/leeds,Leeds City Council,31/03/2021,Communities and Environment,Benefits Welfare and Poverty,Supplies and Services,Grant Related Expenditure,298,10/03/2021,2103-00248,0.00,500.00,R,REDACTED PERSONAL DATA,No
Http://opendatacommunities.org/id/metropolitan-district-council/leeds,Leeds City Council as Accountable Body,31/03/2021,Social Services Pooled Budgets,Leeds Community Equip Store Pooled Budgt,Supplies and Services,Other Equipment,203,05/03/2021,2103-00249,0.00,249.00,R,AAT (GB) LTD,No
Http://opendatacommunities.org/id/metropolitan-district-council/leeds,Leeds City Council as Accountable Body,31/03/2021,Social Services Pooled Budgets,Leeds Community Equip Store Pooled Budgt,Supplies and Services,Other Equipment,203,08/03/2021,2103-00250,0.00,360.00,R,AAT (GB) LTD,No
Http://opendatacommunities.org/id/metropolitan-district-council/leeds,Leeds City Council as Accountable Body,31/03/2021,Social Services Pooled Budgets,Leeds Community Equip Store Pooled Budgt,Supplies and Services,Other Equipment,203,11/03/2021,2103-00251,0.00,249.00,R,AAT (GB) LTD,No
Http://opendatacommunities.org/id/metropolitan-district-council/leeds,Leeds City Council,31/03/2021,Communities and Environment,Customer Access  ,Supplies and Services,Books & Audio-Visual Materials,206,22/02/2021,2103-00252,0.00,304.00,R,Ab* Abebooks.Uk Ili6e9,Yes
Http://opendatacommunities.org/id/metropolitan-district-council/leeds,Leeds City Council,31/03/2021,Communities and Environment,Customer Access  ,Supplies and Services,Books & Audio-Visual Materials,206,22/02/2021,2103-00253,0.00,655.00,R,Ab* Abebooks.Uk Ili6ea,Yes
Http://opendatacommunities.org/id/metropolitan-district-council/leeds,Leeds City Council,31/03/2021,Communities and Environment,Customer Access  ,Supplies and Services,Books & Audio-Visual Materials,206,22/02/2021,2103-00254,0.00,254.95,R,Ab* Abebooks.Uk Ili6eb,Yes
Http://opendatacommunities.org/id/metropolitan-district-council/leeds,Leeds City Council,31/03/2021,Communities and Environment,Customer Access  ,Supplies and Services,Books & Audio-Visual Materials,206,22/02/2021,2103-00255,0.00,240.63,R,Ab* Abebooks.Uk Ili6ec,Yes
Http://opendatacommunities.org/id/metropolitan-district-council/leeds,Leeds City Council,31/03/2021,Communities and Environment,Customer Access  ,Supplies and Services,Books & Audio-Visual Materials,206,22/02/2021,2103-00256,0.00,223.85,R,Ab* Abebooks.Uk Ili6ed,Yes
Http://opendatacommunities.org/id/metropolitan-district-council/leeds,Leeds City Council,31/03/2021,Communities and Environment,Customer Access  ,Supplies and Services,Books & Audio-Visual Materials,206,22/02/2021,2103-00257,0.00,550.00,R,Ab* Abebooks.Uk Ili6ee,Yes
Http://opendatacommunities.org/id/metropolitan-district-council/leeds,Leeds City Council,31/03/2021,Communities and Environment,Customer Access  ,Supplies and Services,Books & Audio-Visual Materials,206,22/02/2021,2103-00258,0.00,603.95,R,Ab* Abebooks.Uk Ili6ef,Yes
Http://opendatacommunities.org/id/metropolitan-district-council/leeds,Leeds City Council,31/03/2021,Communities and Environment,Customer Access,Supplies and Services,Bought In Professional Services,277,10/03/2021,2103-00259,0.00,18.00,R,Abadit Kiros,No
Http://opendatacommunities.org/id/metropolitan-district-council/leeds,Leeds City Council,31/03/2021,Communities and Environment,Customer Access,Supplies and Services,Bought In Professional Services,277,24/03/2021,2103-00260,0.00,18.00,R,Abadit Kiros,No
Http://opendatacommunities.org/id/metropolitan-district-council/leeds,Leeds City Council,31/03/2021,Communities and Environment,Customer Access,Supplies and Services,Bought In Professional Services,277,24/03/2021,2103-00261,0.00,18.00,R,Abadit Kiros,No
Http://opendatacommunities.org/id/metropolitan-district-council/leeds,Leeds City Council,31/03/2021,Communities and Environment,Customer Access,Supplies and Services,Bought In Professional Services,277,31/03/2021,2103-00262,0.00,18.00,R,Abadit Kiros,No
Http://opendatacommunities.org/id/metropolitan-district-council/leeds,Leeds City Council,31/03/2021,Communities and Environment,Customer Access,Supplies and Services,Bought In Professional Services,277,31/03/2021,2103-00263,0.00,18.00,R,Abadit Kiros,No
Http://opendatacommunities.org/id/metropolitan-district-council/leeds,Leeds City Council,31/03/2021,Communities and Environment,Customer Access,Supplies and Services,Bought In Professional Services,277,31/03/2021,2103-00264,0.00,18.00,R,Abadit Kiros,No
Http://opendatacommunities.org/id/metropolitan-district-council/leeds,Leeds City Council,31/03/2021,Communities and Environment,Customer Access,Supplies and Services,Bought In Professional Services,277,31/03/2021,2103-00265,0.00,31.50,R,Abadit Kiros,No
Http://opendatacommunities.org/id/metropolitan-district-council/leeds,Leeds City Council,31/03/2021,Communities and Environment,Customer Access,Supplies and Services,Bought In Professional Services,277,31/03/2021,2103-00266,0.00,22.50,R,Abadit Kiros,No
Http://opendatacommunities.org/id/metropolitan-district-council/leeds,Leeds City Council,31/03/2021,City Development,Recreation,Income,Sporting & Other Recreational Fees,928,16/03/2021,2103-00267,0.00,24.95,R,REDACTED PERSONAL DATA,No
Http://opendatacommunities.org/id/metropolitan-district-council/leeds,Leeds City Council,31/03/2021,Children and Families,Social Care,Third Party Payments,Services Rendered By Other Organisations,511,05/03/2021,2103-00268,0.00,32324.40,R,Abbey Multi Academy Trust,No
Http://opendatacommunities.org/id/metropolitan-district-council/leeds,Leeds City Council,31/03/2021,Children and Families,Social Care,Third Party Payments,Services Rendered By Other Organisations,511,05/03/2021,2103-00269,0.00,1037.76,R,Abbey Multi Academy Trust,No
Http://opendatacommunities.org/id/metropolitan-district-council/leeds,Leeds City Council,31/03/2021,Children and Families,Social Care,Third Party Payments,Services Rendered By Other Organisations,511,05/03/2021,2103-00270,0.00,190.80,R,Abbey Multi Academy Trust,No
Http://opendatacommunities.org/id/metropolitan-district-council/leeds,Leeds City Council,31/03/2021,Children and Families,Social Care,Third Party Payments,Services Rendered By Other Organisations,511,03/03/2021,2103-00271,0.00,475.20,R,REDACTED PERSONAL DATA,No
Http://opendatacommunities.org/id/metropolitan-district-council/leeds,Leeds City Council,31/03/2021,Communities and Environment,Parks and Countryside,Supplies and Services,Other Hired And Contracted Services,265,05/03/2021,2103-00272,0.00,550.00,R,Abbotts Memorials,No
Http://opendatacommunities.org/id/metropolitan-district-council/leeds,Leeds City Council,31/03/2021,Communities and Environment,Parks and Countryside,Supplies and Services,Other Hired And Contracted Services,265,19/03/2021,2103-00273,0.00,550.00,R,Abbotts Memorials,No
Http://opendatacommunities.org/id/metropolitan-district-council/leeds,Leeds City Council,31/03/2021,Children and Families,Social Care,Third Party Payments,Services Rendered By Other Organisations,511,03/03/2021,2103-00274,0.00,2296.80,R,Abc Daycare And Ozone Out Of School,No
Http://opendatacommunities.org/id/metropolitan-district-council/leeds,Leeds City Council,31/03/2021,Children and Families,Social Care,Third Party Payments,Services Rendered By Other Organisations,511,05/03/2021,2103-00275,0.00,7776.30,R,Abc Daycare And Ozone Out Of School,No
Http://opendatacommunities.org/id/metropolitan-district-council/leeds,Leeds City Council,31/03/2021,Children and Families,Social Care,Third Party Payments,Services Rendered By Other Organisations,511,05/03/2021,2103-00276,0.00,615.00,R,Abc Daycare And Ozone Out Of School,No
Http://opendatacommunities.org/id/metropolitan-district-council/leeds,Leeds City Council,31/03/2021,Children and Families,Social Care,Third Party Payments,Services Rendered By Other Organisations,511,05/03/2021,2103-00277,0.00,603.00,R,Abc Daycare And Ozone Out Of School,No
Http://opendatacommunities.org/id/metropolitan-district-council/leeds,Leeds City Council,31/03/2021,Children and Families,Social Care,Third Party Payments,Services Rendered By Other Organisations,511,05/03/2021,2103-00278,0.00,461.10,R,Abc Daycare And Ozone Out Of School,No
Http://opendatacommunities.org/id/metropolitan-district-council/leeds,Leeds City Council,31/03/2021,Children and Families,Social Care,Third Party Payments,Services Rendered By Other Organisations,511,03/03/2021,2103-00279,0.00,5174.40,R,ABC NURSERY AT LUFC,No
Http://opendatacommunities.org/id/metropolitan-district-council/leeds,Leeds City Council,31/03/2021,Children and Families,Social Care,Third Party Payments,Services Rendered By Other Organisations,511,05/03/2021,2103-00280,0.00,6044.40,R,ABC NURSERY AT LUFC,No
Http://opendatacommunities.org/id/metropolitan-district-council/leeds,Leeds City Council,31/03/2021,Children and Families,Social Care,Third Party Payments,Services Rendered By Other Organisations,511,05/03/2021,2103-00281,0.00,1038.60,R,ABC NURSERY AT LUFC,No
Http://opendatacommunities.org/id/metropolitan-district-council/leeds,Leeds City Council,31/03/2021,Children and Families,Social Care,Third Party Payments,Services Rendered By Other Organisations,511,05/03/2021,2103-00282,0.00,286.20,R,ABC NURSERY AT LUFC,No
Http://opendatacommunities.org/id/metropolitan-district-council/leeds,Leeds City Council,31/03/2021,Children and Families,Social Care,Third Party Payments,Services Rendered By Other Organisations,511,03/03/2021,2103-00283,0.00,2217.60,R,Abc@D'S Childcare,No
Http://opendatacommunities.org/id/metropolitan-district-council/leeds,Leeds City Council,31/03/2021,Children and Families,Social Care,Third Party Payments,Services Rendered By Other Organisations,511,05/03/2021,2103-00284,0.00,9723.60,R,Abc@D'S Childcare,No
Http://opendatacommunities.org/id/metropolitan-district-council/leeds,Leeds City Council,31/03/2021,Children and Families,Social Care,Third Party Payments,Services Rendered By Other Organisations,511,05/03/2021,2103-00285,0.00,1200.60,R,Abc@D'S Childcare,No
Http://opendatacommunities.org/id/metropolitan-district-council/leeds,Leeds City Council,31/03/2021,Communities and Environment,Benefits Welfare and Poverty,Supplies and Services,Grant Related Expenditure,290,22/03/2021,2103-00286,0.00,500.00,R,REDACTED PERSONAL DATA,No
Http://opendatacommunities.org/id/metropolitan-district-council/leeds,Leeds City Council,31/03/2021,Communities and Environment,Customer Access,Supplies and Services,Bought In Professional Services,277,03/03/2021,2103-00287,0.00,18.00,R,Abdulahad Denha,No
Http://opendatacommunities.org/id/metropolitan-district-council/leeds,Leeds City Council,31/03/2021,Communities and Environment,Customer Access,Supplies and Services,Bought In Professional Services,277,10/03/2021,2103-00288,0.00,27.00,R,Abdulahad Denha,No
Http://opendatacommunities.org/id/metropolitan-district-council/leeds,Leeds City Council,31/03/2021,Communities and Environment,Customer Access,Supplies and Services,Bought In Professional Services,277,22/03/2021,2103-00289,0.00,9.00,R,Abdulahad Denha,No
Http://opendatacommunities.org/id/metropolitan-district-council/leeds,Leeds City Council,31/03/2021,Communities and Environment,Customer Access,Supplies and Services,Bought In Professional Services,277,24/03/2021,2103-00290,0.00,18.00,R,Abdulahad Denha,No
Http://opendatacommunities.org/id/metropolitan-district-council/leeds,Leeds City Council,31/03/2021,Communities and Environment,Customer Access,Supplies and Services,Bought In Professional Services,277,24/03/2021,2103-00291,0.00,18.00,R,Abdulahad Denha,No
Http://opendatacommunities.org/id/metropolitan-district-council/leeds,Leeds City Council,31/03/2021,Communities and Environment,Customer Access,Supplies and Services,Bought In Professional Services,277,31/03/2021,2103-00292,0.00,13.50,R,Abdulahad Denha,No
Http://opendatacommunities.org/id/metropolitan-district-council/leeds,Leeds City Council,31/03/2021,Communities and Environment,Customer Access,Supplies and Services,Bought In Professional Services,277,03/03/2021,2103-00293,0.00,9.00,R,Abdulrahim Dastyar,No
Http://opendatacommunities.org/id/metropolitan-district-council/leeds,Leeds City Council,31/03/2021,Communities and Environment,Customer Access,Supplies and Services,Bought In Professional Services,277,22/03/2021,2103-00294,0.00,9.00,R,Abdulrahim Dastyar,No
Http://opendatacommunities.org/id/metropolitan-district-council/leeds,Leeds City Council,31/03/2021,Communities and Environment,Customer Access,Supplies and Services,Bought In Professional Services,277,22/03/2021,2103-00295,0.00,18.00,R,Abdulrahim Dastyar,No
Http://opendatacommunities.org/id/metropolitan-district-council/leeds,Leeds City Council,31/03/2021,Communities and Environment,Customer Access,Supplies and Services,Bought In Professional Services,277,24/03/2021,2103-00296,0.00,27.00,R,Abdulrahim Dastyar,No
Http://opendatacommunities.org/id/metropolitan-district-council/leeds,Leeds City Council,31/03/2021,Communities and Environment,Customer Access,Supplies and Services,Bought In Professional Services,277,24/03/2021,2103-00297,0.00,18.00,R,Abdulrahim Dastyar,No
Http://opendatacommunities.org/id/metropolitan-district-council/leeds,Leeds City Council,31/03/2021,Communities and Environment,Customer Access,Supplies and Services,Bought In Professional Services,277,31/03/2021,2103-00298,0.00,18.00,R,Abdulrahim Dastyar,No
Http://opendatacommunities.org/id/metropolitan-district-council/leeds,Leeds City Council,31/03/2021,Communities and Environment,Customer Access,Supplies and Services,Bought In Professional Services,277,31/03/2021,2103-00299,0.00,18.00,R,Abdulrahim Dastyar,No
Http://opendatacommunities.org/id/metropolitan-district-council/leeds,Leeds City Council,31/03/2021,Communities and Environment,Customer Access,Supplies and Services,Bought In Professional Services,277,31/03/2021,2103-00300,0.00,18.00,R,Abdulrahim Dastyar,No
Http://opendatacommunities.org/id/metropolitan-district-council/leeds,Leeds City Council,31/03/2021,Communities and Environment,Customer Access,Supplies and Services,Bought In Professional Services,277,31/03/2021,2103-00301,0.00,45.00,R,Abdulrahim Dastyar,No
Http://opendatacommunities.org/id/metropolitan-district-council/leeds,Leeds City Council,31/03/2021,Children and Families,Social Care,Transfer Payments,Leaving Care Allowances,634,10/03/2021,2103-00302,0.00,50.00,R,REDACTED PERSONAL DATA,No
Http://opendatacommunities.org/id/metropolitan-district-council/leeds,Leeds City Council,31/03/2021,Communities and Environment,Benefits Welfare and Poverty,Supplies and Services,Grant Related Expenditure,298,22/03/2021,2103-00303,0.00,500.00,R,REDACTED PERSONAL DATA,No
Http://opendatacommunities.org/id/metropolitan-district-council/leeds,Leeds City Council,31/03/2021,Resources and Housing,Strategy and Improvement,Supplies and Services,Publication And Promotion,267,26/03/2021,2103-00304,0.00,3166.70,R,Aberfield Communications Limited,No
Http://opendatacommunities.org/id/metropolitan-district-council/leeds,Leeds City Council,31/03/2021,Adults and Health,Services For Older People - 65 And Over,Third Party Payments,Nursing Home,570,03/03/2021,2103-00305,0.00,47780.15,R,Aberford Hall,No
Http://opendatacommunities.org/id/metropolitan-district-council/leeds,Leeds City Council,31/03/2021,Adults and Health,Services For Older People - 65 And Over,Third Party Payments,Nursing Care Dementia,574,03/03/2021,2103-00306,0.00,1868.60,R,Aberford Hall,No
Http://opendatacommunities.org/id/metropolitan-district-council/leeds,Leeds City Council,31/03/2021,Adults and Health,Services For Older People - 65 And Over,Third Party Payments,Nursing Home,570,31/03/2021,2103-00307,0.00,31187.53,R,Aberford Hall,No
Http://opendatacommunities.org/id/metropolitan-district-council/leeds,Leeds City Council,31/03/2021,Adults and Health,Services For Older People - 65 And Over,Third Party Payments,Nursing Care Dementia,574,31/03/2021,2103-00308,0.00,1861.90,R,Aberford Hall,No
Http://opendatacommunities.org/id/metropolitan-district-council/leeds,Leeds City Council,31/03/2021,Communities and Environment,Benefits Welfare and Poverty,Supplies and Services,Grant Related Expenditure,298,23/03/2021,2103-00309,0.00,500.00,R,REDACTED PERSONAL DATA,No
Http://opendatacommunities.org/id/metropolitan-district-council/leeds,Leeds City Council,31/03/2021,Resources and Housing,Leeds Building Services,Supplies and Services,Operational Materials,205,19/03/2021,2103-00310,0.00,281.04,R,ABI GARAGE DOORS LTD,No
Http://opendatacommunities.org/id/metropolitan-district-council/leeds,Leeds City Council,31/03/2021,Resources and Housing,Leeds Building Services,Supplies and Services,Operational Materials,205,19/03/2021,2103-00311,0.00,281.04,R,ABI GARAGE DOORS LTD,No
Http://opendatacommunities.org/id/metropolitan-district-council/leeds,Leeds City Council,31/03/2021,Resources and Housing,Leeds Building Services,Supplies and Services,Operational Materials,205,19/03/2021,2103-00312,0.00,13.00,R,ABI GARAGE DOORS LTD,No
Http://opendatacommunities.org/id/metropolitan-district-council/leeds,Leeds City Council,31/03/2021,Resources and Housing,Leeds Building Services,Supplies and Services,Operational Materials,205,25/03/2021,2103-00313,0.00,14.58,R,ABI GARAGE DOORS LTD,No
Http://opendatacommunities.org/id/metropolitan-district-council/leeds,Leeds City Council,31/03/2021,Resources and Housing,Leeds Building Services,Supplies and Services,Operational Materials,205,25/03/2021,2103-00314,0.00,16.67,R,ABI GARAGE DOORS LTD,No
Http://opendatacommunities.org/id/metropolitan-district-council/leeds,Leeds City Council,31/03/2021,Resources and Housing,Leeds Building Services,Supplies and Services,Operational Materials,205,26/03/2021,2103-00315,0.00,10.82,R,ABI GARAGE DOORS LTD,No
Http://opendatacommunities.org/id/metropolitan-district-council/leeds,Leeds City Council,31/03/2021,Resources and Housing,Leeds Building Services,Supplies and Services,Operational Materials,205,29/03/2021,2103-00316,0.00,281.04,R,ABI GARAGE DOORS LTD,No
Http://opendatacommunities.org/id/metropolitan-district-council/leeds,Leeds City Council,31/03/2021,Adults and Health,Social Services Support Services,Employees,Training & Development,70,11/03/2021,2103-00317,0.00,13.00,R,REDACTED PERSONAL DATA,No
Http://opendatacommunities.org/id/metropolitan-district-council/leeds,Leeds City Council,31/03/2021,Children and Families,Social Care,Third Party Payments,Direct Work,549,12/03/2021,2103-00318,0.00,17.99,R,REDACTED PERSONAL DATA,No
Http://opendatacommunities.org/id/metropolitan-district-council/leeds,Leeds City Council,31/03/2021,Children and Families,Social Care,Transfer Payments,Leaving Care Allowances,634,12/03/2021,2103-00319,0.00,3.84,R,REDACTED PERSONAL DATA,No
Http://opendatacommunities.org/id/metropolitan-district-council/leeds,Leeds City Council,31/03/2021,Children and Families,Social Care,Transfer Payments,Leaving Care Allowances,634,12/03/2021,2103-00320,0.00,3.84,R,REDACTED PERSONAL DATA,No
Http://opendatacommunities.org/id/metropolitan-district-council/leeds,Leeds City Council,31/03/2021,Children and Families,Social Care,Transfer Payments,Leaving Care Allowances,634,12/03/2021,2103-00321,0.00,2.99,R,REDACTED PERSONAL DATA,No
Http://opendatacommunities.org/id/metropolitan-district-council/leeds,Leeds City Council,31/03/2021,Children and Families,Social Care,Third Party Payments,Placement Support,550,26/03/2021,2103-00322,0.00,36.95,R,REDACTED PERSONAL DATA,No
Http://opendatacommunities.org/id/metropolitan-district-council/leeds,Leeds City Council,31/03/2021,Communities and Environment,Benefits Welfare and Poverty,Supplies and Services,Grant Related Expenditure,298,26/03/2021,2103-00323,0.00,500.00,R,REDACTED PERSONAL DATA,No
Http://opendatacommunities.org/id/metropolitan-district-council/leeds,Leeds City Council,31/03/2021,City Development,Economic Development,Supplies and Services,Grant Related Expenditure,290,26/03/2021,2103-00324,0.00,10000.00,R,Abraham Moon & Sons,No
Http://opendatacommunities.org/id/metropolitan-district-council/leeds,Leeds City Council,31/03/2021,Communities and Environment,Benefits Welfare and Poverty,Supplies and Services,Grant Related Expenditure,290,10/03/2021,2103-00325,0.00,500.00,R,REDACTED PERSONAL DATA,No
Http://opendatacommunities.org/id/metropolitan-district-council/leeds,Leeds City Council,31/03/2021,City Development,Economic Development,Supplies and Services,Grant Related Expenditure,298,08/03/2021,2103-00326,0.00,500.00,R,REDACTED PERSONAL DATA,No
Http://opendatacommunities.org/id/metropolitan-district-council/leeds,Leeds City Council,31/03/2021,Adults and Health,Services For Adults Under 65 Mental/Dis,Third Party Payments,Fees - Level 4,520,05/03/2021,2103-00327,0.00,175.00,R,Abubaker Denja Mohammed,No
Http://opendatacommunities.org/id/metropolitan-district-council/leeds,Leeds City Council,31/03/2021,Adults and Health,Services For Adults Under 65 Mental/Dis,Third Party Payments,Fees - Level 4,520,05/03/2021,2103-00328,0.00,175.00,R,Abubaker Denja Mohammed,No
Http://opendatacommunities.org/id/metropolitan-district-council/leeds,Leeds City Council,31/03/2021,Adults and Health,Services For Adults Under 65 Mental/Dis,Third Party Payments,Fees - Level 4,520,05/03/2021,2103-00329,0.00,175.00,R,Abubaker Denja Mohammed,No
Http://opendatacommunities.org/id/metropolitan-district-council/leeds,Leeds City Council,31/03/2021,Adults and Health,Services For Adults Under 65 Mental/Dis,Third Party Payments,Fees - Level 4,520,05/03/2021,2103-00330,0.00,175.00,R,Abubaker Denja Mohammed,No
Http://opendatacommunities.org/id/metropolitan-district-council/leeds,Leeds City Council,31/03/2021,Adults and Health,Services For Adults Under 65 Mental/Dis,Third Party Payments,Fees - Level 4,520,05/03/2021,2103-00331,0.00,175.00,R,Abubaker Denja Mohammed,No
Http://opendatacommunities.org/id/metropolitan-district-council/leeds,Leeds City Council,31/03/2021,Adults and Health,Services For Adults Under 65 Mental/Dis,Third Party Payments,Fees - Level 4,520,12/03/2021,2103-00332,0.00,175.00,R,Abubaker Denja Mohammed,No
Http://opendatacommunities.org/id/metropolitan-district-council/leeds,Leeds City Council,31/03/2021,Adults and Health,Services For Adults Under 65 Mental/Dis,Third Party Payments,Fees - Level 4,520,12/03/2021,2103-00333,0.00,175.00,R,Abubaker Denja Mohammed,No
Http://opendatacommunities.org/id/metropolitan-district-council/leeds,Leeds City Council,31/03/2021,Children and Families,Social Care,Employees,Agency Staff,8,04/03/2021,2103-00334,0.00,1913.60,R,ACADEMIC APPOINTMENTS LTD,No
Http://opendatacommunities.org/id/metropolitan-district-council/leeds,Leeds City Council,31/03/2021,Children and Families,Social Care,Employees,Agency Staff,8,11/03/2021,2103-00335,0.00,-1913.60,R,ACADEMIC APPOINTMENTS LTD,No
Http://opendatacommunities.org/id/metropolitan-district-council/leeds,Leeds City Council,31/03/2021,Children and Families,Social Care,Third Party Payments,Services Rendered By Other Organisations,511,03/03/2021,2103-00336,0.00,14018.40,R,Academies Enterprise Trust (AET),No
Http://opendatacommunities.org/id/metropolitan-district-council/leeds,Leeds City Council,31/03/2021,Children and Families,Social Care,Third Party Payments,Services Rendered By Other Organisations,511,05/03/2021,2103-00337,0.00,32324.40,R,Academies Enterprise Trust (AET),No
Http://opendatacommunities.org/id/metropolitan-district-council/leeds,Leeds City Council,31/03/2021,Children and Families,Social Care,Third Party Payments,Services Rendered By Other Organisations,511,05/03/2021,2103-00338,0.00,4451.40,R,Academies Enterprise Trust (AET),No
Http://opendatacommunities.org/id/metropolitan-district-council/leeds,Leeds City Council,31/03/2021,Children and Families,Social Care,Third Party Payments,Services Rendered By Other Organisations,511,05/03/2021,2103-00339,0.00,95.40,R,Academies Enterprise Trust (AET),No
Http://opendatacommunities.org/id/metropolitan-district-council/leeds,Leeds City Council,31/03/2021,Adults and Health,Services For Older People - 65 And Over,Third Party Payments,Home Care,568,31/03/2021,2103-00340,0.00,2342.36,R,Academy Care Ltd,No
Http://opendatacommunities.org/id/metropolitan-district-council/leeds,Leeds City Council,31/03/2021,Adults and Health,Service Strategy,Supplies and Services,Consultancy Services,259,30/03/2021,2103-00341,0.00,8125.00,R,Acainn Ltd,No
Http://opendatacommunities.org/id/metropolitan-district-council/leeds,Leeds City Council,31/03/2021,Resources and Housing,Technology,Supplies and Services,Computer Software & Equipment,214,10/03/2021,2103-00342,0.00,5130.00,R,ACCENTURE (UK) LTD,No
Http://opendatacommunities.org/id/metropolitan-district-council/leeds,Leeds City Council,31/03/2021,Children and Families,Social Care  ,Supplies and Services,Office Consumables,210,24/02/2021,2103-00343,0.00,7.94,R,Access Diagnostics,Yes
Http://opendatacommunities.org/id/metropolitan-district-council/leeds,Leeds City Council,31/03/2021,Insurance,Insurance,Supplies and Services,Insurance Claims,248,30/03/2021,2103-00344,0.00,500.00,R,Access Hire,No
Http://opendatacommunities.org/id/metropolitan-district-council/leeds,Leeds City Council,31/03/2021,Resources and Housing,Strategic Housing Partnership & Support  ,Supplies and Services,Other Hired And Contracted Services,265,03/02/2021,2103-00345,0.00,27.50,R,Access Locksmiths,Yes
Http://opendatacommunities.org/id/metropolitan-district-council/leeds,Leeds City Council,31/03/2021,Strategic Landlord,Housing Management,Premises,General Maintenance,104,01/03/2021,2103-00346,0.00,117.00,R,ACCESS LOCKSMITHS (LEEDS) LIMITED,No
Http://opendatacommunities.org/id/metropolitan-district-council/leeds,Leeds City Council,31/03/2021,Resources and Housing,Commercial Services,Supplies and Services,Operational Materials,205,01/03/2021,2103-00347,0.00,44.00,R,ACCESS LOCKSMITHS (LEEDS) LIMITED,No
Http://opendatacommunities.org/id/metropolitan-district-council/leeds,Leeds City Council,31/03/2021,Strategic Landlord,Property and Contracts,Premises,General Maintenance,104,01/03/2021,2103-00348,0.00,354.87,R,ACCESS LOCKSMITHS (LEEDS) LIMITED,No
Http://opendatacommunities.org/id/metropolitan-district-council/leeds,Leeds City Council,31/03/2021,Strategic Landlord,Housing Management,Premises,General Maintenance,104,03/03/2021,2103-00349,0.00,231.00,R,ACCESS LOCKSMITHS (LEEDS) LIMITED,No
Http://opendatacommunities.org/id/metropolitan-district-council/leeds,Leeds City Council,31/03/2021,Strategic Landlord,Housing Management,Supplies and Services,Grant Related Expenditure,298,05/03/2021,2103-00350,0.00,39.00,R,ACCESS LOCKSMITHS (LEEDS) LIMITED,No
Http://opendatacommunities.org/id/metropolitan-district-council/leeds,Leeds City Council,31/03/2021,Resources and Housing,Leeds Building Services,Supplies and Services,Operational Materials,205,05/03/2021,2103-00351,0.00,259.12,R,ACCESS LOCKSMITHS (LEEDS) LIMITED,No
Http://opendatacommunities.org/id/metropolitan-district-council/leeds,Leeds City Council,31/03/2021,Resources and Housing,Leeds Building Services,Supplies and Services,Operational Materials,205,05/03/2021,2103-00352,0.00,278.56,R,ACCESS LOCKSMITHS (LEEDS) LIMITED,No
Http://opendatacommunities.org/id/metropolitan-district-council/leeds,Leeds City Council,31/03/2021,Resources and Housing,Leeds Building Services,Supplies and Services,Operational Materials,205,05/03/2021,2103-00353,0.00,139.28,R,ACCESS LOCKSMITHS (LEEDS) LIMITED,No
Http://opendatacommunities.org/id/metropolitan-district-council/leeds,Leeds City Council,31/03/2021,Resources and Housing,Leeds Building Services,Supplies and Services,Operational Materials,205,05/03/2021,2103-00354,0.00,294.36,R,ACCESS LOCKSMITHS (LEEDS) LIMITED,No
Http://opendatacommunities.org/id/metropolitan-district-council/leeds,Leeds City Council,31/03/2021,Resources and Housing,Leeds Building Services,Supplies and Services,Operational Materials,205,05/03/2021,2103-00355,0.00,294.36,R,ACCESS LOCKSMITHS (LEEDS) LIMITED,No
Http://opendatacommunities.org/id/metropolitan-district-council/leeds,Leeds City Council,31/03/2021,Resources and Housing,Leeds Building Services,Supplies and Services,Operational Materials,205,05/03/2021,2103-00356,0.00,662.18,R,ACCESS LOCKSMITHS (LEEDS) LIMITED,No
Http://opendatacommunities.org/id/metropolitan-district-council/leeds,Leeds City Council,31/03/2021,Resources and Housing,Leeds Building Services,Supplies and Services,Operational Materials,205,05/03/2021,2103-00357,0.00,35.00,R,ACCESS LOCKSMITHS (LEEDS) LIMITED,No
Http://opendatacommunities.org/id/metropolitan-district-council/leeds,Leeds City Council,31/03/2021,Resources and Housing,Leeds Building Services,Supplies and Services,Operational Materials,205,05/03/2021,2103-00358,0.00,9.98,R,ACCESS LOCKSMITHS (LEEDS) LIMITED,No
Http://opendatacommunities.org/id/metropolitan-district-council/leeds,Leeds City Council,31/03/2021,Resources and Housing,Leeds Building Services,Supplies and Services,Operational Materials,205,05/03/2021,2103-00359,0.00,57.32,R,ACCESS LOCKSMITHS (LEEDS) LIMITED,No
Http://opendatacommunities.org/id/metropolitan-district-council/leeds,Leeds City Council,31/03/2021,Resources and Housing,Leeds Building Services,Supplies and Services,Operational Materials,205,11/03/2021,2103-00360,0.00,56.05,R,ACCESS LOCKSMITHS (LEEDS) LIMITED,No
Http://opendatacommunities.org/id/metropolitan-district-council/leeds,Leeds City Council,31/03/2021,Strategic Landlord,Housing Management,Supplies and Services,Resaleable Materials,204,11/03/2021,2103-00361,0.00,68.40,R,ACCESS LOCKSMITHS (LEEDS) LIMITED,No
Http://opendatacommunities.org/id/metropolitan-district-council/leeds,Leeds City Council,31/03/2021,Strategic Landlord,Housing Management,Supplies and Services,Resaleable Materials,204,11/03/2021,2103-00362,0.00,27.40,R,ACCESS LOCKSMITHS (LEEDS) LIMITED,No
Http://opendatacommunities.org/id/metropolitan-district-council/leeds,Leeds City Council,31/03/2021,Strategic Landlord,Housing Management,Supplies and Services,Resaleable Materials,204,16/03/2021,2103-00363,0.00,689.00,R,ACCESS LOCKSMITHS (LEEDS) LIMITED,No
Http://opendatacommunities.org/id/metropolitan-district-council/leeds,Leeds City Council,31/03/2021,Strategic Landlord,Housing Management,Premises,General Maintenance,104,16/03/2021,2103-00364,0.00,228.00,R,ACCESS LOCKSMITHS (LEEDS) LIMITED,No
Http://opendatacommunities.org/id/metropolitan-district-council/leeds,Leeds City Council,31/03/2021,Strategic Landlord,Housing Management,Premises,General Maintenance,104,16/03/2021,2103-00365,0.00,40.36,R,ACCESS LOCKSMITHS (LEEDS) LIMITED,No
Http://opendatacommunities.org/id/metropolitan-district-council/leeds,Leeds City Council,31/03/2021,Strategic Landlord,Housing Management,Supplies and Services,Resaleable Materials,204,16/03/2021,2103-00366,0.00,34.20,R,ACCESS LOCKSMITHS (LEEDS) LIMITED,No
Http://opendatacommunities.org/id/metropolitan-district-council/leeds,Leeds City Council,31/03/2021,Strategic Landlord,Housing Management,Premises,Fixtures & Fittings,131,19/03/2021,2103-00367,0.00,114.00,R,ACCESS LOCKSMITHS (LEEDS) LIMITED,No
Http://opendatacommunities.org/id/metropolitan-district-council/leeds,Leeds City Council,31/03/2021,Strategic Landlord,Housing Management,Premises,Fixtures & Fittings,131,19/03/2021,2103-00368,0.00,10.00,R,ACCESS LOCKSMITHS (LEEDS) LIMITED,No
Http://opendatacommunities.org/id/metropolitan-district-council/leeds,Leeds City Council,31/03/2021,Strategic Landlord,Housing Management,Supplies and Services,Resaleable Materials,204,19/03/2021,2103-00369,0.00,62.00,R,ACCESS LOCKSMITHS (LEEDS) LIMITED,No
Http://opendatacommunities.org/id/metropolitan-district-council/leeds,Leeds City Council,31/03/2021,Resources and Housing,HRA Housing Leeds,Capital,FURNITURE AND EQUIPMENT,5,19/03/2021,2103-00370,0.00,260.40,C,ACCESS LOCKSMITHS (LEEDS) LIMITED,No
Http://opendatacommunities.org/id/metropolitan-district-council/leeds,Leeds City Council,31/03/2021,Resources and Housing,Leeds Building Services,Supplies and Services,Operational Materials,205,19/03/2021,2103-00371,0.00,208.50,R,ACCESS LOCKSMITHS (LEEDS) LIMITED,No
Http://opendatacommunities.org/id/metropolitan-district-council/leeds,Leeds City Council,31/03/2021,Resources and Housing,Leeds Building Services,Supplies and Services,Operational Materials,205,19/03/2021,2103-00372,0.00,21.30,R,ACCESS LOCKSMITHS (LEEDS) LIMITED,No
Http://opendatacommunities.org/id/metropolitan-district-council/leeds,Leeds City Council,31/03/2021,Resources and Housing,Leeds Building Services,Supplies and Services,Operational Materials,205,19/03/2021,2103-00373,0.00,26.97,R,ACCESS LOCKSMITHS (LEEDS) LIMITED,No
Http://opendatacommunities.org/id/metropolitan-district-council/leeds,Leeds City Council,31/03/2021,Resources and Housing,Leeds Building Services,Supplies and Services,Operational Materials,205,19/03/2021,2103-00374,0.00,154.52,R,ACCESS LOCKSMITHS (LEEDS) LIMITED,No
Http://opendatacommunities.org/id/metropolitan-district-council/leeds,Leeds City Council,31/03/2021,Resources and Housing,Leeds Building Services,Supplies and Services,Operational Materials,205,19/03/2021,2103-00375,0.00,154.52,R,ACCESS LOCKSMITHS (LEEDS) LIMITED,No
Http://opendatacommunities.org/id/metropolitan-district-council/leeds,Leeds City Council,31/03/2021,Resources and Housing,Leeds Building Services,Supplies and Services,Operational Materials,205,19/03/2021,2103-00376,0.00,368.87,R,ACCESS LOCKSMITHS (LEEDS) LIMITED,No
Http://opendatacommunities.org/id/metropolitan-district-council/leeds,Leeds City Council,31/03/2021,Resources and Housing,Leeds Building Services,Supplies and Services,Operational Materials,205,19/03/2021,2103-00377,0.00,154.52,R,ACCESS LOCKSMITHS (LEEDS) LIMITED,No
Http://opendatacommunities.org/id/metropolitan-district-council/leeds,Leeds City Council,31/03/2021,Strategic Landlord,Property and Contracts,Premises,Maintenance Of Buildings,101,26/03/2021,2103-00378,0.00,289.35,R,ACCESS LOCKSMITHS (LEEDS) LIMITED,No
Http://opendatacommunities.org/id/metropolitan-district-council/leeds,Leeds City Council,31/03/2021,Strategic Landlord,Housing Management,Supplies and Services,Grants To Voluntary Organisations,293,26/03/2021,2103-00379,0.00,309.04,R,ACCESS LOCKSMITHS (LEEDS) LIMITED,No
Http://opendatacommunities.org/id/metropolitan-district-council/leeds,Leeds City Council,31/03/2021,Resources and Housing,HRA Housing Leeds,Capital,FURNITURE AND EQUIPMENT,5,26/03/2021,2103-00380,0.00,66.96,C,ACCESS LOCKSMITHS (LEEDS) LIMITED,No
Http://opendatacommunities.org/id/metropolitan-district-council/leeds,Leeds City Council,31/03/2021,Resources and Housing,HRA Housing Leeds,Capital,FURNITURE AND EQUIPMENT,5,26/03/2021,2103-00381,0.00,140.51,C,ACCESS LOCKSMITHS (LEEDS) LIMITED,No
Http://opendatacommunities.org/id/metropolitan-district-council/leeds,Leeds City Council,31/03/2021,Strategic Landlord,Property and Contracts,Premises,General Maintenance,104,26/03/2021,2103-00382,0.00,132.61,R,ACCESS LOCKSMITHS (LEEDS) LIMITED,No
Http://opendatacommunities.org/id/metropolitan-district-council/leeds,Leeds City Council,31/03/2021,Resources and Housing,HRA Housing Leeds,Capital,FURNITURE AND EQUIPMENT,5,26/03/2021,2103-00383,0.00,618.08,C,ACCESS LOCKSMITHS (LEEDS) LIMITED,No
Http://opendatacommunities.org/id/metropolitan-district-council/leeds,Leeds City Council,31/03/2021,Strategic Landlord,Housing Management,Supplies and Services,Resaleable Materials,204,26/03/2021,2103-00384,0.00,120.00,R,ACCESS LOCKSMITHS (LEEDS) LIMITED,No
Http://opendatacommunities.org/id/metropolitan-district-council/leeds,Leeds City Council,31/03/2021,Strategic Landlord,Housing Management,Supplies and Services,Resaleable Materials,204,26/03/2021,2103-00385,0.00,4.00,R,ACCESS LOCKSMITHS (LEEDS) LIMITED,No
Http://opendatacommunities.org/id/metropolitan-district-council/leeds,Leeds City Council,31/03/2021,Strategic Landlord,Housing Management,Premises,General Maintenance,104,26/03/2021,2103-00386,0.00,251.00,R,ACCESS LOCKSMITHS (LEEDS) LIMITED,No
Http://opendatacommunities.org/id/metropolitan-district-council/leeds,Leeds City Council,31/03/2021,Strategic Landlord,Housing Management,Premises,General Maintenance,104,31/03/2021,2103-00387,0.00,114.00,R,ACCESS LOCKSMITHS (LEEDS) LIMITED,No
Http://opendatacommunities.org/id/metropolitan-district-council/leeds,Leeds City Council,31/03/2021,City Development,Libraries Arts & Heritage,Supplies and Services,Bought In Professional Services,277,24/03/2021,2103-00388,0.00,500.00,R,ACCESS MOVING IMAGE LTD,No
Http://opendatacommunities.org/id/metropolitan-district-council/leeds,Leeds City Council,31/03/2021,Communities and Environment,Environmental Action (City Centre),Supplies and Services,CCTV,252,24/03/2021,2103-00389,0.00,468.00,R,AccessCCTV,No
Http://opendatacommunities.org/id/metropolitan-district-council/leeds,Leeds City Council,31/03/2021,City Development,Recreation,Transport,External Hire -Occasional,304,02/03/2021,2103-00390,0.00,116.20,R,ACE CONTAINER SERVICES LIMITED,No
Http://opendatacommunities.org/id/metropolitan-district-council/leeds,Leeds City Council,31/03/2021,City Development,Libraries Arts & Heritage,Supplies and Services,Other Hired And Contracted Services,265,02/03/2021,2103-00391,0.00,42.00,R,ACE CONTAINER SERVICES LIMITED,No
Http://opendatacommunities.org/id/metropolitan-district-council/leeds,Leeds City Council,31/03/2021,City Development,Recreation,Supplies and Services,Other Hired And Contracted Services,265,26/03/2021,2103-00392,0.00,2700.00,R,ACE CONTAINER SERVICES LIMITED,No
Http://opendatacommunities.org/id/metropolitan-district-council/leeds,Leeds City Council,31/03/2021,City Development,Recreation,Transport,External Hire -Occasional,304,30/03/2021,2103-00393,0.00,128.65,R,ACE CONTAINER SERVICES LIMITED,No
Http://opendatacommunities.org/id/metropolitan-district-council/leeds,Leeds City Council,31/03/2021,City Development,Libraries Arts & Heritage,Supplies and Services,Other Hired And Contracted Services,265,30/03/2021,2103-00394,0.00,46.50,R,ACE CONTAINER SERVICES LIMITED,No
Http://opendatacommunities.org/id/metropolitan-district-council/leeds,Leeds City Council,31/03/2021,Children and Families,Partnerships & Health,Third Party Payments,SEN Placements,566,25/03/2021,2103-00395,0.00,1896.22,R,ACKWORTH SCHOOL,No
Http://opendatacommunities.org/id/metropolitan-district-council/leeds,Leeds City Council,31/03/2021,Resources and Housing,Leeds Building Services,Supplies and Services,Other Hired And Contracted Services,265,04/03/2021,2103-00396,0.00,1450.00,R,Acme Facilities Group Ltd,No
Http://opendatacommunities.org/id/metropolitan-district-council/leeds,Leeds City Council,31/03/2021,Children and Families,Partnerships & Health,Third Party Payments,SEN Placements,566,04/03/2021,2103-00397,0.00,1520.00,R,Acorn Care & Education Ltd (Sales),No
Http://opendatacommunities.org/id/metropolitan-district-council/leeds,Leeds City Council,31/03/2021,Children and Families,Social Care,Third Party Payments,General External Residential Placements,507,04/03/2021,2103-00398,0.00,17249.29,R,Acorn Care & Education Ltd (Sales),No
Http://opendatacommunities.org/id/metropolitan-district-council/leeds,Leeds City Council,31/03/2021,Children and Families,Social Care,Third Party Payments,General External Residential Placements,507,05/03/2021,2103-00399,0.00,17249.29,R,Acorn Care & Education Ltd (Sales),No
Http://opendatacommunities.org/id/metropolitan-district-council/leeds,Leeds City Council,31/03/2021,Children and Families,Partnerships & Health,Third Party Payments,SEN Placements,566,11/03/2021,2103-00400,0.00,48258.91,R,Acorn Care & Education Ltd (Sales),No
Http://opendatacommunities.org/id/metropolitan-district-council/leeds,Leeds City Council,31/03/2021,Children and Families,Social Care,Third Party Payments,General External Residential Placements,507,12/03/2021,2103-00401,0.00,18402.74,R,Acorn Care & Education Ltd (Sales),No
Http://opendatacommunities.org/id/metropolitan-district-council/leeds,Leeds City Council,31/03/2021,Children and Families,Social Care,Third Party Payments,General External Residential Placements,507,12/03/2021,2103-00402,0.00,21783.48,R,Acorn Care & Education Ltd (Sales),No
Http://opendatacommunities.org/id/metropolitan-district-council/leeds,Leeds City Council,31/03/2021,Children and Families,Partnerships & Health,Third Party Payments,SEN Placements,566,18/03/2021,2103-00403,0.00,24117.42,R,Acorn Care & Education Ltd (Sales),No
Http://opendatacommunities.org/id/metropolitan-district-council/leeds,Leeds City Council,31/03/2021,Children and Families,Social Care,Third Party Payments,General External Residential Placements,507,22/03/2021,2103-00404,0.00,19717.22,R,Acorn Care & Education Ltd (Sales),No
Http://opendatacommunities.org/id/metropolitan-district-council/leeds,Leeds City Council,31/03/2021,Children and Families,Social Care,Third Party Payments,General External Residential Placements,507,22/03/2021,2103-00405,0.00,20374.46,R,Acorn Care & Education Ltd (Sales),No
Http://opendatacommunities.org/id/metropolitan-district-council/leeds,Leeds City Council,31/03/2021,Adults and Health,Services For Older People - 65 And Over,Third Party Payments,Residential Care Dementia,571,03/03/2021,2103-00406,0.00,1589.72,R,Acorn Nursing Home,No
Http://opendatacommunities.org/id/metropolitan-district-council/leeds,Leeds City Council,31/03/2021,Adults and Health,Services For Older People - 65 And Over,Third Party Payments,Residential Care Dementia,571,31/03/2021,2103-00407,0.00,5422.34,R,Acorn Nursing Home,No
Http://opendatacommunities.org/id/metropolitan-district-council/leeds,Leeds City Council,31/03/2021,Children and Families,Social Care,Third Party Payments,Services Rendered By Other Organisations,511,05/03/2021,2103-00408,0.00,10249.20,R,ACORNS NURSERY,No
Http://opendatacommunities.org/id/metropolitan-district-council/leeds,Leeds City Council,31/03/2021,Children and Families,Social Care,Third Party Payments,Services Rendered By Other Organisations,511,05/03/2021,2103-00409,0.00,133.20,R,ACORNS NURSERY,No
Http://opendatacommunities.org/id/metropolitan-district-council/leeds,Leeds City Council,31/03/2021,Adults and Health,Services For Older People - 65 And Over,Third Party Payments,Nursing Home,570,03/03/2021,2103-00410,0.00,16220.30,R,Acre Green,No
Http://opendatacommunities.org/id/metropolitan-district-council/leeds,Leeds City Council,31/03/2021,Adults and Health,Services For Older People - 65 And Over,Third Party Payments,Residential,580,03/03/2021,2103-00411,0.00,3876.60,R,Acre Green,No
Http://opendatacommunities.org/id/metropolitan-district-council/leeds,Leeds City Council,31/03/2021,Adults and Health,Services For Older People Under 65 P/Dis,Third Party Payments,Nursing Home,570,03/03/2021,2103-00412,0.00,2360.00,R,Acre Green,No
Http://opendatacommunities.org/id/metropolitan-district-council/leeds,Leeds City Council,31/03/2021,Adults and Health,Services For Older People Under 65 P/Dis,Third Party Payments,Residential,580,03/03/2021,2103-00413,0.00,1642.60,R,Acre Green,No
Http://opendatacommunities.org/id/metropolitan-district-council/leeds,Leeds City Council,31/03/2021,Adults and Health,Services For Older People - 65 And Over,Third Party Payments,Nursing Home,570,31/03/2021,2103-00414,0.00,16863.41,R,Acre Green,No
Http://opendatacommunities.org/id/metropolitan-district-council/leeds,Leeds City Council,31/03/2021,Adults and Health,Services For Older People - 65 And Over,Third Party Payments,Residential,580,31/03/2021,2103-00415,0.00,3869.90,R,Acre Green,No
Http://opendatacommunities.org/id/metropolitan-district-council/leeds,Leeds City Council,31/03/2021,Adults and Health,Services For Older People Under 65 P/Dis,Third Party Payments,Nursing Home,570,31/03/2021,2103-00416,0.00,2360.00,R,Acre Green,No
Http://opendatacommunities.org/id/metropolitan-district-council/leeds,Leeds City Council,31/03/2021,Adults and Health,Services For Older People Under 65 P/Dis,Third Party Payments,Residential,580,31/03/2021,2103-00417,0.00,1642.60,R,Acre Green,No
Http://opendatacommunities.org/id/metropolitan-district-council/leeds,Leeds City Council,31/03/2021,Children and Families,Social Care,Third Party Payments,Services Rendered By Other Organisations,511,03/03/2021,2103-00418,0.00,2956.80,R,Acre Wood Day Nursery,No
Http://opendatacommunities.org/id/metropolitan-district-council/leeds,Leeds City Council,31/03/2021,Children and Families,Social Care,Third Party Payments,Services Rendered By Other Organisations,511,05/03/2021,2103-00419,0.00,24177.60,R,Acre Wood Day Nursery,No
Http://opendatacommunities.org/id/metropolitan-district-council/leeds,Leeds City Council,31/03/2021,Children and Families,Social Care,Third Party Payments,Services Rendered By Other Organisations,511,05/03/2021,2103-00420,0.00,1575.00,R,Acre Wood Day Nursery,No
Http://opendatacommunities.org/id/metropolitan-district-council/leeds,Leeds City Council,31/03/2021,Resources and Housing,Technology  ,Supplies and Services,Computer Software & Equipment,214,09/02/2021,2103-00421,0.00,2044.15,R,Acs Business Supplies Lt,Yes
Http://opendatacommunities.org/id/metropolitan-district-council/leeds,Leeds City Council,31/03/2021,Resources and Housing,Leeds Building Services,Supplies and Services,Operational Materials,205,11/03/2021,2103-00422,0.00,82.90,R,Actavo Hire And Sales Uk Limited,No
Http://opendatacommunities.org/id/metropolitan-district-council/leeds,Leeds City Council,31/03/2021,Resources and Housing,Leeds Building Services,Supplies and Services,Operational Materials,205,11/03/2021,2103-00423,0.00,37.02,R,Actavo Hire And Sales Uk Limited,No
Http://opendatacommunities.org/id/metropolitan-district-council/leeds,Leeds City Council,31/03/2021,Resources and Housing,Leeds Building Services,Supplies and Services,Operational Materials,205,12/03/2021,2103-00424,0.00,80.23,R,Actavo Hire And Sales Uk Limited,No
Http://opendatacommunities.org/id/metropolitan-district-council/leeds,Leeds City Council,31/03/2021,Resources and Housing,Leeds Building Services,Supplies and Services,Operational Materials,205,12/03/2021,2103-00425,0.00,82.90,R,Actavo Hire And Sales Uk Limited,No
Http://opendatacommunities.org/id/metropolitan-district-council/leeds,Leeds City Council,31/03/2021,Resources and Housing,Leeds Building Services,Supplies and Services,Operational Materials,205,12/03/2021,2103-00426,0.00,31.06,R,Actavo Hire And Sales Uk Limited,No
Http://opendatacommunities.org/id/metropolitan-district-council/leeds,Leeds City Council,31/03/2021,Resources and Housing,Leeds Building Services,Supplies and Services,Operational Materials,205,12/03/2021,2103-00427,0.00,80.23,R,Actavo Hire And Sales Uk Limited,No
Http://opendatacommunities.org/id/metropolitan-district-council/leeds,Leeds City Council,31/03/2021,Resources and Housing,Leeds Building Services,Supplies and Services,Operational Materials,205,12/03/2021,2103-00428,0.00,35.82,R,Actavo Hire And Sales Uk Limited,No
Http://opendatacommunities.org/id/metropolitan-district-council/leeds,Leeds City Council,31/03/2021,Resources and Housing,Leeds Building Services,Supplies and Services,Operational Materials,205,12/03/2021,2103-00429,0.00,82.90,R,Actavo Hire And Sales Uk Limited,No
Http://opendatacommunities.org/id/metropolitan-district-council/leeds,Leeds City Council,31/03/2021,Resources and Housing,Leeds Building Services,Supplies and Services,Operational Materials,205,12/03/2021,2103-00430,0.00,37.02,R,Actavo Hire And Sales Uk Limited,No
Http://opendatacommunities.org/id/metropolitan-district-council/leeds,Leeds City Council,31/03/2021,Resources and Housing,Leeds Building Services,Supplies and Services,Other Hired And Contracted Services,265,18/03/2021,2103-00431,0.00,39.75,R,Actavo Hire And Sales Uk Limited,No
Http://opendatacommunities.org/id/metropolitan-district-council/leeds,Leeds City Council,31/03/2021,Resources and Housing,Leeds Building Services,Supplies and Services,Other Hired And Contracted Services,265,18/03/2021,2103-00432,0.00,29.24,R,Actavo Hire And Sales Uk Limited,No
Http://opendatacommunities.org/id/metropolitan-district-council/leeds,Leeds City Council,31/03/2021,Resources and Housing,Leeds Building Services,Supplies and Services,Other Hired And Contracted Services,265,26/03/2021,2103-00433,0.00,6.34,R,Actavo Hire And Sales Uk Limited,No
Http://opendatacommunities.org/id/metropolitan-district-council/leeds,Leeds City Council,31/03/2021,Resources and Housing,Leeds Building Services,Supplies and Services,Operational Materials,205,30/03/2021,2103-00434,0.00,74.88,R,Actavo Hire And Sales Uk Limited,No
Http://opendatacommunities.org/id/metropolitan-district-council/leeds,Leeds City Council,31/03/2021,Resources and Housing,Leeds Building Services,Supplies and Services,Operational Materials,205,30/03/2021,2103-00435,0.00,33.44,R,Actavo Hire And Sales Uk Limited,No
Http://opendatacommunities.org/id/metropolitan-district-council/leeds,Leeds City Council,31/03/2021,City Development,Economic Development,Supplies and Services,Grant Related Expenditure,290,23/03/2021,2103-00436,0.00,887.00,R,Action Roofing Leeds,No
Http://opendatacommunities.org/id/metropolitan-district-council/leeds,Leeds City Council,31/03/2021,Children and Families,Social Care,Third Party Payments,Services Rendered By Other Organisations,511,03/03/2021,2103-00437,0.00,316.80,R,ACTIVE KIDS YEADON LLP,No
Http://opendatacommunities.org/id/metropolitan-district-council/leeds,Leeds City Council,31/03/2021,Children and Families,Social Care,Third Party Payments,Services Rendered By Other Organisations,511,05/03/2021,2103-00438,0.00,10033.12,R,ACTIVE KIDS YEADON LLP,No
Http://opendatacommunities.org/id/metropolitan-district-council/leeds,Leeds City Council,31/03/2021,Children and Families,Social Care,Third Party Payments,Services Rendered By Other Organisations,511,05/03/2021,2103-00439,0.00,133.20,R,ACTIVE KIDS YEADON LLP,No
Http://opendatacommunities.org/id/metropolitan-district-council/leeds,Leeds City Council,31/03/2021,Children and Families,Social Care,Third Party Payments,Services Rendered By Voluntary Sector,505,30/03/2021,2103-00440,0.00,568.44,R,ACTIVE KIDS YEADON LLP,No
Http://opendatacommunities.org/id/metropolitan-district-council/leeds,Leeds City Council,31/03/2021,Adults and Health,Services For Adults Under 65 Mental/Dis,Third Party Payments,Sheltered Accommodation,569,03/03/2021,2103-00441,0.00,13905.26,R,Active Pathways,No
Http://opendatacommunities.org/id/metropolitan-district-council/leeds,Leeds City Council,31/03/2021,Adults and Health,Services For Older People Under 65 P/Dis,Third Party Payments,Sheltered Accommodation,569,03/03/2021,2103-00442,0.00,12023.04,R,Active Pathways,No
Http://opendatacommunities.org/id/metropolitan-district-council/leeds,Leeds City Council as Accountable Body,31/03/2021,Social Services Pooled Budgets,Jcs For People With Learning Disabilitie,Third Party Payments,Sheltered Accommodation,569,03/03/2021,2103-00443,0.00,8301.68,R,Active Pathways,No
Http://opendatacommunities.org/id/metropolitan-district-council/leeds,Leeds City Council,31/03/2021,Adults and Health,Services For Adults Under 65 Mental/Dis,Third Party Payments,Sheltered Accommodation,569,31/03/2021,2103-00444,0.00,15773.12,R,Active Pathways,No
Http://opendatacommunities.org/id/metropolitan-district-council/leeds,Leeds City Council as Accountable Body,31/03/2021,Social Services Pooled Budgets,Jcs For People With Learning Disabilitie,Third Party Payments,Sheltered Accommodation,569,31/03/2021,2103-00445,0.00,15565.65,R,Active Pathways,No
Http://opendatacommunities.org/id/metropolitan-district-council/leeds,Leeds City Council,31/03/2021,Adults and Health,Services For Adults Under 65 Mental/Dis,Third Party Payments,Sheltered Accommodation,569,26/03/2021,2103-00446,0.00,1245.25,R,Active Pathways Supported Living,No
Http://opendatacommunities.org/id/metropolitan-district-council/leeds,Leeds City Council,31/03/2021,Adults and Health,Services For Adults Under 65 Mental/Dis,Third Party Payments,Sheltered Accommodation,569,26/03/2021,2103-00447,0.00,1245.25,R,Active Pathways Supported Living,No
Http://opendatacommunities.org/id/metropolitan-district-council/leeds,Leeds City Council,31/03/2021,Adults and Health,Other Adult Services,Third Party Payments,Residential,580,29/03/2021,2103-00448,0.00,510.60,R,Active Pathways Supported Living,No
Http://opendatacommunities.org/id/metropolitan-district-council/leeds,Leeds City Council,31/03/2021,Adults and Health,Services For Adults Under 65 Mental/Dis,Third Party Payments,Sheltered Accommodation,569,29/03/2021,2103-00449,0.00,1245.25,R,Active Pathways Supported Living,No
Http://opendatacommunities.org/id/metropolitan-district-council/leeds,Leeds City Council,31/03/2021,Adults and Health,Services For Adults Under 65 Mental/Dis,Third Party Payments,Sheltered Accommodation,569,29/03/2021,2103-00450,0.00,830.17,R,Active Pathways Supported Living,No
Http://opendatacommunities.org/id/metropolitan-district-council/leeds,Leeds City Council,31/03/2021,Adults and Health,Services For Adults Under 65 Mental/Dis,Third Party Payments,Sheltered Accommodation,569,29/03/2021,2103-00451,0.00,5323.91,R,Active Pathways Supported Living,No
Http://opendatacommunities.org/id/metropolitan-district-council/leeds,Leeds City Council,31/03/2021,Adults and Health,Services For Adults Under 65 Mental/Dis,Third Party Payments,Sheltered Accommodation,569,29/03/2021,2103-00452,0.00,1245.25,R,Active Pathways Supported Living,No
Http://opendatacommunities.org/id/metropolitan-district-council/leeds,Leeds City Council,31/03/2021,Adults and Health,Services For Adults Under 65 Mental/Dis,Third Party Payments,Sheltered Accommodation,569,29/03/2021,2103-00453,0.00,1245.25,R,Active Pathways Supported Living,No
Http://opendatacommunities.org/id/metropolitan-district-council/leeds,Leeds City Council,31/03/2021,Adults and Health,Services For Adults Under 65 Mental/Dis,Third Party Payments,Sheltered Accommodation,569,29/03/2021,2103-00454,0.00,1245.25,R,Active Pathways Supported Living,No
Http://opendatacommunities.org/id/metropolitan-district-council/leeds,Leeds City Council,31/03/2021,Adults and Health,Services For Adults Under 65 Mental/Dis,Third Party Payments,Sheltered Accommodation,569,31/03/2021,2103-00455,0.00,830.17,R,Active Pathways Supported Living,No
Http://opendatacommunities.org/id/metropolitan-district-council/leeds,Leeds City Council,31/03/2021,Communities and Environment,Waste Management,Supplies and Services,Recycling & Reuse Charges,234,02/03/2021,2103-00456,0.00,975.10,R,Acumen Waste Services Ltd,No
Http://opendatacommunities.org/id/metropolitan-district-council/leeds,Leeds City Council,31/03/2021,Communities and Environment,Cleaner Neighbourhood Teams,Premises,Removal Of Workplace Waste,126,02/03/2021,2103-00457,0.00,116.60,R,Acumen Waste Services Ltd,No
Http://opendatacommunities.org/id/metropolitan-district-council/leeds,Leeds City Council,31/03/2021,Communities and Environment,Waste Management,Supplies and Services,Recycling & Reuse Charges,234,04/03/2021,2103-00458,0.00,808.21,R,Acumen Waste Services Ltd,No
Http://opendatacommunities.org/id/metropolitan-district-council/leeds,Leeds City Council,31/03/2021,Communities and Environment,Waste Management,Supplies and Services,Recycling & Reuse Charges,234,04/03/2021,2103-00459,0.00,789.74,R,Acumen Waste Services Ltd,No
Http://opendatacommunities.org/id/metropolitan-district-council/leeds,Leeds City Council,31/03/2021,Communities and Environment,Cleaner Neighbourhood Teams,Premises,Removal Of Workplace Waste,126,04/03/2021,2103-00460,0.00,116.60,R,Acumen Waste Services Ltd,No
Http://opendatacommunities.org/id/metropolitan-district-council/leeds,Leeds City Council,31/03/2021,Communities and Environment,Waste Management,Supplies and Services,Recycling & Reuse Charges,234,10/03/2021,2103-00461,0.00,999.96,R,Acumen Waste Services Ltd,No
Http://opendatacommunities.org/id/metropolitan-district-council/leeds,Leeds City Council,31/03/2021,Communities and Environment,Waste Management,Supplies and Services,Recycling & Reuse Charges,234,10/03/2021,2103-00462,0.00,978.66,R,Acumen Waste Services Ltd,No
Http://opendatacommunities.org/id/metropolitan-district-council/leeds,Leeds City Council,31/03/2021,Communities and Environment,Waste Management,Supplies and Services,Recycling & Reuse Charges,234,10/03/2021,2103-00463,0.00,1026.95,R,Acumen Waste Services Ltd,No
Http://opendatacommunities.org/id/metropolitan-district-council/leeds,Leeds City Council,31/03/2021,Communities and Environment,Cleaner Neighbourhood Teams,Premises,Removal Of Workplace Waste,126,10/03/2021,2103-00464,0.00,116.60,R,Acumen Waste Services Ltd,No
Http://opendatacommunities.org/id/metropolitan-district-council/leeds,Leeds City Council,31/03/2021,Communities and Environment,Waste Management,Supplies and Services,Recycling & Reuse Charges,234,10/03/2021,2103-00465,0.00,1015.59,R,Acumen Waste Services Ltd,No
Http://opendatacommunities.org/id/metropolitan-district-council/leeds,Leeds City Council,31/03/2021,Communities and Environment,Waste Management,Supplies and Services,Recycling & Reuse Charges,234,11/03/2021,2103-00466,0.00,-369.50,R,Acumen Waste Services Ltd,No
Http://opendatacommunities.org/id/metropolitan-district-council/leeds,Leeds City Council,31/03/2021,Communities and Environment,Cleaner Neighbourhood Teams,Supplies and Services,Other Hired And Contracted Services,265,11/03/2021,2103-00467,0.00,28573.00,R,Acumen Waste Services Ltd,No
Http://opendatacommunities.org/id/metropolitan-district-council/leeds,Leeds City Council,31/03/2021,Communities and Environment,Cleaner Neighbourhood Teams,Premises,Removal Of Workplace Waste,126,11/03/2021,2103-00468,0.00,116.60,R,Acumen Waste Services Ltd,No
Http://opendatacommunities.org/id/metropolitan-district-council/leeds,Leeds City Council,31/03/2021,Communities and Environment,Waste Management,Supplies and Services,Recycling & Reuse Charges,234,12/03/2021,2103-00469,0.00,1007.06,R,Acumen Waste Services Ltd,No
Http://opendatacommunities.org/id/metropolitan-district-council/leeds,Leeds City Council,31/03/2021,Communities and Environment,Waste Management,Supplies and Services,Recycling & Reuse Charges,234,12/03/2021,2103-00470,0.00,761.33,R,Acumen Waste Services Ltd,No
Http://opendatacommunities.org/id/metropolitan-district-council/leeds,Leeds City Council,31/03/2021,Communities and Environment,Cleaner Neighbourhood Teams,Premises,Removal Of Workplace Waste,126,16/03/2021,2103-00471,0.00,116.60,R,Acumen Waste Services Ltd,No
Http://opendatacommunities.org/id/metropolitan-district-council/leeds,Leeds City Council,31/03/2021,Communities and Environment,Cleaner Neighbourhood Teams,Premises,Removal Of Workplace Waste,126,16/03/2021,2103-00472,0.00,116.60,R,Acumen Waste Services Ltd,No
Http://opendatacommunities.org/id/metropolitan-district-council/leeds,Leeds City Council,31/03/2021,Communities and Environment,Waste Management,Supplies and Services,Recycling & Reuse Charges,234,17/03/2021,2103-00473,0.00,826.67,R,Acumen Waste Services Ltd,No
Http://opendatacommunities.org/id/metropolitan-district-council/leeds,Leeds City Council,31/03/2021,Communities and Environment,Cleaner Neighbourhood Teams,Premises,Removal Of Workplace Waste,126,19/03/2021,2103-00474,0.00,116.60,R,Acumen Waste Services Ltd,No
Http://opendatacommunities.org/id/metropolitan-district-council/leeds,Leeds City Council,31/03/2021,Communities and Environment,Waste Management,Supplies and Services,Recycling & Reuse Charges,234,19/03/2021,2103-00475,0.00,1032.63,R,Acumen Waste Services Ltd,No
Http://opendatacommunities.org/id/metropolitan-district-council/leeds,Leeds City Council,31/03/2021,Communities and Environment,Cleaner Neighbourhood Teams,Premises,Removal Of Workplace Waste,126,22/03/2021,2103-00476,0.00,116.60,R,Acumen Waste Services Ltd,No
Http://opendatacommunities.org/id/metropolitan-district-council/leeds,Leeds City Council,31/03/2021,Communities and Environment,Cleaner Neighbourhood Teams,Premises,Removal Of Workplace Waste,126,22/03/2021,2103-00477,0.00,116.60,R,Acumen Waste Services Ltd,No
Http://opendatacommunities.org/id/metropolitan-district-council/leeds,Leeds City Council,31/03/2021,Communities and Environment,Cleaner Neighbourhood Teams,Premises,Removal Of Workplace Waste,126,22/03/2021,2103-00478,0.00,116.60,R,Acumen Waste Services Ltd,No
Http://opendatacommunities.org/id/metropolitan-district-council/leeds,Leeds City Council,31/03/2021,Communities and Environment,Cleaner Neighbourhood Teams,Premises,Removal Of Workplace Waste,126,22/03/2021,2103-00479,0.00,116.60,R,Acumen Waste Services Ltd,No
Http://opendatacommunities.org/id/metropolitan-district-council/leeds,Leeds City Council,31/03/2021,Communities and Environment,Cleaner Neighbourhood Teams,Premises,Removal Of Workplace Waste,126,22/03/2021,2103-00480,0.00,116.60,R,Acumen Waste Services Ltd,No
Http://opendatacommunities.org/id/metropolitan-district-council/leeds,Leeds City Council,31/03/2021,Communities and Environment,Cleaner Neighbourhood Teams,Premises,Removal Of Workplace Waste,126,22/03/2021,2103-00481,0.00,116.60,R,Acumen Waste Services Ltd,No
Http://opendatacommunities.org/id/metropolitan-district-council/leeds,Leeds City Council,31/03/2021,Communities and Environment,Cleaner Neighbourhood Teams,Premises,Removal Of Workplace Waste,126,22/03/2021,2103-00482,0.00,116.60,R,Acumen Waste Services Ltd,No
Http://opendatacommunities.org/id/metropolitan-district-council/leeds,Leeds City Council,31/03/2021,Communities and Environment,Cleaner Neighbourhood Teams,Premises,Removal Of Workplace Waste,126,22/03/2021,2103-00483,0.00,116.60,R,Acumen Waste Services Ltd,No
Http://opendatacommunities.org/id/metropolitan-district-council/leeds,Leeds City Council,31/03/2021,Communities and Environment,Cleaner Neighbourhood Teams,Premises,Removal Of Workplace Waste,126,22/03/2021,2103-00484,0.00,116.60,R,Acumen Waste Services Ltd,No
Http://opendatacommunities.org/id/metropolitan-district-council/leeds,Leeds City Council,31/03/2021,Communities and Environment,Cleaner Neighbourhood Teams,Premises,Removal Of Workplace Waste,126,22/03/2021,2103-00485,0.00,116.60,R,Acumen Waste Services Ltd,No
Http://opendatacommunities.org/id/metropolitan-district-council/leeds,Leeds City Council,31/03/2021,Communities and Environment,Cleaner Neighbourhood Teams,Premises,Removal Of Workplace Waste,126,22/03/2021,2103-00486,0.00,116.60,R,Acumen Waste Services Ltd,No
Http://opendatacommunities.org/id/metropolitan-district-council/leeds,Leeds City Council,31/03/2021,Communities and Environment,Cleaner Neighbourhood Teams,Premises,Removal Of Workplace Waste,126,22/03/2021,2103-00487,0.00,116.60,R,Acumen Waste Services Ltd,No
Http://opendatacommunities.org/id/metropolitan-district-council/leeds,Leeds City Council,31/03/2021,Communities and Environment,Waste Management,Supplies and Services,Recycling & Reuse Charges,234,24/03/2021,2103-00488,0.00,1017.01,R,Acumen Waste Services Ltd,No
Http://opendatacommunities.org/id/metropolitan-district-council/leeds,Leeds City Council,31/03/2021,Communities and Environment,Waste Management,Supplies and Services,Recycling & Reuse Charges,234,24/03/2021,2103-00489,0.00,841.59,R,Acumen Waste Services Ltd,No
Http://opendatacommunities.org/id/metropolitan-district-council/leeds,Leeds City Council,31/03/2021,Communities and Environment,Cleaner Neighbourhood Teams,Premises,Removal Of Workplace Waste,126,24/03/2021,2103-00490,0.00,116.60,R,Acumen Waste Services Ltd,No
Http://opendatacommunities.org/id/metropolitan-district-council/leeds,Leeds City Council,31/03/2021,Communities and Environment,Cleaner Neighbourhood Teams,Premises,Removal Of Workplace Waste,126,24/03/2021,2103-00491,0.00,116.60,R,Acumen Waste Services Ltd,No
Http://opendatacommunities.org/id/metropolitan-district-council/leeds,Leeds City Council,31/03/2021,Communities and Environment,Cleaner Neighbourhood Teams,Premises,Removal Of Workplace Waste,126,24/03/2021,2103-00492,0.00,116.60,R,Acumen Waste Services Ltd,No
Http://opendatacommunities.org/id/metropolitan-district-council/leeds,Leeds City Council,31/03/2021,Communities and Environment,Cleaner Neighbourhood Teams,Premises,Removal Of Workplace Waste,126,25/03/2021,2103-00493,0.00,116.60,R,Acumen Waste Services Ltd,No
Http://opendatacommunities.org/id/metropolitan-district-council/leeds,Leeds City Council,31/03/2021,Communities and Environment,Waste Management,Supplies and Services,Recycling & Reuse Charges,234,25/03/2021,2103-00494,0.00,868.57,R,Acumen Waste Services Ltd,No
Http://opendatacommunities.org/id/metropolitan-district-council/leeds,Leeds City Council,31/03/2021,Communities and Environment,Waste Management,Supplies and Services,Recycling & Reuse Charges,234,25/03/2021,2103-00495,0.00,951.67,R,Acumen Waste Services Ltd,No
Http://opendatacommunities.org/id/metropolitan-district-council/leeds,Leeds City Council,31/03/2021,Communities and Environment,Waste Management,Supplies and Services,Recycling & Reuse Charges,234,25/03/2021,2103-00496,0.00,1014.17,R,Acumen Waste Services Ltd,No
Http://opendatacommunities.org/id/metropolitan-district-council/leeds,Leeds City Council,31/03/2021,Communities and Environment,Waste Management,Supplies and Services,Recycling & Reuse Charges,234,25/03/2021,2103-00497,0.00,996.41,R,Acumen Waste Services Ltd,No
Http://opendatacommunities.org/id/metropolitan-district-council/leeds,Leeds City Council,31/03/2021,Communities and Environment,Waste Management,Supplies and Services,Recycling & Reuse Charges,234,25/03/2021,2103-00498,0.00,1002.80,R,Acumen Waste Services Ltd,No
Http://opendatacommunities.org/id/metropolitan-district-council/leeds,Leeds City Council,31/03/2021,Communities and Environment,Waste Management,Supplies and Services,Recycling & Reuse Charges,234,26/03/2021,2103-00499,0.00,369.50,R,Acumen Waste Services Ltd,No
Http://opendatacommunities.org/id/metropolitan-district-council/leeds,Leeds City Council,31/03/2021,Communities and Environment,Waste Management,Supplies and Services,Recycling & Reuse Charges,234,29/03/2021,2103-00500,0.00,1010.61,R,Acumen Waste Services Ltd,No
Http://opendatacommunities.org/id/metropolitan-district-council/leeds,Leeds City Council,31/03/2021,Communities and Environment,Waste Management,Supplies and Services,Recycling & Reuse Charges,234,29/03/2021,2103-00501,0.00,981.50,R,Acumen Waste Services Ltd,No
Http://opendatacommunities.org/id/metropolitan-district-council/leeds,Leeds City Council,31/03/2021,Communities and Environment,Cleaner Neighbourhood Teams,Premises,Removal Of Workplace Waste,126,29/03/2021,2103-00502,0.00,116.60,R,Acumen Waste Services Ltd,No
Http://opendatacommunities.org/id/metropolitan-district-council/leeds,Leeds City Council,31/03/2021,City Development,Economic Development,Supplies and Services,Grant Related Expenditure,290,26/03/2021,2103-00503,0.00,10000.00,R,Acute Care Chiropractic Clinic Ltd,No
Http://opendatacommunities.org/id/metropolitan-district-council/leeds,Leeds City Council,31/03/2021,Resources and Housing,Shared Services,Supplies and Services,Operational Materials,205,30/03/2021,2103-00504,0.00,1131.75,R,AD3 Envelope Printers Limited,No
Http://opendatacommunities.org/id/metropolitan-district-council/leeds,Leeds City Council,31/03/2021,Resources and Housing,Strategic Housing Partnership & Support,Supplies and Services,Other Hired And Contracted Services,265,01/03/2021,2103-00505,0.00,1892.29,R,Adair Paxton LLP,No
Http://opendatacommunities.org/id/metropolitan-district-council/leeds,Leeds City Council,31/03/2021,City Development,Libraries Arts & Heritage,Supplies and Services,Other Hired And Contracted Services,265,04/03/2021,2103-00506,0.00,158.44,R,REDACTED PERSONAL DATA,No
Http://opendatacommunities.org/id/metropolitan-district-council/leeds,Leeds City Council,31/03/2021,Children and Families,Social Care,Third Party Payments,Contact,548,04/03/2021,2103-00507,0.00,26.30,R,REDACTED PERSONAL DATA,No
Http://opendatacommunities.org/id/metropolitan-district-council/leeds,Leeds City Council,31/03/2021,Children and Families,Social Care,Transfer Payments,Leaving Care Allowances,634,09/03/2021,2103-00508,0.00,5.00,R,REDACTED PERSONAL DATA,No
Http://opendatacommunities.org/id/metropolitan-district-council/leeds,Leeds City Council,31/03/2021,Children and Families,Social Care,Transfer Payments,Leaving Care Allowances,634,26/03/2021,2103-00509,0.00,210.00,R,REDACTED PERSONAL DATA,No
Http://opendatacommunities.org/id/metropolitan-district-council/leeds,Leeds City Council,31/03/2021,Communities and Environment,Benefits Welfare and Poverty,Supplies and Services,Grant Related Expenditure,298,03/03/2021,2103-00510,0.00,500.00,R,REDACTED PERSONAL DATA,No
Http://opendatacommunities.org/id/metropolitan-district-council/leeds,Leeds City Council,31/03/2021,City Development,Economic Development,Supplies and Services,Grant Related Expenditure,298,11/03/2021,2103-00511,0.00,500.00,R,REDACTED PERSONAL DATA,No
Http://opendatacommunities.org/id/metropolitan-district-council/leeds,Leeds City Council,31/03/2021,City Development,Economic Development,Supplies and Services,Grant Related Expenditure,290,18/03/2021,2103-00512,0.00,1000.00,R,Adarak Ltd,No
Http://opendatacommunities.org/id/metropolitan-district-council/leeds,Leeds City Council,31/03/2021,Adults and Health,Services For Older People - 65 And Over,Third Party Payments,Nursing Home,570,03/03/2021,2103-00513,0.00,2584.00,R,Adbolton Hall,No
Http://opendatacommunities.org/id/metropolitan-district-council/leeds,Leeds City Council,31/03/2021,Adults and Health,Services For Older People - 65 And Over,Third Party Payments,Nursing Home,570,31/03/2021,2103-00514,0.00,2584.00,R,Adbolton Hall,No
Http://opendatacommunities.org/id/metropolitan-district-council/leeds,Leeds City Council,31/03/2021,Resources and Housing,Commercial Services,Transport,Vehicle Spares,345,12/03/2021,2103-00515,0.00,54.27,R,Addison Motors Limited,No
Http://opendatacommunities.org/id/metropolitan-district-council/leeds,Leeds City Council,31/03/2021,City Development,Economic Development,Supplies and Services,Grant Related Expenditure,290,02/03/2021,2103-00516,0.00,1620.00,R,Additive Design Ltd,No
Http://opendatacommunities.org/id/metropolitan-district-council/leeds,Leeds City Council,31/03/2021,City Development,Highways,Capital,OTHER COSTS,7,26/03/2021,2103-00517,0.00,409911.20,C,Addleshaw Goddard Client Account,No
Http://opendatacommunities.org/id/metropolitan-district-council/leeds,Leeds City Council,31/03/2021,Communities and Environment,Parks and Countryside,Supplies and Services,Other Hired And Contracted Services,265,04/03/2021,2103-00518,0.00,8484.00,R,Addlestone & Partners,No
Http://opendatacommunities.org/id/metropolitan-district-council/leeds,Leeds City Council,31/03/2021,Resources and Housing,Technology  ,Employees,Agency Staff,8,02/02/2021,2103-00519,0.00,21834.06,R,Adecco Alfred Marks,Yes
Http://opendatacommunities.org/id/metropolitan-district-council/leeds,Leeds City Council,31/03/2021,Resources and Housing,Technology  ,Employees,Agency Staff,8,16/02/2021,2103-00520,0.00,41165.65,R,Adecco Alfred Marks,Yes
Http://opendatacommunities.org/id/metropolitan-district-council/leeds,Leeds City Council,31/03/2021,Communities and Environment,Benefits Welfare and Poverty,Supplies and Services,Grant Related Expenditure,298,24/03/2021,2103-00521,0.00,500.00,R,REDACTED PERSONAL DATA,No
Http://opendatacommunities.org/id/metropolitan-district-council/leeds,Leeds City Council,31/03/2021,Communities and Environment,Communities,Supplies and Services,Grant Related Expenditure,290,22/03/2021,2103-00522,0.00,535.96,R,Adel Artist Group,No
Http://opendatacommunities.org/id/metropolitan-district-council/leeds,Leeds City Council,31/03/2021,Children and Families,Social Care,Third Party Payments,Services Rendered By Voluntary Sector,505,03/03/2021,2103-00523,0.00,2661.12,R,ADEL PRE SCHOOL,No
Http://opendatacommunities.org/id/metropolitan-district-council/leeds,Leeds City Council,31/03/2021,Children and Families,Social Care,Third Party Payments,Services Rendered By Voluntary Sector,505,05/03/2021,2103-00524,0.00,12877.20,R,ADEL PRE SCHOOL,No
Http://opendatacommunities.org/id/metropolitan-district-council/leeds,Leeds City Council,31/03/2021,Children and Families,Social Care,Third Party Payments,Services Rendered By Voluntary Sector,505,05/03/2021,2103-00525,0.00,1045.80,R,ADEL PRE SCHOOL,No
Http://opendatacommunities.org/id/metropolitan-district-council/leeds,Leeds City Council,31/03/2021,Children and Families,Social Care,Third Party Payments,Services Rendered By Voluntary Sector,505,05/03/2021,2103-00526,0.00,572.40,R,ADEL PRE SCHOOL,No
Http://opendatacommunities.org/id/metropolitan-district-council/leeds,Leeds City Council,31/03/2021,City Development,Economic Development,Supplies and Services,Grant Related Expenditure,290,23/03/2021,2103-00527,0.00,458.00,R,Adel Sports And Social Club,No
Http://opendatacommunities.org/id/metropolitan-district-council/leeds,Leeds City Council,31/03/2021,City Development,Economic Development,Supplies and Services,Grant Related Expenditure,290,30/03/2021,2103-00528,0.00,458.00,R,Adel Sports And Social Club,No
Http://opendatacommunities.org/id/metropolitan-district-council/leeds,Leeds City Council,31/03/2021,Children and Families,Social Care,Third Party Payments,Services Rendered By Other Organisations,511,03/03/2021,2103-00529,0.00,950.40,R,REDACTED PERSONAL DATA,No
Http://opendatacommunities.org/id/metropolitan-district-council/leeds,Leeds City Council,31/03/2021,Children and Families,Social Care,Third Party Payments,Services Rendered By Other Organisations,511,05/03/2021,2103-00530,0.00,1576.80,R,REDACTED PERSONAL DATA,No
Http://opendatacommunities.org/id/metropolitan-district-council/leeds,Leeds City Council,31/03/2021,Children and Families,Social Care,Third Party Payments,Services Rendered By Other Organisations,511,05/03/2021,2103-00531,0.00,167.40,R,REDACTED PERSONAL DATA,No
Http://opendatacommunities.org/id/metropolitan-district-council/leeds,Leeds City Council,31/03/2021,Communities and Environment,Benefits Welfare and Poverty,Supplies and Services,Grant Related Expenditure,290,15/03/2021,2103-00532,0.00,500.00,R,REDACTED PERSONAL DATA,No
Http://opendatacommunities.org/id/metropolitan-district-council/leeds,Leeds City Council,31/03/2021,Communities and Environment,Parks and Countryside  ,Supplies and Services,Operational Furniture And Equipment,203,13/02/2021,2103-00533,0.00,59.96,R,Adexa Direct,Yes
Http://opendatacommunities.org/id/metropolitan-district-council/leeds,Leeds City Council,31/03/2021,Children and Families,Social Care  ,Supplies and Services,Operational Furniture And Equipment,203,17/02/2021,2103-00534,0.00,231.92,R,Adexa Direct,Yes
Http://opendatacommunities.org/id/metropolitan-district-council/leeds,Leeds City Council,31/03/2021,Resources and Housing,Leeds Building Services,Supplies and Services,Operational Materials,205,03/03/2021,2103-00535,0.00,19.53,R,ADI Global,No
Http://opendatacommunities.org/id/metropolitan-district-council/leeds,Leeds City Council,31/03/2021,Resources and Housing,Leeds Building Services,Supplies and Services,STORES - CENTRAL AND OTHER DEPOTS,005,03/03/2021,2103-00536,0.00,30.00,R,ADI Global,No
Http://opendatacommunities.org/id/metropolitan-district-council/leeds,Leeds City Council,31/03/2021,Resources and Housing,Leeds Building Services,Supplies and Services,STORES - CENTRAL AND OTHER DEPOTS,005,03/03/2021,2103-00537,0.00,707.00,R,ADI Global,No
Http://opendatacommunities.org/id/metropolitan-district-council/leeds,Leeds City Council,31/03/2021,City Development,Libraries Arts & Heritage,Supplies and Services,Operational Furniture And Equipment,203,19/03/2021,2103-00538,0.00,2517.84,R,ADI UK LTD,No
Http://opendatacommunities.org/id/metropolitan-district-council/leeds,Leeds City Council,31/03/2021,Children and Families,Social Care  ,Supplies and Services,Clothing & Uniforms,241,24/02/2021,2103-00539,0.00,-30.07,R,Adidaswww.Adidas.Co.Uk,Yes
Http://opendatacommunities.org/id/metropolitan-district-council/leeds,Leeds City Council,31/03/2021,City Development,Libraries Arts & Heritage  ,Supplies and Services,Computer Software & Equipment,214,02/02/2021,2103-00540,0.00,25.28,R,Adobe Creative Cloud,Yes
Http://opendatacommunities.org/id/metropolitan-district-council/leeds,Leeds City Council,31/03/2021,Children and Families,Social Care,Third Party Payments,Independent Fostering Agencies,509,05/03/2021,2103-00541,0.00,3689.00,R,Adolescent And Childrens Trust,No
Http://opendatacommunities.org/id/metropolitan-district-council/leeds,Leeds City Council,31/03/2021,Children and Families,Social Care,Third Party Payments,Independent Fostering Agencies,509,05/03/2021,2103-00542,0.00,3503.00,R,Adolescent And Childrens Trust,No
Http://opendatacommunities.org/id/metropolitan-district-council/leeds,Leeds City Council,31/03/2021,Children and Families,Social Care,Third Party Payments,Independent Fostering Agencies,509,05/03/2021,2103-00543,0.00,3503.00,R,Adolescent And Childrens Trust,No
Http://opendatacommunities.org/id/metropolitan-district-council/leeds,Leeds City Council,31/03/2021,Children and Families,Social Care,Third Party Payments,Independent Fostering Agencies,509,05/03/2021,2103-00544,0.00,3503.00,R,Adolescent And Childrens Trust,No
Http://opendatacommunities.org/id/metropolitan-district-council/leeds,Leeds City Council,31/03/2021,Children and Families,Social Care,Third Party Payments,Independent Fostering Agencies,509,05/03/2021,2103-00545,0.00,2737.00,R,Adolescent And Childrens Trust,No
Http://opendatacommunities.org/id/metropolitan-district-council/leeds,Leeds City Council,31/03/2021,Children and Families,Social Care,Third Party Payments,Independent Fostering Agencies,509,05/03/2021,2103-00546,0.00,3689.00,R,Adolescent And Childrens Trust,No
Http://opendatacommunities.org/id/metropolitan-district-council/leeds,Leeds City Council,31/03/2021,Children and Families,Social Care,Third Party Payments,Independent Fostering Agencies,509,05/03/2021,2103-00547,0.00,3503.00,R,Adolescent And Childrens Trust,No
Http://opendatacommunities.org/id/metropolitan-district-council/leeds,Leeds City Council,31/03/2021,Children and Families,Social Care,Third Party Payments,Independent Fostering Agencies,509,05/03/2021,2103-00548,0.00,3503.00,R,Adolescent And Childrens Trust,No
Http://opendatacommunities.org/id/metropolitan-district-council/leeds,Leeds City Council,31/03/2021,Children and Families,Social Care,Third Party Payments,Independent Fostering Agencies,509,05/03/2021,2103-00549,0.00,3503.00,R,Adolescent And Childrens Trust,No
Http://opendatacommunities.org/id/metropolitan-district-council/leeds,Leeds City Council,31/03/2021,Children and Families,Social Care,Third Party Payments,Independent Fostering Agencies,509,05/03/2021,2103-00550,0.00,3689.00,R,Adolescent And Childrens Trust,No
Http://opendatacommunities.org/id/metropolitan-district-council/leeds,Leeds City Council,31/03/2021,Children and Families,Social Care,Third Party Payments,Independent Fostering Agencies,509,05/03/2021,2103-00551,0.00,3503.00,R,Adolescent And Childrens Trust,No
Http://opendatacommunities.org/id/metropolitan-district-council/leeds,Leeds City Council,31/03/2021,Children and Families,Social Care,Third Party Payments,Independent Fostering Agencies,509,05/03/2021,2103-00552,0.00,4534.99,R,Adolescent And Childrens Trust,No
Http://opendatacommunities.org/id/metropolitan-district-council/leeds,Leeds City Council,31/03/2021,Children and Families,Social Care,Third Party Payments,Independent Fostering Agencies,509,05/03/2021,2103-00553,0.00,3689.00,R,Adolescent And Childrens Trust,No
Http://opendatacommunities.org/id/metropolitan-district-council/leeds,Leeds City Council,31/03/2021,Children and Families,Social Care,Third Party Payments,Independent Fostering Agencies,509,05/03/2021,2103-00554,0.00,3689.00,R,Adolescent And Childrens Trust,No
Http://opendatacommunities.org/id/metropolitan-district-council/leeds,Leeds City Council,31/03/2021,Children and Families,Social Care,Third Party Payments,Independent Fostering Agencies,509,30/03/2021,2103-00555,0.00,3332.00,R,Adolescent And Childrens Trust,No
Http://opendatacommunities.org/id/metropolitan-district-council/leeds,Leeds City Council,31/03/2021,Adults and Health,Other Adult Services,Third Party Payments,Residential,580,31/03/2021,2103-00556,0.00,48.28,R,Adopt Healthcare,No
Http://opendatacommunities.org/id/metropolitan-district-council/leeds,Leeds City Council,31/03/2021,Communities and Environment,Benefits Welfare and Poverty,Supplies and Services,Grant Related Expenditure,298,09/03/2021,2103-00557,0.00,500.00,R,REDACTED PERSONAL DATA,No
Http://opendatacommunities.org/id/metropolitan-district-council/leeds,Leeds City Council as Accountable Body,31/03/2021,Social Services Pooled Budgets,Jcs For People With Learning Disabilitie,Third Party Payments,Residential,580,04/03/2021,2103-00558,0.00,2609.36,R,ADRIAN HOUSE,No
Http://opendatacommunities.org/id/metropolitan-district-council/leeds,Leeds City Council,31/03/2021,Strategic Landlord,Property and Contracts,Premises,General Maintenance,104,12/03/2021,2103-00559,0.00,246.00,R,ADT Fire And Security Plc,No
Http://opendatacommunities.org/id/metropolitan-district-council/leeds,Leeds City Council,31/03/2021,Strategic Landlord,Property and Contracts,Premises,General Maintenance,104,12/03/2021,2103-00560,0.00,189.76,R,ADT Fire And Security Plc,No
Http://opendatacommunities.org/id/metropolitan-district-council/leeds,Leeds City Council,31/03/2021,Resources and Housing,Leeds Building Services,Supplies and Services,Operational Materials,205,24/03/2021,2103-00561,0.00,200.00,R,ADVANCED LABELLING LIMITED,No
Http://opendatacommunities.org/id/metropolitan-district-council/leeds,Leeds City Council as Accountable Body,31/03/2021,Social Services Pooled Budgets,Jcs For People With Learning Disabilitie,Third Party Payments,Home Care,568,03/03/2021,2103-00562,0.00,2292.22,R,Advantage Healthcare Ltd,No
Http://opendatacommunities.org/id/metropolitan-district-council/leeds,Leeds City Council as Accountable Body,31/03/2021,Social Services Pooled Budgets,Jcs For People With Learning Disabilitie,Third Party Payments,Home Care,568,03/03/2021,2103-00563,0.00,2785.88,R,Advantage Healthcare Ltd,No
Http://opendatacommunities.org/id/metropolitan-district-council/leeds,Leeds City Council as Accountable Body,31/03/2021,Social Services Pooled Budgets,Jcs For People With Learning Disabilitie,Third Party Payments,Home Care,568,08/03/2021,2103-00564,0.00,2926.42,R,Advantage Healthcare Ltd,No
Http://opendatacommunities.org/id/metropolitan-district-council/leeds,Leeds City Council as Accountable Body,31/03/2021,Social Services Pooled Budgets,Jcs For People With Learning Disabilitie,Third Party Payments,Home Care,568,08/03/2021,2103-00565,0.00,2880.25,R,Advantage Healthcare Ltd,No
Http://opendatacommunities.org/id/metropolitan-district-council/leeds,Leeds City Council as Accountable Body,31/03/2021,Social Services Pooled Budgets,Jcs For People With Learning Disabilitie,Third Party Payments,Home Care,568,11/03/2021,2103-00566,0.00,2021.74,R,Advantage Healthcare Ltd,No
Http://opendatacommunities.org/id/metropolitan-district-council/leeds,Leeds City Council as Accountable Body,31/03/2021,Social Services Pooled Budgets,Jcs For People With Learning Disabilitie,Third Party Payments,Home Care,568,11/03/2021,2103-00567,0.00,2292.22,R,Advantage Healthcare Ltd,No
Http://opendatacommunities.org/id/metropolitan-district-council/leeds,Leeds City Council as Accountable Body,31/03/2021,Social Services Pooled Budgets,Jcs For People With Learning Disabilitie,Third Party Payments,Home Care,568,11/03/2021,2103-00568,0.00,2888.88,R,Advantage Healthcare Ltd,No
Http://opendatacommunities.org/id/metropolitan-district-council/leeds,Leeds City Council as Accountable Body,31/03/2021,Social Services Pooled Budgets,Jcs For People With Learning Disabilitie,Third Party Payments,Home Care,568,19/03/2021,2103-00569,0.00,1725.00,R,Advantage Healthcare Ltd,No
Http://opendatacommunities.org/id/metropolitan-district-council/leeds,Leeds City Council,31/03/2021,Adults and Health,Other Adult Services,Third Party Payments,Payments To Voluntary Organisations,561,30/03/2021,2103-00570,0.00,1716.00,R,Advantage Healthcare Ltd,No
Http://opendatacommunities.org/id/metropolitan-district-council/leeds,Leeds City Council,31/03/2021,Insurance,Insurance,Supplies and Services,Insurance Claims,248,24/03/2021,2103-00571,0.00,918.97,R,Advantis Credit Ltd,No
Http://opendatacommunities.org/id/metropolitan-district-council/leeds,Leeds City Council as Accountable Body,31/03/2021,Social Services Pooled Budgets,Jcs For People With Learning Disabilitie,Third Party Payments,Residential,580,03/03/2021,2103-00572,0.00,17134.76,R,ADVITAM LTD,No
Http://opendatacommunities.org/id/metropolitan-district-council/leeds,Leeds City Council as Accountable Body,31/03/2021,Social Services Pooled Budgets,Jcs For People With Learning Disabilitie,Third Party Payments,Residential,580,31/03/2021,2103-00573,0.00,17128.06,R,ADVITAM LTD,No
Http://opendatacommunities.org/id/metropolitan-district-council/leeds,Leeds City Council as Accountable Body,31/03/2021,Social Services Pooled Budgets,Jcs For People With Learning Disabilitie,Supplies and Services,Other Hired And Contracted Services,265,05/03/2021,2103-00574,0.00,107.40,R,Advonet,No
Http://opendatacommunities.org/id/metropolitan-district-council/leeds,Leeds City Council as Accountable Body,31/03/2021,Social Services Pooled Budgets,Jcs For People With Learning Disabilitie,Third Party Payments,Home Care,568,05/03/2021,2103-00575,0.00,75.00,R,Advonet,No
Http://opendatacommunities.org/id/metropolitan-district-council/leeds,Leeds City Council,31/03/2021,Adults and Health,Social Services Support Services,Supplies and Services,Consultancy Services,259,05/03/2021,2103-00576,0.00,10000.00,R,Advonet,No
Http://opendatacommunities.org/id/metropolitan-district-council/leeds,Leeds City Council as Accountable Body,31/03/2021,Social Services Pooled Budgets,Jcs For People With Learning Disabilitie,Supplies and Services,Other Hired And Contracted Services,265,18/03/2021,2103-00577,0.00,50.10,R,Advonet,No
Http://opendatacommunities.org/id/metropolitan-district-council/leeds,Leeds City Council as Accountable Body,31/03/2021,Social Services Pooled Budgets,Jcs For People With Learning Disabilitie,Third Party Payments,Other Agency Services,561,19/03/2021,2103-00578,0.00,255.00,R,Advonet,No
Http://opendatacommunities.org/id/metropolitan-district-council/leeds,Leeds City Council,31/03/2021,Adults and Health,Services For Older People - 65 And Over,Third Party Payments,Payments To Voluntary Organisations,561,19/03/2021,2103-00579,0.00,103916.67,R,Advonet,No
Http://opendatacommunities.org/id/metropolitan-district-council/leeds,Leeds City Council,31/03/2021,Adults and Health,Services For Adults Under 65 Mental/Dis,Third Party Payments,Fees - Level 4,520,04/03/2021,2103-00580,0.00,198.00,R,AE BIA Assessments Limited,No
Http://opendatacommunities.org/id/metropolitan-district-council/leeds,Leeds City Council,31/03/2021,Adults and Health,Services For Adults Under 65 Mental/Dis,Third Party Payments,Fees - Level 4,520,08/03/2021,2103-00581,0.00,198.00,R,AE BIA Assessments Limited,No
Http://opendatacommunities.org/id/metropolitan-district-council/leeds,Leeds City Council,31/03/2021,Adults and Health,Services For Adults Under 65 Mental/Dis,Third Party Payments,Fees - Level 4,520,08/03/2021,2103-00582,0.00,198.00,R,AE BIA Assessments Limited,No
Http://opendatacommunities.org/id/metropolitan-district-council/leeds,Leeds City Council,31/03/2021,Adults and Health,Services For Adults Under 65 Mental/Dis,Third Party Payments,Fees - Level 4,520,10/03/2021,2103-00583,0.00,198.00,R,AE BIA Assessments Limited,No
Http://opendatacommunities.org/id/metropolitan-district-council/leeds,Leeds City Council,31/03/2021,Adults and Health,Services For Adults Under 65 Mental/Dis,Third Party Payments,Fees - Level 4,520,12/03/2021,2103-00584,0.00,198.00,R,AE BIA Assessments Limited,No
Http://opendatacommunities.org/id/metropolitan-district-council/leeds,Leeds City Council,31/03/2021,Adults and Health,Services For Adults Under 65 Mental/Dis,Third Party Payments,Fees - Level 4,520,12/03/2021,2103-00585,0.00,198.00,R,AE BIA Assessments Limited,No
Http://opendatacommunities.org/id/metropolitan-district-council/leeds,Leeds City Council,31/03/2021,Adults and Health,Services For Adults Under 65 Mental/Dis,Third Party Payments,Fees - Level 4,520,15/03/2021,2103-00586,0.00,198.00,R,AE BIA Assessments Limited,No
Http://opendatacommunities.org/id/metropolitan-district-council/leeds,Leeds City Council,31/03/2021,Adults and Health,Services For Adults Under 65 Mental/Dis,Third Party Payments,Fees - Level 4,520,17/03/2021,2103-00587,0.00,198.00,R,AE BIA Assessments Limited,No
Http://opendatacommunities.org/id/metropolitan-district-council/leeds,Leeds City Council,31/03/2021,Adults and Health,Services For Adults Under 65 Mental/Dis,Third Party Payments,Fees - Level 4,520,25/03/2021,2103-00588,0.00,198.00,R,AE BIA Assessments Limited,No
Http://opendatacommunities.org/id/metropolitan-district-council/leeds,Leeds City Council,31/03/2021,Adults and Health,Services For Adults Under 65 Mental/Dis,Third Party Payments,Fees - Level 4,520,26/03/2021,2103-00589,0.00,198.00,R,AE BIA Assessments Limited,No
Http://opendatacommunities.org/id/metropolitan-district-council/leeds,Leeds City Council,31/03/2021,Adults and Health,Services For Adults Under 65 Mental/Dis,Third Party Payments,Fees - Level 4,520,26/03/2021,2103-00590,0.00,198.00,R,AE BIA Assessments Limited,No
Http://opendatacommunities.org/id/metropolitan-district-council/leeds,Leeds City Council,31/03/2021,City Development,Highways,Capital,OTHER COSTS,7,04/03/2021,2103-00591,0.00,33451.63,C,Aecom Limited,No
Http://opendatacommunities.org/id/metropolitan-district-council/leeds,Leeds City Council,31/03/2021,City Development,Highways,Capital,OTHER COSTS,7,08/03/2021,2103-00592,0.00,6500.00,C,Aecom Limited,No
Http://opendatacommunities.org/id/metropolitan-district-council/leeds,Leeds City Council,31/03/2021,City Development,Asset Management,Capital,OTHER COSTS,7,17/03/2021,2103-00593,0.00,9657.79,C,Aecom Limited,No
Http://opendatacommunities.org/id/metropolitan-district-council/leeds,Leeds City Council,31/03/2021,City Development,Asset Management,Capital,OTHER COSTS,7,18/03/2021,2103-00594,0.00,5457.33,C,Aecom Limited,No
Http://opendatacommunities.org/id/metropolitan-district-council/leeds,Leeds City Council,31/03/2021,City Development,Highways,Capital,OTHER COSTS,7,18/03/2021,2103-00595,0.00,55909.48,C,Aecom Limited,No
Http://opendatacommunities.org/id/metropolitan-district-council/leeds,Leeds City Council,31/03/2021,City Development,Highways,Capital,OTHER COSTS,7,24/03/2021,2103-00596,0.00,41192.50,C,Aecom Limited,No
Http://opendatacommunities.org/id/metropolitan-district-council/leeds,Leeds City Council,31/03/2021,City Development,Highways,Capital,OTHER COSTS,7,25/03/2021,2103-00597,0.00,13732.00,C,Aecom Limited,No
Http://opendatacommunities.org/id/metropolitan-district-council/leeds,Leeds City Council,31/03/2021,Adults and Health,Services For Adults Under 65 Mental/Dis,Third Party Payments,Home Care,568,03/03/2021,2103-00598,0.00,1321.50,R,Aegis Care Solutions Ltd,No
Http://opendatacommunities.org/id/metropolitan-district-council/leeds,Leeds City Council,31/03/2021,Adults and Health,Services For Adults Under 65 Mental/Dis,Third Party Payments,Home Care,568,03/03/2021,2103-00599,0.00,1287.30,R,Aegis Care Solutions Ltd,No
Http://opendatacommunities.org/id/metropolitan-district-council/leeds,Leeds City Council,31/03/2021,Adults and Health,Services For Adults Under 65 Mental/Dis,Third Party Payments,Home Care,568,03/03/2021,2103-00600,0.00,364.00,R,Aegis Care Solutions Ltd,No
Http://opendatacommunities.org/id/metropolitan-district-council/leeds,Leeds City Council,31/03/2021,Adults and Health,Services For Adults Under 65 Mental/Dis,Third Party Payments,Home Care,568,03/03/2021,2103-00601,0.00,1550.40,R,Aegis Care Solutions Ltd,No
Http://opendatacommunities.org/id/metropolitan-district-council/leeds,Leeds City Council,31/03/2021,Adults and Health,Services For Adults Under 65 Mental/Dis,Third Party Payments,Home Care,568,03/03/2021,2103-00602,0.00,1147.60,R,Aegis Care Solutions Ltd,No
Http://opendatacommunities.org/id/metropolitan-district-council/leeds,Leeds City Council,31/03/2021,Adults and Health,Services For Adults Under 65 Mental/Dis,Third Party Payments,Home Care,568,03/03/2021,2103-00603,0.00,667.55,R,Aegis Care Solutions Ltd,No
Http://opendatacommunities.org/id/metropolitan-district-council/leeds,Leeds City Council,31/03/2021,Adults and Health,Services For Adults Under 65 Mental/Dis,Third Party Payments,Home Care,568,03/03/2021,2103-00604,0.00,4254.40,R,Aegis Care Solutions Ltd,No
Http://opendatacommunities.org/id/metropolitan-district-council/leeds,Leeds City Council,31/03/2021,Adults and Health,Services For Older People - 65 And Over,Third Party Payments,Home Care,568,17/03/2021,2103-00605,0.00,2757.60,R,Aegis Care Solutions Ltd,No
Http://opendatacommunities.org/id/metropolitan-district-council/leeds,Leeds City Council,31/03/2021,Adults and Health,Services For Adults Under 65 Mental/Dis,Third Party Payments,Home Care,568,19/03/2021,2103-00606,0.00,1396.80,R,Aegis Care Solutions Ltd,No
Http://opendatacommunities.org/id/metropolitan-district-council/leeds,Leeds City Council,31/03/2021,Adults and Health,Services For Adults Under 65 Mental/Dis,Third Party Payments,Home Care,568,19/03/2021,2103-00607,0.00,690.30,R,Aegis Care Solutions Ltd,No
Http://opendatacommunities.org/id/metropolitan-district-council/leeds,Leeds City Council,31/03/2021,Adults and Health,Other Adult Services,Third Party Payments,Payments To Voluntary Organisations,561,26/03/2021,2103-00608,0.00,1975.00,R,Aegis Care Solutions Ltd,No
Http://opendatacommunities.org/id/metropolitan-district-council/leeds,Leeds City Council,31/03/2021,Adults and Health,Services For Older People - 65 And Over,Third Party Payments,Home Care,568,31/03/2021,2103-00609,0.00,23293.18,R,Aegis Care Solutions Ltd,No
Http://opendatacommunities.org/id/metropolitan-district-council/leeds,Leeds City Council,31/03/2021,Adults and Health,Services For Older People Under 65 P/Dis,Third Party Payments,Home Care,568,31/03/2021,2103-00610,0.00,6884.15,R,Aegis Care Solutions Ltd,No
Http://opendatacommunities.org/id/metropolitan-district-council/leeds,Leeds City Council,31/03/2021,Adults and Health,Services For Older People Under 65 P/Dis,Third Party Payments,HCAIT Community Support,575,31/03/2021,2103-00611,0.00,76.60,R,Aegis Care Solutions Ltd,No
Http://opendatacommunities.org/id/metropolitan-district-council/leeds,Leeds City Council as Accountable Body,31/03/2021,Social Services Pooled Budgets,Jcs For People With Learning Disabilitie,Third Party Payments,Home Care,568,31/03/2021,2103-00612,0.00,1948.80,R,Aegis Care Solutions Ltd,No
Http://opendatacommunities.org/id/metropolitan-district-council/leeds,Leeds City Council as Accountable Body,31/03/2021,Social Services Pooled Budgets,Jcs For People With Learning Disabilitie,Third Party Payments,Home Care,568,03/03/2021,2103-00613,0.00,63.92,R,Affinity Trust,No
Http://opendatacommunities.org/id/metropolitan-district-council/leeds,Leeds City Council as Accountable Body,31/03/2021,Social Services Pooled Budgets,Jcs For People With Learning Disabilitie,Third Party Payments,Home Care,568,03/03/2021,2103-00614,0.00,990.76,R,Affinity Trust,No
Http://opendatacommunities.org/id/metropolitan-district-council/leeds,Leeds City Council as Accountable Body,31/03/2021,Social Services Pooled Budgets,Jcs For People With Learning Disabilitie,Third Party Payments,Home Care,568,03/03/2021,2103-00615,0.00,1365.00,R,Affinity Trust,No
Http://opendatacommunities.org/id/metropolitan-district-council/leeds,Leeds City Council as Accountable Body,31/03/2021,Social Services Pooled Budgets,Jcs For People With Learning Disabilitie,Third Party Payments,Home Care,568,03/03/2021,2103-00616,0.00,1980.00,R,Affinity Trust,No
Http://opendatacommunities.org/id/metropolitan-district-council/leeds,Leeds City Council as Accountable Body,31/03/2021,Social Services Pooled Budgets,Jcs For People With Learning Disabilitie,Third Party Payments,Day Centre,564,03/03/2021,2103-00617,0.00,1170.00,R,Affinity Trust,No
Http://opendatacommunities.org/id/metropolitan-district-council/leeds,Leeds City Council as Accountable Body,31/03/2021,Social Services Pooled Budgets,Jcs For People With Learning Disabilitie,Third Party Payments,Home Care,568,03/03/2021,2103-00618,0.00,900.00,R,Affinity Trust,No
Http://opendatacommunities.org/id/metropolitan-district-council/leeds,Leeds City Council as Accountable Body,31/03/2021,Social Services Pooled Budgets,Jcs For People With Learning Disabilitie,Third Party Payments,Home Care,568,03/03/2021,2103-00619,0.00,84.60,R,Affinity Trust,No
Http://opendatacommunities.org/id/metropolitan-district-council/leeds,Leeds City Council as Accountable Body,31/03/2021,Social Services Pooled Budgets,Jcs For People With Learning Disabilitie,Third Party Payments,Home Care,568,18/03/2021,2103-00620,0.00,1080.00,R,Affinity Trust,No
Http://opendatacommunities.org/id/metropolitan-district-council/leeds,Leeds City Council as Accountable Body,31/03/2021,Social Services Pooled Budgets,Jcs For People With Learning Disabilitie,Third Party Payments,Day Centre,564,18/03/2021,2103-00621,0.00,720.00,R,Affinity Trust,No
Http://opendatacommunities.org/id/metropolitan-district-council/leeds,Leeds City Council as Accountable Body,31/03/2021,Social Services Pooled Budgets,Jcs For People With Learning Disabilitie,Third Party Payments,Home Care,568,18/03/2021,2103-00622,0.00,1560.00,R,Affinity Trust,No
Http://opendatacommunities.org/id/metropolitan-district-council/leeds,Leeds City Council as Accountable Body,31/03/2021,Social Services Pooled Budgets,Jcs For People With Learning Disabilitie,Third Party Payments,Home Care,568,18/03/2021,2103-00623,0.00,2640.00,R,Affinity Trust,No
Http://opendatacommunities.org/id/metropolitan-district-council/leeds,Leeds City Council as Accountable Body,31/03/2021,Social Services Pooled Budgets,Jcs For People With Learning Disabilitie,Third Party Payments,Home Care,568,18/03/2021,2103-00624,0.00,2011.20,R,Affinity Trust,No
Http://opendatacommunities.org/id/metropolitan-district-council/leeds,Leeds City Council as Accountable Body,31/03/2021,Social Services Pooled Budgets,Jcs For People With Learning Disabilitie,Third Party Payments,Home Care,568,18/03/2021,2103-00625,0.00,1342.32,R,Affinity Trust,No
Http://opendatacommunities.org/id/metropolitan-district-council/leeds,Leeds City Council as Accountable Body,31/03/2021,Social Services Pooled Budgets,Jcs For People With Learning Disabilitie,Third Party Payments,Home Care,568,18/03/2021,2103-00626,0.00,63.92,R,Affinity Trust,No
Http://opendatacommunities.org/id/metropolitan-district-council/leeds,Leeds City Council as Accountable Body,31/03/2021,Social Services Pooled Budgets,Jcs For People With Learning Disabilitie,Third Party Payments,Home Care,568,18/03/2021,2103-00627,0.00,822.97,R,Affinity Trust,No
Http://opendatacommunities.org/id/metropolitan-district-council/leeds,Leeds City Council,31/03/2021,Adults and Health,Services For Adults Under 65 Mental/Dis,Third Party Payments,Home Care,568,18/03/2021,2103-00628,0.00,1233.24,R,Affinity Trust,No
Http://opendatacommunities.org/id/metropolitan-district-council/leeds,Leeds City Council,31/03/2021,Resources and Housing,Shared Services,Supplies and Services,Licences,266,18/03/2021,2103-00629,0.00,-9142.77,R,Affinity Trust,No
Http://opendatacommunities.org/id/metropolitan-district-council/leeds,Leeds City Council,31/03/2021,Adults and Health,Services For Older People - 65 And Over,Third Party Payments,Home Care,568,24/03/2021,2103-00630,0.00,-0.02,R,Affinity Trust,No
Http://opendatacommunities.org/id/metropolitan-district-council/leeds,Leeds City Council,31/03/2021,Adults and Health,Services For Older People - 65 And Over,Third Party Payments,HCAIT Community Support,575,24/03/2021,2103-00631,0.00,527.36,R,Affinity Trust,No
Http://opendatacommunities.org/id/metropolitan-district-council/leeds,Leeds City Council,31/03/2021,Adults and Health,Services For Older People - 65 And Over,Third Party Payments,Home Care,568,24/03/2021,2103-00632,0.00,-0.02,R,Affinity Trust,No
Http://opendatacommunities.org/id/metropolitan-district-council/leeds,Leeds City Council,31/03/2021,Adults and Health,Services For Older People - 65 And Over,Third Party Payments,HCAIT Community Support,575,24/03/2021,2103-00633,0.00,527.36,R,Affinity Trust,No
Http://opendatacommunities.org/id/metropolitan-district-council/leeds,Leeds City Council,31/03/2021,Adults and Health,Services For Older People - 65 And Over,Third Party Payments,Home Care,568,24/03/2021,2103-00634,0.00,-0.02,R,Affinity Trust,No
Http://opendatacommunities.org/id/metropolitan-district-council/leeds,Leeds City Council,31/03/2021,Adults and Health,Services For Older People - 65 And Over,Third Party Payments,HCAIT Community Support,575,24/03/2021,2103-00635,0.00,527.36,R,Affinity Trust,No
Http://opendatacommunities.org/id/metropolitan-district-council/leeds,Leeds City Council as Accountable Body,31/03/2021,Social Services Pooled Budgets,Jcs For People With Learning Disabilitie,Third Party Payments,Day Centre,564,26/03/2021,2103-00636,0.00,360.00,R,Affinity Trust,No
Http://opendatacommunities.org/id/metropolitan-district-council/leeds,Leeds City Council as Accountable Body,31/03/2021,Social Services Pooled Budgets,Jcs For People With Learning Disabilitie,Third Party Payments,Day Centre,564,26/03/2021,2103-00637,0.00,525.72,R,Affinity Trust,No
Http://opendatacommunities.org/id/metropolitan-district-council/leeds,Leeds City Council as Accountable Body,31/03/2021,Social Services Pooled Budgets,Jcs For People With Learning Disabilitie,Third Party Payments,Day Centre,564,26/03/2021,2103-00638,0.00,714.78,R,Affinity Trust,No
Http://opendatacommunities.org/id/metropolitan-district-council/leeds,Leeds City Council as Accountable Body,31/03/2021,Social Services Pooled Budgets,Jcs For People With Learning Disabilitie,Third Party Payments,Day Centre,564,26/03/2021,2103-00639,0.00,720.00,R,Affinity Trust,No
Http://opendatacommunities.org/id/metropolitan-district-council/leeds,Leeds City Council as Accountable Body,31/03/2021,Social Services Pooled Budgets,Jcs For People With Learning Disabilitie,Third Party Payments,Home Care,568,26/03/2021,2103-00640,0.00,770.96,R,Affinity Trust,No
Http://opendatacommunities.org/id/metropolitan-district-council/leeds,Leeds City Council as Accountable Body,31/03/2021,Social Services Pooled Budgets,Jcs For People With Learning Disabilitie,Third Party Payments,Home Care,568,26/03/2021,2103-00641,0.00,804.48,R,Affinity Trust,No
Http://opendatacommunities.org/id/metropolitan-district-council/leeds,Leeds City Council as Accountable Body,31/03/2021,Social Services Pooled Budgets,Jcs For People With Learning Disabilitie,Third Party Payments,Home Care,568,26/03/2021,2103-00642,0.00,1005.60,R,Affinity Trust,No
Http://opendatacommunities.org/id/metropolitan-district-council/leeds,Leeds City Council as Accountable Body,31/03/2021,Social Services Pooled Budgets,Jcs For People With Learning Disabilitie,Third Party Payments,Home Care,568,26/03/2021,2103-00643,0.00,1080.00,R,Affinity Trust,No
Http://opendatacommunities.org/id/metropolitan-district-council/leeds,Leeds City Council as Accountable Body,31/03/2021,Social Services Pooled Budgets,Jcs For People With Learning Disabilitie,Third Party Payments,Home Care,568,26/03/2021,2103-00644,0.00,1080.00,R,Affinity Trust,No
Http://opendatacommunities.org/id/metropolitan-district-council/leeds,Leeds City Council as Accountable Body,31/03/2021,Social Services Pooled Budgets,Jcs For People With Learning Disabilitie,Third Party Payments,Day Centre,564,26/03/2021,2103-00645,0.00,1080.00,R,Affinity Trust,No
Http://opendatacommunities.org/id/metropolitan-district-council/leeds,Leeds City Council as Accountable Body,31/03/2021,Social Services Pooled Budgets,Jcs For People With Learning Disabilitie,Third Party Payments,Day Centre,564,26/03/2021,2103-00646,0.00,1440.00,R,Affinity Trust,No
Http://opendatacommunities.org/id/metropolitan-district-council/leeds,Leeds City Council as Accountable Body,31/03/2021,Social Services Pooled Budgets,Jcs For People With Learning Disabilitie,Third Party Payments,Day Centre,564,26/03/2021,2103-00647,0.00,1440.00,R,Affinity Trust,No
Http://opendatacommunities.org/id/metropolitan-district-council/leeds,Leeds City Council as Accountable Body,31/03/2021,Social Services Pooled Budgets,Jcs For People With Learning Disabilitie,Third Party Payments,Home Care,568,26/03/2021,2103-00648,0.00,1504.72,R,Affinity Trust,No
Http://opendatacommunities.org/id/metropolitan-district-council/leeds,Leeds City Council as Accountable Body,31/03/2021,Social Services Pooled Budgets,Jcs For People With Learning Disabilitie,Third Party Payments,Home Care,568,26/03/2021,2103-00649,0.00,1560.00,R,Affinity Trust,No
Http://opendatacommunities.org/id/metropolitan-district-council/leeds,Leeds City Council as Accountable Body,31/03/2021,Social Services Pooled Budgets,Jcs For People With Learning Disabilitie,Third Party Payments,Home Care,568,26/03/2021,2103-00650,0.00,1613.28,R,Affinity Trust,No
Http://opendatacommunities.org/id/metropolitan-district-council/leeds,Leeds City Council as Accountable Body,31/03/2021,Social Services Pooled Budgets,Jcs For People With Learning Disabilitie,Third Party Payments,Home Care,568,26/03/2021,2103-00651,0.00,1800.00,R,Affinity Trust,No
Http://opendatacommunities.org/id/metropolitan-district-council/leeds,Leeds City Council as Accountable Body,31/03/2021,Social Services Pooled Budgets,Jcs For People With Learning Disabilitie,Third Party Payments,Home Care,568,26/03/2021,2103-00652,0.00,1980.00,R,Affinity Trust,No
Http://opendatacommunities.org/id/metropolitan-district-council/leeds,Leeds City Council as Accountable Body,31/03/2021,Social Services Pooled Budgets,Jcs For People With Learning Disabilitie,Third Party Payments,Day Centre,564,26/03/2021,2103-00653,0.00,2031.48,R,Affinity Trust,No
Http://opendatacommunities.org/id/metropolitan-district-council/leeds,Leeds City Council as Accountable Body,31/03/2021,Social Services Pooled Budgets,Jcs For People With Learning Disabilitie,Third Party Payments,Home Care,568,26/03/2021,2103-00654,0.00,2346.40,R,Affinity Trust,No
Http://opendatacommunities.org/id/metropolitan-district-council/leeds,Leeds City Council as Accountable Body,31/03/2021,Social Services Pooled Budgets,Jcs For People With Learning Disabilitie,Third Party Payments,Home Care,568,26/03/2021,2103-00655,0.00,2640.00,R,Affinity Trust,No
Http://opendatacommunities.org/id/metropolitan-district-council/leeds,Leeds City Council as Accountable Body,31/03/2021,Social Services Pooled Budgets,Jcs For People With Learning Disabilitie,Third Party Payments,Home Care,568,26/03/2021,2103-00656,0.00,3446.80,R,Affinity Trust,No
Http://opendatacommunities.org/id/metropolitan-district-council/leeds,Leeds City Council,31/03/2021,Adults and Health,Other Adult Services,Third Party Payments,Home Care,568,29/03/2021,2103-00657,0.00,3814.12,R,Affinity Trust,No
Http://opendatacommunities.org/id/metropolitan-district-council/leeds,Leeds City Council,31/03/2021,Adults and Health,Services For Older People Under 65 P/Dis,Third Party Payments,Sheltered Accommodation,569,03/03/2021,2103-00658,0.00,8290.80,R,Affinity Trust North Divisional Office,No
Http://opendatacommunities.org/id/metropolitan-district-council/leeds,Leeds City Council as Accountable Body,31/03/2021,Social Services Pooled Budgets,Jcs For People With Learning Disabilitie,Third Party Payments,Sheltered Accommodation,569,03/03/2021,2103-00659,0.00,134658.00,R,Affinity Trust North Divisional Office,No
Http://opendatacommunities.org/id/metropolitan-district-council/leeds,Leeds City Council,31/03/2021,Adults and Health,Services For Older People Under 65 P/Dis,Third Party Payments,Sheltered Accommodation,569,31/03/2021,2103-00660,0.00,8290.80,R,Affinity Trust North Divisional Office,No
Http://opendatacommunities.org/id/metropolitan-district-council/leeds,Leeds City Council as Accountable Body,31/03/2021,Social Services Pooled Budgets,Jcs For People With Learning Disabilitie,Third Party Payments,Sheltered Accommodation,569,31/03/2021,2103-00661,0.00,125123.36,R,Affinity Trust North Divisional Office,No
Http://opendatacommunities.org/id/metropolitan-district-council/leeds,Leeds City Council,31/03/2021,Communities and Environment,Parks and Countryside  ,Transport,External Hire -Occasional,304,16/02/2021,2103-00662,0.00,950.00,R,Afi Uplift,Yes
Http://opendatacommunities.org/id/metropolitan-district-council/leeds,Leeds City Council,31/03/2021,Communities and Environment,Parks and Countryside  ,Transport,External Hire -Occasional,304,16/02/2021,2103-00663,0.00,950.00,R,Afi Uplift,Yes
Http://opendatacommunities.org/id/metropolitan-district-council/leeds,Leeds City Council,31/03/2021,Communities and Environment,Parks and Countryside  ,Transport,Hire Of Movable Plant & Machinery,315,16/02/2021,2103-00664,0.00,90.00,R,Afi Uplift,Yes
Http://opendatacommunities.org/id/metropolitan-district-council/leeds,Leeds City Council,31/03/2021,Communities and Environment,Parks and Countryside  ,Transport,Hire Of Movable Plant & Machinery,315,16/02/2021,2103-00665,0.00,202.00,R,Afi Uplift,Yes
Http://opendatacommunities.org/id/metropolitan-district-council/leeds,Leeds City Council,31/03/2021,Communities and Environment,Parks and Countryside  ,Transport,Hire Of Movable Plant & Machinery,315,16/02/2021,2103-00666,0.00,-202.00,R,Afi Uplift,Yes
Http://opendatacommunities.org/id/metropolitan-district-council/leeds,Leeds City Council,31/03/2021,Communities and Environment,Parks and Countryside  ,Transport,External Hire -Occasional,304,16/02/2021,2103-00667,0.00,950.00,R,Afi Uplift,Yes
Http://opendatacommunities.org/id/metropolitan-district-council/leeds,Leeds City Council,31/03/2021,Communities and Environment,Parks and Countryside  ,Transport,External Hire -Occasional,304,16/02/2021,2103-00668,0.00,950.00,R,Afi Uplift,Yes
Http://opendatacommunities.org/id/metropolitan-district-council/leeds,Leeds City Council,31/03/2021,Communities and Environment,Customer Access,Supplies and Services,Other Hired And Contracted Services,265,23/03/2021,2103-00669,0.00,600.00,R,Agency For Good Ltd,No
Http://opendatacommunities.org/id/metropolitan-district-council/leeds,Leeds City Council,31/03/2021,City Development,Economic Development,Supplies and Services,Grant Related Expenditure,290,22/03/2021,2103-00670,0.00,10000.00,R,Agency TK Limited,No
Http://opendatacommunities.org/id/metropolitan-district-council/leeds,Leeds City Council,31/03/2021,Communities and Environment,Benefits Welfare and Poverty,Supplies and Services,Grant Related Expenditure,298,23/03/2021,2103-00671,0.00,500.00,R,REDACTED PERSONAL DATA,No
Http://opendatacommunities.org/id/metropolitan-district-council/leeds,Leeds City Council,31/03/2021,Children and Families,Social Care,Third Party Payments,Allowances,546,03/03/2021,2103-00672,0.00,50.00,R,REDACTED PERSONAL DATA,No
Http://opendatacommunities.org/id/metropolitan-district-council/leeds,Leeds City Council,31/03/2021,Children and Families,Social Care,Third Party Payments,Allowances,546,24/03/2021,2103-00673,0.00,19.01,R,REDACTED PERSONAL DATA,No
Http://opendatacommunities.org/id/metropolitan-district-council/leeds,Leeds City Council,31/03/2021,City Development,Economic Development,Supplies and Services,Grant Related Expenditure,290,17/03/2021,2103-00674,0.00,500.00,R,Ahmed Ali,No
Http://opendatacommunities.org/id/metropolitan-district-council/leeds,Leeds City Council,31/03/2021,Communities and Environment,Customer Access,Supplies and Services,Bought In Professional Services,277,10/03/2021,2103-00675,0.00,9.00,R,Ahmed Moustafa Moustafa Mousa,No
Http://opendatacommunities.org/id/metropolitan-district-council/leeds,Leeds City Council,31/03/2021,Communities and Environment,Customer Access,Supplies and Services,Bought In Professional Services,277,22/03/2021,2103-00676,0.00,18.00,R,Ahmed Moustafa Moustafa Mousa,No
Http://opendatacommunities.org/id/metropolitan-district-council/leeds,Leeds City Council,31/03/2021,Communities and Environment,Customer Access,Supplies and Services,Bought In Professional Services,277,24/03/2021,2103-00677,0.00,18.00,R,Ahmed Moustafa Moustafa Mousa,No
Http://opendatacommunities.org/id/metropolitan-district-council/leeds,Leeds City Council,31/03/2021,Communities and Environment,Customer Access,Supplies and Services,Bought In Professional Services,277,31/03/2021,2103-00678,0.00,27.00,R,Ahmed Moustafa Moustafa Mousa,No
Http://opendatacommunities.org/id/metropolitan-district-council/leeds,Leeds City Council,31/03/2021,Communities and Environment,Customer Access,Supplies and Services,Bought In Professional Services,277,03/03/2021,2103-00679,0.00,10.00,R,Ahmed T. Al-Hamdi,No
Http://opendatacommunities.org/id/metropolitan-district-council/leeds,Leeds City Council,31/03/2021,Communities and Environment,Customer Access,Supplies and Services,Bought In Professional Services,277,31/03/2021,2103-00680,0.00,27.50,R,Ahmed T. Al-Hamdi,No
Http://opendatacommunities.org/id/metropolitan-district-council/leeds,Leeds City Council,31/03/2021,Communities and Environment,Customer Access,Supplies and Services,Bought In Professional Services,277,31/03/2021,2103-00681,0.00,46.80,R,Ahmed T. Al-Hamdi,No
Http://opendatacommunities.org/id/metropolitan-district-council/leeds,Leeds City Council,31/03/2021,Communities and Environment,Benefits Welfare and Poverty,Supplies and Services,Grant Related Expenditure,290,23/03/2021,2103-00682,0.00,500.00,R,REDACTED PERSONAL DATA,No
Http://opendatacommunities.org/id/metropolitan-district-council/leeds,Leeds City Council as Accountable Body,31/03/2021,Social Services Pooled Budgets,Leeds Community Equip Store Pooled Budgt,Supplies and Services,Other Equipment,203,01/03/2021,2103-00683,0.00,-100.00,R,AIDAPT BATHROOMS LTD,No
Http://opendatacommunities.org/id/metropolitan-district-council/leeds,Leeds City Council as Accountable Body,31/03/2021,Social Services Pooled Budgets,Leeds Community Equip Store Pooled Budgt,Supplies and Services,Other Equipment,203,01/03/2021,2103-00684,0.00,650.00,R,AIDAPT BATHROOMS LTD,No
Http://opendatacommunities.org/id/metropolitan-district-council/leeds,Leeds City Council as Accountable Body,31/03/2021,Social Services Pooled Budgets,Leeds Community Equip Store Pooled Budgt,Supplies and Services,Other Equipment,203,08/03/2021,2103-00685,0.00,1274.50,R,AIDAPT BATHROOMS LTD,No
Http://opendatacommunities.org/id/metropolitan-district-council/leeds,Leeds City Council as Accountable Body,31/03/2021,Social Services Pooled Budgets,Leeds Community Equip Store Pooled Budgt,Supplies and Services,Other Equipment,203,08/03/2021,2103-00686,0.00,1332.25,R,AIDAPT BATHROOMS LTD,No
Http://opendatacommunities.org/id/metropolitan-district-council/leeds,Leeds City Council as Accountable Body,31/03/2021,Social Services Pooled Budgets,Leeds Community Equip Store Pooled Budgt,Supplies and Services,Other Equipment,203,08/03/2021,2103-00687,0.00,1034.50,R,AIDAPT BATHROOMS LTD,No
Http://opendatacommunities.org/id/metropolitan-district-council/leeds,Leeds City Council as Accountable Body,31/03/2021,Social Services Pooled Budgets,Leeds Community Equip Store Pooled Budgt,Supplies and Services,Other Equipment,203,10/03/2021,2103-00688,0.00,637.25,R,AIDAPT BATHROOMS LTD,No
Http://opendatacommunities.org/id/metropolitan-district-council/leeds,Leeds City Council as Accountable Body,31/03/2021,Social Services Pooled Budgets,Leeds Community Equip Store Pooled Budgt,Supplies and Services,Other Equipment,203,12/03/2021,2103-00689,0.00,100.00,R,AIDAPT BATHROOMS LTD,No
Http://opendatacommunities.org/id/metropolitan-district-council/leeds,Leeds City Council as Accountable Body,31/03/2021,Social Services Pooled Budgets,Leeds Community Equip Store Pooled Budgt,Supplies and Services,Other Equipment,203,17/03/2021,2103-00690,0.00,599.70,R,AIDAPT BATHROOMS LTD,No
Http://opendatacommunities.org/id/metropolitan-district-council/leeds,Leeds City Council as Accountable Body,31/03/2021,Social Services Pooled Budgets,Leeds Community Equip Store Pooled Budgt,Supplies and Services,Other Equipment,203,17/03/2021,2103-00691,0.00,165.00,R,AIDAPT BATHROOMS LTD,No
Http://opendatacommunities.org/id/metropolitan-district-council/leeds,Leeds City Council as Accountable Body,31/03/2021,Social Services Pooled Budgets,Leeds Community Equip Store Pooled Budgt,Supplies and Services,Other Equipment,203,19/03/2021,2103-00692,0.00,137.50,R,AIDAPT BATHROOMS LTD,No
Http://opendatacommunities.org/id/metropolitan-district-council/leeds,Leeds City Council as Accountable Body,31/03/2021,Social Services Pooled Budgets,Leeds Community Equip Store Pooled Budgt,Supplies and Services,Other Equipment,203,19/03/2021,2103-00693,0.00,100.00,R,AIDAPT BATHROOMS LTD,No
Http://opendatacommunities.org/id/metropolitan-district-council/leeds,Leeds City Council as Accountable Body,31/03/2021,Social Services Pooled Budgets,Leeds Community Equip Store Pooled Budgt,Supplies and Services,Other Equipment,203,25/03/2021,2103-00694,0.00,1274.50,R,AIDAPT BATHROOMS LTD,No
Http://opendatacommunities.org/id/metropolitan-district-council/leeds,Leeds City Council as Accountable Body,31/03/2021,Social Services Pooled Budgets,Leeds Community Equip Store Pooled Budgt,Supplies and Services,Other Equipment,203,30/03/2021,2103-00695,0.00,1599.70,R,AIDAPT BATHROOMS LTD,No
Http://opendatacommunities.org/id/metropolitan-district-council/leeds,Leeds City Council as Accountable Body,31/03/2021,Social Services Pooled Budgets,Leeds Community Equip Store Pooled Budgt,Supplies and Services,Other Equipment,203,30/03/2021,2103-00696,0.00,1338.30,R,AIDAPT BATHROOMS LTD,No
Http://opendatacommunities.org/id/metropolitan-district-council/leeds,Leeds City Council,31/03/2021,Communities and Environment,Benefits Welfare and Poverty,Supplies and Services,Grant Related Expenditure,298,22/03/2021,2103-00697,0.00,500.00,R,REDACTED PERSONAL DATA,No
Http://opendatacommunities.org/id/metropolitan-district-council/leeds,Leeds City Council,31/03/2021,City Development,Recreation,Employees,Training & Development,70,31/03/2021,2103-00698,0.00,30.00,R,REDACTED PERSONAL DATA,No
Http://opendatacommunities.org/id/metropolitan-district-council/leeds,Leeds City Council,31/03/2021,Children and Families,Partnerships & Health,Supplies and Services,Conference Meetings,253,10/03/2021,2103-00699,0.00,225.00,R,AIM PROJECT,No
Http://opendatacommunities.org/id/metropolitan-district-council/leeds,Leeds City Council,31/03/2021,City Development,Recreation,Income,Swimming Bath Charges,923,11/03/2021,2103-00700,0.00,22.95,R,REDACTED PERSONAL DATA,No
Http://opendatacommunities.org/id/metropolitan-district-council/leeds,Leeds City Council,31/03/2021,Resources and Housing,Leeds Building Services,Supplies and Services,Operational Materials,205,11/03/2021,2103-00701,0.00,99.00,R,Air Conditioning Accessories,No
Http://opendatacommunities.org/id/metropolitan-district-council/leeds,Leeds City Council,31/03/2021,Resources and Housing,Commercial Services  ,Supplies and Services,Operational Materials,205,09/02/2021,2103-00702,0.00,236.00,R,Air Force Pneumatics And,Yes
Http://opendatacommunities.org/id/metropolitan-district-council/leeds,Leeds City Council,31/03/2021,Communities and Environment,Environmental Health,Supplies and Services,Other Hired And Contracted Services,265,01/03/2021,2103-00703,0.00,564.10,R,AIR LIQUIDE UK,No
Http://opendatacommunities.org/id/metropolitan-district-council/leeds,Leeds City Council,31/03/2021,Resources and Housing,Leeds Building Services,Supplies and Services,Operational Materials,205,11/03/2021,2103-00704,0.00,203.79,R,AIR LIQUIDE UK,No
Http://opendatacommunities.org/id/metropolitan-district-council/leeds,Leeds City Council,31/03/2021,Resources and Housing,Leeds Building Services,Supplies and Services,Operational Materials,205,30/03/2021,2103-00705,0.00,203.79,R,AIR LIQUIDE UK,No
Http://opendatacommunities.org/id/metropolitan-district-council/leeds,Leeds City Council,31/03/2021,Communities and Environment,Environmental Health,Supplies and Services,Other Hired And Contracted Services,265,30/03/2021,2103-00706,0.00,10.77,R,AIR LIQUIDE UK,No
Http://opendatacommunities.org/id/metropolitan-district-council/leeds,Leeds City Council,31/03/2021,Communities and Environment,Environmental Health,Supplies and Services,Other Hired And Contracted Services,265,30/03/2021,2103-00707,0.00,10.77,R,AIR LIQUIDE UK,No
Http://opendatacommunities.org/id/metropolitan-district-council/leeds,Leeds City Council,31/03/2021,Communities and Environment,Environmental Health,Supplies and Services,Other Hired And Contracted Services,265,30/03/2021,2103-00708,0.00,16.64,R,AIR LIQUIDE UK,No
Http://opendatacommunities.org/id/metropolitan-district-council/leeds,Leeds City Council,31/03/2021,Communities and Environment,Environmental Health,Supplies and Services,Other Hired And Contracted Services,265,30/03/2021,2103-00709,0.00,75.39,R,AIR LIQUIDE UK,No
Http://opendatacommunities.org/id/metropolitan-district-council/leeds,Leeds City Council,31/03/2021,Communities and Environment,Environmental Health,Supplies and Services,Other Hired And Contracted Services,265,31/03/2021,2103-00710,0.00,10.77,R,AIR LIQUIDE UK,No
Http://opendatacommunities.org/id/metropolitan-district-council/leeds,Leeds City Council,31/03/2021,Communities and Environment,Environmental Health,Supplies and Services,Other Hired And Contracted Services,265,31/03/2021,2103-00711,0.00,10.77,R,AIR LIQUIDE UK,No
Http://opendatacommunities.org/id/metropolitan-district-council/leeds,Leeds City Council,31/03/2021,Communities and Environment,Environmental Health,Supplies and Services,Other Hired And Contracted Services,265,31/03/2021,2103-00712,0.00,16.64,R,AIR LIQUIDE UK,No
Http://opendatacommunities.org/id/metropolitan-district-council/leeds,Leeds City Council,31/03/2021,Communities and Environment,Environmental Health,Supplies and Services,Other Hired And Contracted Services,265,31/03/2021,2103-00713,0.00,75.39,R,AIR LIQUIDE UK,No
Http://opendatacommunities.org/id/metropolitan-district-council/leeds,Leeds City Council,31/03/2021,Adults and Health,Public Health,Supplies and Services,Computer Software & Equipment,214,19/03/2021,2103-00714,0.00,18700.00,R,Aire Logic Ltd,No
Http://opendatacommunities.org/id/metropolitan-district-council/leeds,Leeds City Council,31/03/2021,Resources and Housing,Digital and Information Services,Capital,OTHER COSTS,7,30/03/2021,2103-00715,0.00,36750.00,C,Aire Logic Ltd,No
Http://opendatacommunities.org/id/metropolitan-district-council/leeds,Leeds City Council,31/03/2021,Communities and Environment,Parks and Countryside,Supplies and Services,Other Hired And Contracted Services,265,03/03/2021,2103-00716,0.00,965.00,R,Aire Valley Tree Services Ltd,No
Http://opendatacommunities.org/id/metropolitan-district-council/leeds,Leeds City Council,31/03/2021,Communities and Environment,Parks and Countryside,Supplies and Services,Other Hired And Contracted Services,265,12/03/2021,2103-00717,0.00,2300.00,R,Aire Valley Tree Services Ltd,No
Http://opendatacommunities.org/id/metropolitan-district-council/leeds,Leeds City Council,31/03/2021,Communities and Environment,Parks and Countryside,Supplies and Services,Other Hired And Contracted Services,265,12/03/2021,2103-00718,0.00,235.00,R,Aire Valley Tree Services Ltd,No
Http://opendatacommunities.org/id/metropolitan-district-council/leeds,Leeds City Council,31/03/2021,Communities and Environment,Parks and Countryside,Supplies and Services,Other Hired And Contracted Services,265,18/03/2021,2103-00719,0.00,3161.00,R,Aire Valley Tree Services Ltd,No
Http://opendatacommunities.org/id/metropolitan-district-council/leeds,Leeds City Council,31/03/2021,Communities and Environment,Parks and Countryside,Supplies and Services,Other Hired And Contracted Services,265,18/03/2021,2103-00720,0.00,246.00,R,Aire Valley Tree Services Ltd,No
Http://opendatacommunities.org/id/metropolitan-district-council/leeds,Leeds City Council,31/03/2021,Adults and Health,Services For Older People - 65 And Over,Third Party Payments,Residential Care Dementia,571,03/03/2021,2103-00721,0.00,34910.22,R,Aire View Residential Home,No
Http://opendatacommunities.org/id/metropolitan-district-council/leeds,Leeds City Council,31/03/2021,Adults and Health,Services For Older People - 65 And Over,Third Party Payments,Residential,580,03/03/2021,2103-00722,0.00,5212.24,R,Aire View Residential Home,No
Http://opendatacommunities.org/id/metropolitan-district-council/leeds,Leeds City Council,31/03/2021,Adults and Health,Services For Older People - 65 And Over,Third Party Payments,Residential Care Dementia,571,31/03/2021,2103-00723,0.00,34162.19,R,Aire View Residential Home,No
Http://opendatacommunities.org/id/metropolitan-district-council/leeds,Leeds City Council,31/03/2021,Adults and Health,Services For Older People - 65 And Over,Third Party Payments,Residential,580,31/03/2021,2103-00724,0.00,4908.36,R,Aire View Residential Home,No
Http://opendatacommunities.org/id/metropolitan-district-council/leeds,Leeds City Council,31/03/2021,City Development,Economic Development,Supplies and Services,Grant Related Expenditure,290,23/03/2021,2103-00725,0.00,1683.00,R,Aireborough Thai Boxing Limited,No
Http://opendatacommunities.org/id/metropolitan-district-council/leeds,Leeds City Council,31/03/2021,Adults and Health,Services For Older People - 65 And Over,Third Party Payments,Residential Care Dementia,571,03/03/2021,2103-00726,0.00,1511.60,R,Airedale Care Home,No
Http://opendatacommunities.org/id/metropolitan-district-council/leeds,Leeds City Council,31/03/2021,Adults and Health,Services For Older People - 65 And Over,Third Party Payments,Residential,580,03/03/2021,2103-00727,0.00,14127.77,R,Airedale Care Home,No
Http://opendatacommunities.org/id/metropolitan-district-council/leeds,Leeds City Council,31/03/2021,Adults and Health,Services For Older People - 65 And Over,Third Party Payments,Residential Care Dementia,571,31/03/2021,2103-00728,0.00,2461.71,R,Airedale Care Home,No
Http://opendatacommunities.org/id/metropolitan-district-council/leeds,Leeds City Council,31/03/2021,Adults and Health,Services For Older People - 65 And Over,Third Party Payments,Residential,580,31/03/2021,2103-00729,0.00,15531.02,R,Airedale Care Home,No
Http://opendatacommunities.org/id/metropolitan-district-council/leeds,Leeds City Council,31/03/2021,Resources and Housing,Commercial Services,Supplies and Services,Operational Furniture And Equipment,203,15/03/2021,2103-00730,0.00,4521.00,R,AIREDALE CATERING EQUIPMENT LTD,No
Http://opendatacommunities.org/id/metropolitan-district-council/leeds,Leeds City Council,31/03/2021,Resources and Housing,Commercial Services,Supplies and Services,Operational Furniture And Equipment,203,26/03/2021,2103-00731,0.00,2361.00,R,AIREDALE CATERING EQUIPMENT LTD,No
Http://opendatacommunities.org/id/metropolitan-district-council/leeds,Leeds City Council,31/03/2021,Resources and Housing,Leeds Building Services,Supplies and Services,Other Hired And Contracted Services,265,29/03/2021,2103-00732,0.00,2742.00,R,AIREDALE CATERING EQUIPMENT LTD,No
Http://opendatacommunities.org/id/metropolitan-district-council/leeds,Leeds City Council,31/03/2021,Communities and Environment,Environmental Health,Supplies and Services,Other Hired And Contracted Services,265,25/03/2021,2103-00733,0.00,289.25,R,Aireworth Vets,No
Http://opendatacommunities.org/id/metropolitan-district-council/leeds,Leeds City Council,31/03/2021,Children and Families,Social Care  ,Transport,Public Transport Expenses,310,14/02/2021,2103-00734,0.00,7.76,R,Airpay,Yes
Http://opendatacommunities.org/id/metropolitan-district-council/leeds,Leeds City Council,31/03/2021,Children and Families,Social Care  ,Transport,Public Transport Expenses,310,15/02/2021,2103-00735,0.00,6.15,R,Airpay,Yes
Http://opendatacommunities.org/id/metropolitan-district-council/leeds,Leeds City Council,31/03/2021,Children and Families,Social Care  ,Third Party Payments,Contact,548,19/02/2021,2103-00736,0.00,107.95,R,Airportbookings,Yes
Http://opendatacommunities.org/id/metropolitan-district-council/leeds,Leeds City Council,31/03/2021,Communities and Environment,Benefits Welfare and Poverty,Supplies and Services,Grant Related Expenditure,298,02/03/2021,2103-00737,0.00,500.00,R,REDACTED PERSONAL DATA,No
Http://opendatacommunities.org/id/metropolitan-district-council/leeds,Leeds City Council,31/03/2021,Resources and Housing,Strategic Housing Partnership & Support,Supplies and Services,Other Hired And Contracted Services,265,04/03/2021,2103-00738,0.00,1405.00,R,Aisha P Hasan,No
Http://opendatacommunities.org/id/metropolitan-district-council/leeds,Leeds City Council,31/03/2021,Communities and Environment,Customer Access,Supplies and Services,Bought In Professional Services,277,24/03/2021,2103-00739,0.00,18.00,R,Aisha Saleem,No
Http://opendatacommunities.org/id/metropolitan-district-council/leeds,Leeds City Council,31/03/2021,Adults and Health,Assessment And Care Management,Supplies and Services,Bought In Professional Services,277,01/03/2021,2103-00740,0.00,13.00,R,REDACTED PERSONAL DATA,No
Http://opendatacommunities.org/id/metropolitan-district-council/leeds,Leeds City Council,31/03/2021,Adults and Health,Social Services Support Services,Employees,Training & Development,70,31/03/2021,2103-00741,0.00,13.00,R,REDACTED PERSONAL DATA,No
Http://opendatacommunities.org/id/metropolitan-district-council/leeds,Leeds City Council,31/03/2021,Adults and Health,Services For Adults Under 65 Mental/Dis,Third Party Payments,Fees - Level 4,520,03/03/2021,2103-00742,0.00,175.00,R,AIT Mitra Limited,No
Http://opendatacommunities.org/id/metropolitan-district-council/leeds,Leeds City Council,31/03/2021,Adults and Health,Services For Adults Under 65 Mental/Dis,Third Party Payments,Fees - Level 4,520,05/03/2021,2103-00743,0.00,175.00,R,AIT Mitra Limited,No
Http://opendatacommunities.org/id/metropolitan-district-council/leeds,Leeds City Council,31/03/2021,Adults and Health,Services For Adults Under 65 Mental/Dis,Third Party Payments,Fees - Level 4,520,05/03/2021,2103-00744,0.00,175.00,R,AIT Mitra Limited,No
Http://opendatacommunities.org/id/metropolitan-district-council/leeds,Leeds City Council,31/03/2021,Adults and Health,Services For Adults Under 65 Mental/Dis,Third Party Payments,Fees - Level 4,520,09/03/2021,2103-00745,0.00,175.00,R,AIT Mitra Limited,No
Http://opendatacommunities.org/id/metropolitan-district-council/leeds,Leeds City Council,31/03/2021,Adults and Health,Services For Adults Under 65 Mental/Dis,Third Party Payments,Fees - Level 4,520,09/03/2021,2103-00746,0.00,175.00,R,AIT Mitra Limited,No
Http://opendatacommunities.org/id/metropolitan-district-council/leeds,Leeds City Council,31/03/2021,Adults and Health,Services For Adults Under 65 Mental/Dis,Third Party Payments,Fees - Level 4,520,09/03/2021,2103-00747,0.00,175.00,R,AIT Mitra Limited,No
Http://opendatacommunities.org/id/metropolitan-district-council/leeds,Leeds City Council,31/03/2021,Adults and Health,Services For Adults Under 65 Mental/Dis,Third Party Payments,Fees - Level 4,520,09/03/2021,2103-00748,0.00,175.00,R,AIT Mitra Limited,No
Http://opendatacommunities.org/id/metropolitan-district-council/leeds,Leeds City Council,31/03/2021,Adults and Health,Services For Adults Under 65 Mental/Dis,Third Party Payments,Fees - Level 4,520,09/03/2021,2103-00749,0.00,175.00,R,AIT Mitra Limited,No
Http://opendatacommunities.org/id/metropolitan-district-council/leeds,Leeds City Council,31/03/2021,Adults and Health,Services For Adults Under 65 Mental/Dis,Third Party Payments,Fees - Level 4,520,09/03/2021,2103-00750,0.00,175.00,R,AIT Mitra Limited,No
Http://opendatacommunities.org/id/metropolitan-district-council/leeds,Leeds City Council,31/03/2021,Adults and Health,Services For Adults Under 65 Mental/Dis,Third Party Payments,Fees - Level 4,520,09/03/2021,2103-00751,0.00,175.00,R,AIT Mitra Limited,No
Http://opendatacommunities.org/id/metropolitan-district-council/leeds,Leeds City Council,31/03/2021,Adults and Health,Services For Adults Under 65 Mental/Dis,Third Party Payments,Fees - Level 4,520,12/03/2021,2103-00752,0.00,175.00,R,AIT Mitra Limited,No
Http://opendatacommunities.org/id/metropolitan-district-council/leeds,Leeds City Council,31/03/2021,Adults and Health,Services For Adults Under 65 Mental/Dis,Third Party Payments,Fees - Level 4,520,12/03/2021,2103-00753,0.00,175.00,R,AIT Mitra Limited,No
Http://opendatacommunities.org/id/metropolitan-district-council/leeds,Leeds City Council,31/03/2021,Adults and Health,Services For Adults Under 65 Mental/Dis,Third Party Payments,Fees - Level 4,520,19/03/2021,2103-00754,0.00,175.00,R,AIT Mitra Limited,No
Http://opendatacommunities.org/id/metropolitan-district-council/leeds,Leeds City Council,31/03/2021,Adults and Health,Services For Adults Under 65 Mental/Dis,Third Party Payments,Fees - Level 4,520,19/03/2021,2103-00755,0.00,175.00,R,AIT Mitra Limited,No
Http://opendatacommunities.org/id/metropolitan-district-council/leeds,Leeds City Council,31/03/2021,Adults and Health,Services For Adults Under 65 Mental/Dis,Third Party Payments,Fees - Level 4,520,19/03/2021,2103-00756,0.00,175.00,R,AIT Mitra Limited,No
Http://opendatacommunities.org/id/metropolitan-district-council/leeds,Leeds City Council,31/03/2021,Adults and Health,Services For Adults Under 65 Mental/Dis,Third Party Payments,Fees - Level 4,520,19/03/2021,2103-00757,0.00,175.00,R,AIT Mitra Limited,No
Http://opendatacommunities.org/id/metropolitan-district-council/leeds,Leeds City Council,31/03/2021,Adults and Health,Services For Adults Under 65 Mental/Dis,Third Party Payments,Fees - Level 4,520,24/03/2021,2103-00758,0.00,175.00,R,AIT Mitra Limited,No
Http://opendatacommunities.org/id/metropolitan-district-council/leeds,Leeds City Council,31/03/2021,Adults and Health,Services For Adults Under 65 Mental/Dis,Third Party Payments,Fees - Level 4,520,24/03/2021,2103-00759,0.00,175.00,R,AIT Mitra Limited,No
Http://opendatacommunities.org/id/metropolitan-district-council/leeds,Leeds City Council,31/03/2021,Adults and Health,Services For Adults Under 65 Mental/Dis,Third Party Payments,Fees - Level 4,520,24/03/2021,2103-00760,0.00,175.00,R,AIT Mitra Limited,No
Http://opendatacommunities.org/id/metropolitan-district-council/leeds,Leeds City Council,31/03/2021,Adults and Health,Services For Adults Under 65 Mental/Dis,Third Party Payments,Fees - Level 4,520,26/03/2021,2103-00761,0.00,175.00,R,AIT Mitra Limited,No
